Workbook

Sheet DESCRIZIONE
A4: Il progetto esemplificativo individuale è dedicato, in modo specifico, ai nuovi Aderenti (anche per i fiscalmente a carico) dal 2007 in poi. Vuole essere d'aiuto per valutare l'investimento nel Fondo Pensione.
A5: I risultati prodotti dai motori di calcolo non impegnano in alcun modo il Fondo Pensione
C13: TRA QUANTO TEMPO INVESTENDO UN CAPITALE NOTO A UN TASSO ANNUO DI RENDIMENTO NOTO POTRO' AVERE IL MONTANTE CHE MI SERVE?
E16: QUANTO CAPITALE DEVO INVESTIRE PER OTTENERE TRA X ANNI IL MONTANTE DESIDERATO?
B19: INVESTENDO UN CAPITALE ANNUALE CONOSCIUTO, CON O SENZA CAPITALE INIZIALE A UN TASSO ANNUO DI REND. CONOSCIUTO CHE MONTANTE AVRO' TRA X ANNI? | AG19: INVESTENDO UN CAPITALE ANNUALE CONOSCIUTO, CON O SENZA CAPITALE INIZIALE A UN TASSO DI RIV CONOSCIUTO CHE MONTANTE AVRO' TRA X ANNI? | AW19: INVESTENDO UN CAPITALE ANNUALE CONOSCIUTO, CON O SENZA CAPITALE INIZIALE A UN TASSO DI RIV CONOSCIUTO CHE MONTANTE AVRO' TRA X ANNI? | BM19: INVESTENDO UN CAPITALE ANNUALE CONOSCIUTO, CON O SENZA CAPITALE INIZIALE A UN TASSO DI RIV CONOSCIUTO CHE MONTANTE AVRO' TRA X ANNI? | CC19: INVESTENDO UN CAPITALE ANNUALE CONOSCIUTO, CON O SENZA CAPITALE INIZIALE A UN TASSO DI RIV CONOSCIUTO CHE MONTANTE AVRO' TRA X ANNI? | CS19: INVESTENDO UN CAPITALE ANNUALE CONOSCIUTO, CON O SENZA CAPITALE INIZIALE A UN TASSO DI RIV CONOSCIUTO CHE MONTANTE AVRO' TRA X ANNI? | DI19: INVESTENDO UN CAPITALE ANNUALE CONOSCIUTO, CON O SENZA CAPITALE INIZIALE A UN TASSO DI RIV CONOSCIUTO CHE MONTANTE AVRO' TRA X ANNI? | DY19: INVESTENDO UN CAPITALE ANNUALE CONOSCIUTO, CON O SENZA CAPITALE INIZIALE A UN TASSO DI RIV CONOSCIUTO CHE MONTANTE AVRO' TRA X ANNI? | EO19: INVESTENDO UN CAPITALE ANNUALE CONOSCIUTO, CON O SENZA CAPITALE INIZIALE A UN TASSO DI RIV CONOSCIUTO CHE MONTANTE AVRO' TRA X ANNI? | FE19: INVESTENDO UN CAPITALE ANNUALE CONOSCIUTO, CON O SENZA CAPITALE INIZIALE A UN TASSO DI RIV CONOSCIUTO CHE MONTANTE AVRO' TRA X ANNI? | FU19: INVESTENDO UN CAPITALE ANNUALE CONOSCIUTO, CON O SENZA CAPITALE INIZIALE A UN TASSO DI RIV CONOSCIUTO CHE MONTANTE AVRO' TRA X ANNI? | GK19: INVESTENDO UN CAPITALE ANNUALE CONOSCIUTO, CON O SENZA CAPITALE INIZIALE A UN TASSO DI RIV CONOSCIUTO CHE MONTANTE AVRO' TRA X ANNI? | HA19: INVESTENDO UN CAPITALE ANNUALE CONOSCIUTO, CON O SENZA CAPITALE INIZIALE A UN TASSO DI RIV CONOSCIUTO CHE MONTANTE AVRO' TRA X ANNI? | HQ19: INVESTENDO UN CAPITALE ANNUALE CONOSCIUTO, CON O SENZA CAPITALE INIZIALE A UN TASSO DI RIV CONOSCIUTO CHE MONTANTE AVRO' TRA X ANNI? | IG19: INVESTENDO UN CAPITALE ANNUALE CONOSCIUTO, CON O SENZA CAPITALE INIZIALE A UN TASSO DI RIV CONOSCIUTO CHE MONTANTE AVRO' TRA X ANNI? | IW19: INVESTENDO UN CAPITALE ANNUALE CONOSCIUTO, CON O SENZA CAPITALE INIZIALE A UN TASSO DI RIV CONOSCIUTO CHE MONTANTE AVRO' TRA X ANNI? | JM19: INVESTENDO UN CAPITALE ANNUALE CONOSCIUTO, CON O SENZA CAPITALE INIZIALE A UN TASSO DI RIV CONOSCIUTO CHE MONTANTE AVRO' TRA X ANNI? | KC19: INVESTENDO UN CAPITALE ANNUALE CONOSCIUTO, CON O SENZA CAPITALE INIZIALE A UN TASSO DI RIV CONOSCIUTO CHE MONTANTE AVRO' TRA X ANNI? | KS19: INVESTENDO UN CAPITALE ANNUALE CONOSCIUTO, CON O SENZA CAPITALE INIZIALE A UN TASSO DI RIV CONOSCIUTO CHE MONTANTE AVRO' TRA X ANNI? | LI19: INVESTENDO UN CAPITALE ANNUALE CONOSCIUTO, CON O SENZA CAPITALE INIZIALE A UN TASSO DI RIV CONOSCIUTO CHE MONTANTE AVRO' TRA X ANNI? | LY19: INVESTENDO UN CAPITALE ANNUALE CONOSCIUTO, CON O SENZA CAPITALE INIZIALE A UN TASSO DI RIV CONOSCIUTO CHE MONTANTE AVRO' TRA X ANNI? | MO19: INVESTENDO UN CAPITALE ANNUALE CONOSCIUTO, CON O SENZA CAPITALE INIZIALE A UN TASSO DI RIV CONOSCIUTO CHE MONTANTE AVRO' TRA X ANNI? | NE19: INVESTENDO UN CAPITALE ANNUALE CONOSCIUTO, CON O SENZA CAPITALE INIZIALE A UN TASSO DI RIV CONOSCIUTO CHE MONTANTE AVRO' TRA X ANNI? | NU19: INVESTENDO UN CAPITALE ANNUALE CONOSCIUTO, CON O SENZA CAPITALE INIZIALE A UN TASSO DI RIV CONOSCIUTO CHE MONTANTE AVRO' TRA X ANNI? | OK19: INVESTENDO UN CAPITALE ANNUALE CONOSCIUTO, CON O SENZA CAPITALE INIZIALE A UN TASSO DI RIV CONOSCIUTO CHE MONTANTE AVRO' TRA X ANNI? | PA19: INVESTENDO UN CAPITALE ANNUALE CONOSCIUTO, CON O SENZA CAPITALE INIZIALE A UN TASSO DI RIV CONOSCIUTO CHE MONTANTE AVRO' TRA X ANNI? | PQ19: INVESTENDO UN CAPITALE ANNUALE CONOSCIUTO, CON O SENZA CAPITALE INIZIALE A UN TASSO DI RIV CONOSCIUTO CHE MONTANTE AVRO' TRA X ANNI? | QG19: INVESTENDO UN CAPITALE ANNUALE CONOSCIUTO, CON O SENZA CAPITALE INIZIALE A UN TASSO DI RIV CONOSCIUTO CHE MONTANTE AVRO' TRA X ANNI? | QW19: INVESTENDO UN CAPITALE ANNUALE CONOSCIUTO, CON O SENZA CAPITALE INIZIALE A UN TASSO DI RIV CONOSCIUTO CHE MONTANTE AVRO' TRA X ANNI? | RM19: INVESTENDO UN CAPITALE ANNUALE CONOSCIUTO, CON O SENZA CAPITALE INIZIALE A UN TASSO DI RIV CONOSCIUTO CHE MONTANTE AVRO' TRA X ANNI? | SC19: INVESTENDO UN CAPITALE ANNUALE CONOSCIUTO, CON O SENZA CAPITALE INIZIALE A UN TASSO DI RIV CONOSCIUTO CHE MONTANTE AVRO' TRA X ANNI? | SS19: INVESTENDO UN CAPITALE ANNUALE CONOSCIUTO, CON O SENZA CAPITALE INIZIALE A UN TASSO DI RIV CONOSCIUTO CHE MONTANTE AVRO' TRA X ANNI? | TI19: INVESTENDO UN CAPITALE ANNUALE CONOSCIUTO, CON O SENZA CAPITALE INIZIALE A UN TASSO DI RIV CONOSCIUTO CHE MONTANTE AVRO' TRA X ANNI? | TY19: INVESTENDO UN CAPITALE ANNUALE CONOSCIUTO, CON O SENZA CAPITALE INIZIALE A UN TASSO DI RIV CONOSCIUTO CHE MONTANTE AVRO' TRA X ANNI? | UO19: INVESTENDO UN CAPITALE ANNUALE CONOSCIUTO, CON O SENZA CAPITALE INIZIALE A UN TASSO DI RIV CONOSCIUTO CHE MONTANTE AVRO' TRA X ANNI? | VE19: INVESTENDO UN CAPITALE ANNUALE CONOSCIUTO, CON O SENZA CAPITALE INIZIALE A UN TASSO DI RIV CONOSCIUTO CHE MONTANTE AVRO' TRA X ANNI? | VU19: INVESTENDO UN CAPITALE ANNUALE CONOSCIUTO, CON O SENZA CAPITALE INIZIALE A UN TASSO DI RIV CONOSCIUTO CHE MONTANTE AVRO' TRA X ANNI? | WK19: INVESTENDO UN CAPITALE ANNUALE CONOSCIUTO, CON O SENZA CAPITALE INIZIALE A UN TASSO DI RIV CONOSCIUTO CHE MONTANTE AVRO' TRA X ANNI? | XA19: INVESTENDO UN CAPITALE ANNUALE CONOSCIUTO, CON O SENZA CAPITALE INIZIALE A UN TASSO DI RIV CONOSCIUTO CHE MONTANTE AVRO' TRA X ANNI? | XQ19: INVESTENDO UN CAPITALE ANNUALE CONOSCIUTO, CON O SENZA CAPITALE INIZIALE A UN TASSO DI RIV CONOSCIUTO CHE MONTANTE AVRO' TRA X ANNI? | YG19: INVESTENDO UN CAPITALE ANNUALE CONOSCIUTO, CON O SENZA CAPITALE INIZIALE A UN TASSO DI RIV CONOSCIUTO CHE MONTANTE AVRO' TRA X ANNI? | YW19: INVESTENDO UN CAPITALE ANNUALE CONOSCIUTO, CON O SENZA CAPITALE INIZIALE A UN TASSO DI RIV CONOSCIUTO CHE MONTANTE AVRO' TRA X ANNI? | ZM19: INVESTENDO UN CAPITALE ANNUALE CONOSCIUTO, CON O SENZA CAPITALE INIZIALE A UN TASSO DI RIV CONOSCIUTO CHE MONTANTE AVRO' TRA X ANNI? | AAC19: INVESTENDO UN CAPITALE ANNUALE CONOSCIUTO, CON O SENZA CAPITALE INIZIALE A UN TASSO DI RIV CONOSCIUTO CHE MONTANTE AVRO' TRA X ANNI? | AAS19: INVESTENDO UN CAPITALE ANNUALE CONOSCIUTO, CON O SENZA CAPITALE INIZIALE A UN TASSO DI RIV CONOSCIUTO CHE MONTANTE AVRO' TRA X ANNI? | ABI19: INVESTENDO UN CAPITALE ANNUALE CONOSCIUTO, CON O SENZA CAPITALE INIZIALE A UN TASSO DI RIV CONOSCIUTO CHE MONTANTE AVRO' TRA X ANNI? | ABY19: INVESTENDO UN CAPITALE ANNUALE CONOSCIUTO, CON O SENZA CAPITALE INIZIALE A UN TASSO DI RIV CONOSCIUTO CHE MONTANTE AVRO' TRA X ANNI? | ACO19: INVESTENDO UN CAPITALE ANNUALE CONOSCIUTO, CON O SENZA CAPITALE INIZIALE A UN TASSO DI RIV CONOSCIUTO CHE MONTANTE AVRO' TRA X ANNI? | ADE19: INVESTENDO UN CAPITALE ANNUALE CONOSCIUTO, CON O SENZA CAPITALE INIZIALE A UN TASSO DI RIV CONOSCIUTO CHE MONTANTE AVRO' TRA X ANNI? | ADU19: INVESTENDO UN CAPITALE ANNUALE CONOSCIUTO, CON O SENZA CAPITALE INIZIALE A UN TASSO DI RIV CONOSCIUTO CHE MONTANTE AVRO' TRA X ANNI? | AEK19: INVESTENDO UN CAPITALE ANNUALE CONOSCIUTO, CON O SENZA CAPITALE INIZIALE A UN TASSO DI RIV CONOSCIUTO CHE MONTANTE AVRO' TRA X ANNI? | AFA19: INVESTENDO UN CAPITALE ANNUALE CONOSCIUTO, CON O SENZA CAPITALE INIZIALE A UN TASSO DI RIV CONOSCIUTO CHE MONTANTE AVRO' TRA X ANNI? | AFQ19: INVESTENDO UN CAPITALE ANNUALE CONOSCIUTO, CON O SENZA CAPITALE INIZIALE A UN TASSO DI RIV CONOSCIUTO CHE MONTANTE AVRO' TRA X ANNI? | AGG19: INVESTENDO UN CAPITALE ANNUALE CONOSCIUTO, CON O SENZA CAPITALE INIZIALE A UN TASSO DI RIV CONOSCIUTO CHE MONTANTE AVRO' TRA X ANNI? | AGW19: INVESTENDO UN CAPITALE ANNUALE CONOSCIUTO, CON O SENZA CAPITALE INIZIALE A UN TASSO DI RIV CONOSCIUTO CHE MONTANTE AVRO' TRA X ANNI? | AHM19: INVESTENDO UN CAPITALE ANNUALE CONOSCIUTO, CON O SENZA CAPITALE INIZIALE A UN TASSO DI RIV CONOSCIUTO CHE MONTANTE AVRO' TRA X ANNI? | AIC19: INVESTENDO UN CAPITALE ANNUALE CONOSCIUTO, CON O SENZA CAPITALE INIZIALE A UN TASSO DI RIV CONOSCIUTO CHE MONTANTE AVRO' TRA X ANNI? | AIS19: INVESTENDO UN CAPITALE ANNUALE CONOSCIUTO, CON O SENZA CAPITALE INIZIALE A UN TASSO DI RIV CONOSCIUTO CHE MONTANTE AVRO' TRA X ANNI? | AJI19: INVESTENDO UN CAPITALE ANNUALE CONOSCIUTO, CON O SENZA CAPITALE INIZIALE A UN TASSO DI RIV CONOSCIUTO CHE MONTANTE AVRO' TRA X ANNI? | AJY19: INVESTENDO UN CAPITALE ANNUALE CONOSCIUTO, CON O SENZA CAPITALE INIZIALE A UN TASSO DI RIV CONOSCIUTO CHE MONTANTE AVRO' TRA X ANNI? | AKO19: INVESTENDO UN CAPITALE ANNUALE CONOSCIUTO, CON O SENZA CAPITALE INIZIALE A UN TASSO DI RIV CONOSCIUTO CHE MONTANTE AVRO' TRA X ANNI? | ALE19: INVESTENDO UN CAPITALE ANNUALE CONOSCIUTO, CON O SENZA CAPITALE INIZIALE A UN TASSO DI RIV CONOSCIUTO CHE MONTANTE AVRO' TRA X ANNI? | ALU19: INVESTENDO UN CAPITALE ANNUALE CONOSCIUTO, CON O SENZA CAPITALE INIZIALE A UN TASSO DI RIV CONOSCIUTO CHE MONTANTE AVRO' TRA X ANNI? | AMK19: INVESTENDO UN CAPITALE ANNUALE CONOSCIUTO, CON O SENZA CAPITALE INIZIALE A UN TASSO DI RIV CONOSCIUTO CHE MONTANTE AVRO' TRA X ANNI? | ANA19: INVESTENDO UN CAPITALE ANNUALE CONOSCIUTO, CON O SENZA CAPITALE INIZIALE A UN TASSO DI RIV CONOSCIUTO CHE MONTANTE AVRO' TRA X ANNI? | ANQ19: INVESTENDO UN CAPITALE ANNUALE CONOSCIUTO, CON O SENZA CAPITALE INIZIALE A UN TASSO DI RIV CONOSCIUTO CHE MONTANTE AVRO' TRA X ANNI? | AOG19: INVESTENDO UN CAPITALE ANNUALE CONOSCIUTO, CON O SENZA CAPITALE INIZIALE A UN TASSO DI RIV CONOSCIUTO CHE MONTANTE AVRO' TRA X ANNI? | AOW19: INVESTENDO UN CAPITALE ANNUALE CONOSCIUTO, CON O SENZA CAPITALE INIZIALE A UN TASSO DI RIV CONOSCIUTO CHE MONTANTE AVRO' TRA X ANNI? | APM19: INVESTENDO UN CAPITALE ANNUALE CONOSCIUTO, CON O SENZA CAPITALE INIZIALE A UN TASSO DI RIV CONOSCIUTO CHE MONTANTE AVRO' TRA X ANNI? | AQC19: INVESTENDO UN CAPITALE ANNUALE CONOSCIUTO, CON O SENZA CAPITALE INIZIALE A UN TASSO DI RIV CONOSCIUTO CHE MONTANTE AVRO' TRA X ANNI? | AQS19: INVESTENDO UN CAPITALE ANNUALE CONOSCIUTO, CON O SENZA CAPITALE INIZIALE A UN TASSO DI RIV CONOSCIUTO CHE MONTANTE AVRO' TRA X ANNI? | ARI19: INVESTENDO UN CAPITALE ANNUALE CONOSCIUTO, CON O SENZA CAPITALE INIZIALE A UN TASSO DI RIV CONOSCIUTO CHE MONTANTE AVRO' TRA X ANNI? | ARY19: INVESTENDO UN CAPITALE ANNUALE CONOSCIUTO, CON O SENZA CAPITALE INIZIALE A UN TASSO DI RIV CONOSCIUTO CHE MONTANTE AVRO' TRA X ANNI? | ASO19: INVESTENDO UN CAPITALE ANNUALE CONOSCIUTO, CON O SENZA CAPITALE INIZIALE A UN TASSO DI RIV CONOSCIUTO CHE MONTANTE AVRO' TRA X ANNI? | ATE19: INVESTENDO UN CAPITALE ANNUALE CONOSCIUTO, CON O SENZA CAPITALE INIZIALE A UN TASSO DI RIV CONOSCIUTO CHE MONTANTE AVRO' TRA X ANNI? | ATU19: INVESTENDO UN CAPITALE ANNUALE CONOSCIUTO, CON O SENZA CAPITALE INIZIALE A UN TASSO DI RIV CONOSCIUTO CHE MONTANTE AVRO' TRA X ANNI? | AUK19: INVESTENDO UN CAPITALE ANNUALE CONOSCIUTO, CON O SENZA CAPITALE INIZIALE A UN TASSO DI RIV CONOSCIUTO CHE MONTANTE AVRO' TRA X ANNI? | AVA19: INVESTENDO UN CAPITALE ANNUALE CONOSCIUTO, CON O SENZA CAPITALE INIZIALE A UN TASSO DI RIV CONOSCIUTO CHE MONTANTE AVRO' TRA X ANNI? | AVQ19: INVESTENDO UN CAPITALE ANNUALE CONOSCIUTO, CON O SENZA CAPITALE INIZIALE A UN TASSO DI RIV CONOSCIUTO CHE MONTANTE AVRO' TRA X ANNI? | AWG19: INVESTENDO UN CAPITALE ANNUALE CONOSCIUTO, CON O SENZA CAPITALE INIZIALE A UN TASSO DI RIV CONOSCIUTO CHE MONTANTE AVRO' TRA X ANNI? | AWW19: INVESTENDO UN CAPITALE ANNUALE CONOSCIUTO, CON O SENZA CAPITALE INIZIALE A UN TASSO DI RIV CONOSCIUTO CHE MONTANTE AVRO' TRA X ANNI? | AXM19: INVESTENDO UN CAPITALE ANNUALE CONOSCIUTO, CON O SENZA CAPITALE INIZIALE A UN TASSO DI RIV CONOSCIUTO CHE MONTANTE AVRO' TRA X ANNI? | AYC19: INVESTENDO UN CAPITALE ANNUALE CONOSCIUTO, CON O SENZA CAPITALE INIZIALE A UN TASSO DI RIV CONOSCIUTO CHE MONTANTE AVRO' TRA X ANNI? | AYS19: INVESTENDO UN CAPITALE ANNUALE CONOSCIUTO, CON O SENZA CAPITALE INIZIALE A UN TASSO DI RIV CONOSCIUTO CHE MONTANTE AVRO' TRA X ANNI? | AZI19: INVESTENDO UN CAPITALE ANNUALE CONOSCIUTO, CON O SENZA CAPITALE INIZIALE A UN TASSO DI RIV CONOSCIUTO CHE MONTANTE AVRO' TRA X ANNI? | AZY19: INVESTENDO UN CAPITALE ANNUALE CONOSCIUTO, CON O SENZA CAPITALE INIZIALE A UN TASSO DI RIV CONOSCIUTO CHE MONTANTE AVRO' TRA X ANNI? | BAO19: INVESTENDO UN CAPITALE ANNUALE CONOSCIUTO, CON O SENZA CAPITALE INIZIALE A UN TASSO DI RIV CONOSCIUTO CHE MONTANTE AVRO' TRA X ANNI? | BBE19: INVESTENDO UN CAPITALE ANNUALE CONOSCIUTO, CON O SENZA CAPITALE INIZIALE A UN TASSO DI RIV CONOSCIUTO CHE MONTANTE AVRO' TRA X ANNI? | BBU19: INVESTENDO UN CAPITALE ANNUALE CONOSCIUTO, CON O SENZA CAPITALE INIZIALE A UN TASSO DI RIV CONOSCIUTO CHE MONTANTE AVRO' TRA X ANNI? | BCK19: INVESTENDO UN CAPITALE ANNUALE CONOSCIUTO, CON O SENZA CAPITALE INIZIALE A UN TASSO DI RIV CONOSCIUTO CHE MONTANTE AVRO' TRA X ANNI? | BDA19: INVESTENDO UN CAPITALE ANNUALE CONOSCIUTO, CON O SENZA CAPITALE INIZIALE A UN TASSO DI RIV CONOSCIUTO CHE MONTANTE AVRO' TRA X ANNI? | BDQ19: INVESTENDO UN CAPITALE ANNUALE CONOSCIUTO, CON O SENZA CAPITALE INIZIALE A UN TASSO DI RIV CONOSCIUTO CHE MONTANTE AVRO' TRA X ANNI? | BEG19: INVESTENDO UN CAPITALE ANNUALE CONOSCIUTO, CON O SENZA CAPITALE INIZIALE A UN TASSO DI RIV CONOSCIUTO CHE MONTANTE AVRO' TRA X ANNI? | BEW19: INVESTENDO UN CAPITALE ANNUALE CONOSCIUTO, CON O SENZA CAPITALE INIZIALE A UN TASSO DI RIV CONOSCIUTO CHE MONTANTE AVRO' TRA X ANNI? | BFM19: INVESTENDO UN CAPITALE ANNUALE CONOSCIUTO, CON O SENZA CAPITALE INIZIALE A UN TASSO DI RIV CONOSCIUTO CHE MONTANTE AVRO' TRA X ANNI? | BGC19: INVESTENDO UN CAPITALE ANNUALE CONOSCIUTO, CON O SENZA CAPITALE INIZIALE A UN TASSO DI RIV CONOSCIUTO CHE MONTANTE AVRO' TRA X ANNI? | BGS19: INVESTENDO UN CAPITALE ANNUALE CONOSCIUTO, CON O SENZA CAPITALE INIZIALE A UN TASSO DI RIV CONOSCIUTO CHE MONTANTE AVRO' TRA X ANNI? | BHI19: INVESTENDO UN CAPITALE ANNUALE CONOSCIUTO, CON O SENZA CAPITALE INIZIALE A UN TASSO DI RIV CONOSCIUTO CHE MONTANTE AVRO' TRA X ANNI? | BHY19: INVESTENDO UN CAPITALE ANNUALE CONOSCIUTO, CON O SENZA CAPITALE INIZIALE A UN TASSO DI RIV CONOSCIUTO CHE MONTANTE AVRO' TRA X ANNI? | BIO19: INVESTENDO UN CAPITALE ANNUALE CONOSCIUTO, CON O SENZA CAPITALE INIZIALE A UN TASSO DI RIV CONOSCIUTO CHE MONTANTE AVRO' TRA X ANNI? | BJE19: INVESTENDO UN CAPITALE ANNUALE CONOSCIUTO, CON O SENZA CAPITALE INIZIALE A UN TASSO DI RIV CONOSCIUTO CHE MONTANTE AVRO' TRA X ANNI? | BJU19: INVESTENDO UN CAPITALE ANNUALE CONOSCIUTO, CON O SENZA CAPITALE INIZIALE A UN TASSO DI RIV CONOSCIUTO CHE MONTANTE AVRO' TRA X ANNI? | BKK19: INVESTENDO UN CAPITALE ANNUALE CONOSCIUTO, CON O SENZA CAPITALE INIZIALE A UN TASSO DI RIV CONOSCIUTO CHE MONTANTE AVRO' TRA X ANNI? | BLA19: INVESTENDO UN CAPITALE ANNUALE CONOSCIUTO, CON O SENZA CAPITALE INIZIALE A UN TASSO DI RIV CONOSCIUTO CHE MONTANTE AVRO' TRA X ANNI? | BLQ19: INVESTENDO UN CAPITALE ANNUALE CONOSCIUTO, CON O SENZA CAPITALE INIZIALE A UN TASSO DI RIV CONOSCIUTO CHE MONTANTE AVRO' TRA X ANNI? | BMG19: INVESTENDO UN CAPITALE ANNUALE CONOSCIUTO, CON O SENZA CAPITALE INIZIALE A UN TASSO DI RIV CONOSCIUTO CHE MONTANTE AVRO' TRA X ANNI? | BMW19: INVESTENDO UN CAPITALE ANNUALE CONOSCIUTO, CON O SENZA CAPITALE INIZIALE A UN TASSO DI RIV CONOSCIUTO CHE MONTANTE AVRO' TRA X ANNI? | BNM19: INVESTENDO UN CAPITALE ANNUALE CONOSCIUTO, CON O SENZA CAPITALE INIZIALE A UN TASSO DI RIV CONOSCIUTO CHE MONTANTE AVRO' TRA X ANNI? | BOC19: INVESTENDO UN CAPITALE ANNUALE CONOSCIUTO, CON O SENZA CAPITALE INIZIALE A UN TASSO DI RIV CONOSCIUTO CHE MONTANTE AVRO' TRA X ANNI? | BOS19: INVESTENDO UN CAPITALE ANNUALE CONOSCIUTO, CON O SENZA CAPITALE INIZIALE A UN TASSO DI RIV CONOSCIUTO CHE MONTANTE AVRO' TRA X ANNI? | BPI19: INVESTENDO UN CAPITALE ANNUALE CONOSCIUTO, CON O SENZA CAPITALE INIZIALE A UN TASSO DI RIV CONOSCIUTO CHE MONTANTE AVRO' TRA X ANNI? | BPY19: INVESTENDO UN CAPITALE ANNUALE CONOSCIUTO, CON O SENZA CAPITALE INIZIALE A UN TASSO DI RIV CONOSCIUTO CHE MONTANTE AVRO' TRA X ANNI? | BQO19: INVESTENDO UN CAPITALE ANNUALE CONOSCIUTO, CON O SENZA CAPITALE INIZIALE A UN TASSO DI RIV CONOSCIUTO CHE MONTANTE AVRO' TRA X ANNI? | BRE19: INVESTENDO UN CAPITALE ANNUALE CONOSCIUTO, CON O SENZA CAPITALE INIZIALE A UN TASSO DI RIV CONOSCIUTO CHE MONTANTE AVRO' TRA X ANNI? | BRU19: INVESTENDO UN CAPITALE ANNUALE CONOSCIUTO, CON O SENZA CAPITALE INIZIALE A UN TASSO DI RIV CONOSCIUTO CHE MONTANTE AVRO' TRA X ANNI? | BSK19: INVESTENDO UN CAPITALE ANNUALE CONOSCIUTO, CON O SENZA CAPITALE INIZIALE A UN TASSO DI RIV CONOSCIUTO CHE MONTANTE AVRO' TRA X ANNI? | BTA19: INVESTENDO UN CAPITALE ANNUALE CONOSCIUTO, CON O SENZA CAPITALE INIZIALE A UN TASSO DI RIV CONOSCIUTO CHE MONTANTE AVRO' TRA X ANNI? | BTQ19: INVESTENDO UN CAPITALE ANNUALE CONOSCIUTO, CON O SENZA CAPITALE INIZIALE A UN TASSO DI RIV CONOSCIUTO CHE MONTANTE AVRO' TRA X ANNI? | BUG19: INVESTENDO UN CAPITALE ANNUALE CONOSCIUTO, CON O SENZA CAPITALE INIZIALE A UN TASSO DI RIV CONOSCIUTO CHE MONTANTE AVRO' TRA X ANNI? | BUW19: INVESTENDO UN CAPITALE ANNUALE CONOSCIUTO, CON O SENZA CAPITALE INIZIALE A UN TASSO DI RIV CONOSCIUTO CHE MONTANTE AVRO' TRA X ANNI? | BVM19: INVESTENDO UN CAPITALE ANNUALE CONOSCIUTO, CON O SENZA CAPITALE INIZIALE A UN TASSO DI RIV CONOSCIUTO CHE MONTANTE AVRO' TRA X ANNI? | BWC19: INVESTENDO UN CAPITALE ANNUALE CONOSCIUTO, CON O SENZA CAPITALE INIZIALE A UN TASSO DI RIV CONOSCIUTO CHE MONTANTE AVRO' TRA X ANNI? | BWS19: INVESTENDO UN CAPITALE ANNUALE CONOSCIUTO, CON O SENZA CAPITALE INIZIALE A UN TASSO DI RIV CONOSCIUTO CHE MONTANTE AVRO' TRA X ANNI? | BXI19: INVESTENDO UN CAPITALE ANNUALE CONOSCIUTO, CON O SENZA CAPITALE INIZIALE A UN TASSO DI RIV CONOSCIUTO CHE MONTANTE AVRO' TRA X ANNI? | BXY19: INVESTENDO UN CAPITALE ANNUALE CONOSCIUTO, CON O SENZA CAPITALE INIZIALE A UN TASSO DI RIV CONOSCIUTO CHE MONTANTE AVRO' TRA X ANNI? | BYO19: INVESTENDO UN CAPITALE ANNUALE CONOSCIUTO, CON O SENZA CAPITALE INIZIALE A UN TASSO DI RIV CONOSCIUTO CHE MONTANTE AVRO' TRA X ANNI? | BZE19: INVESTENDO UN CAPITALE ANNUALE CONOSCIUTO, CON O SENZA CAPITALE INIZIALE A UN TASSO DI RIV CONOSCIUTO CHE MONTANTE AVRO' TRA X ANNI? | BZU19: INVESTENDO UN CAPITALE ANNUALE CONOSCIUTO, CON O SENZA CAPITALE INIZIALE A UN TASSO DI RIV CONOSCIUTO CHE MONTANTE AVRO' TRA X ANNI? | CAK19: INVESTENDO UN CAPITALE ANNUALE CONOSCIUTO, CON O SENZA CAPITALE INIZIALE A UN TASSO DI RIV CONOSCIUTO CHE MONTANTE AVRO' TRA X ANNI? | CBA19: INVESTENDO UN CAPITALE ANNUALE CONOSCIUTO, CON O SENZA CAPITALE INIZIALE A UN TASSO DI RIV CONOSCIUTO CHE MONTANTE AVRO' TRA X ANNI? | CBQ19: INVESTENDO UN CAPITALE ANNUALE CONOSCIUTO, CON O SENZA CAPITALE INIZIALE A UN TASSO DI RIV CONOSCIUTO CHE MONTANTE AVRO' TRA X ANNI? | CCG19: INVESTENDO UN CAPITALE ANNUALE CONOSCIUTO, CON O SENZA CAPITALE INIZIALE A UN TASSO DI RIV CONOSCIUTO CHE MONTANTE AVRO' TRA X ANNI? | CCW19: INVESTENDO UN CAPITALE ANNUALE CONOSCIUTO, CON O SENZA CAPITALE INIZIALE A UN TASSO DI RIV CONOSCIUTO CHE MONTANTE AVRO' TRA X ANNI? | CDM19: INVESTENDO UN CAPITALE ANNUALE CONOSCIUTO, CON O SENZA CAPITALE INIZIALE A UN TASSO DI RIV CONOSCIUTO CHE MONTANTE AVRO' TRA X ANNI? | CEC19: INVESTENDO UN CAPITALE ANNUALE CONOSCIUTO, CON O SENZA CAPITALE INIZIALE A UN TASSO DI RIV CONOSCIUTO CHE MONTANTE AVRO' TRA X ANNI? | CES19: INVESTENDO UN CAPITALE ANNUALE CONOSCIUTO, CON O SENZA CAPITALE INIZIALE A UN TASSO DI RIV CONOSCIUTO CHE MONTANTE AVRO' TRA X ANNI? | CFI19: INVESTENDO UN CAPITALE ANNUALE CONOSCIUTO, CON O SENZA CAPITALE INIZIALE A UN TASSO DI RIV CONOSCIUTO CHE MONTANTE AVRO' TRA X ANNI? | CFY19: INVESTENDO UN CAPITALE ANNUALE CONOSCIUTO, CON O SENZA CAPITALE INIZIALE A UN TASSO DI RIV CONOSCIUTO CHE MONTANTE AVRO' TRA X ANNI? | CGO19: INVESTENDO UN CAPITALE ANNUALE CONOSCIUTO, CON O SENZA CAPITALE INIZIALE A UN TASSO DI RIV CONOSCIUTO CHE MONTANTE AVRO' TRA X ANNI? | CHE19: INVESTENDO UN CAPITALE ANNUALE CONOSCIUTO, CON O SENZA CAPITALE INIZIALE A UN TASSO DI RIV CONOSCIUTO CHE MONTANTE AVRO' TRA X ANNI? | CHU19: INVESTENDO UN CAPITALE ANNUALE CONOSCIUTO, CON O SENZA CAPITALE INIZIALE A UN TASSO DI RIV CONOSCIUTO CHE MONTANTE AVRO' TRA X ANNI? | CIK19: INVESTENDO UN CAPITALE ANNUALE CONOSCIUTO, CON O SENZA CAPITALE INIZIALE A UN TASSO DI RIV CONOSCIUTO CHE MONTANTE AVRO' TRA X ANNI? | CJA19: INVESTENDO UN CAPITALE ANNUALE CONOSCIUTO, CON O SENZA CAPITALE INIZIALE A UN TASSO DI RIV CONOSCIUTO CHE MONTANTE AVRO' TRA X ANNI? | CJQ19: INVESTENDO UN CAPITALE ANNUALE CONOSCIUTO, CON O SENZA CAPITALE INIZIALE A UN TASSO DI RIV CONOSCIUTO CHE MONTANTE AVRO' TRA X ANNI? | CKG19: INVESTENDO UN CAPITALE ANNUALE CONOSCIUTO, CON O SENZA CAPITALE INIZIALE A UN TASSO DI RIV CONOSCIUTO CHE MONTANTE AVRO' TRA X ANNI? | CKW19: INVESTENDO UN CAPITALE ANNUALE CONOSCIUTO, CON O SENZA CAPITALE INIZIALE A UN TASSO DI RIV CONOSCIUTO CHE MONTANTE AVRO' TRA X ANNI? | CLM19: INVESTENDO UN CAPITALE ANNUALE CONOSCIUTO, CON O SENZA CAPITALE INIZIALE A UN TASSO DI RIV CONOSCIUTO CHE MONTANTE AVRO' TRA X ANNI? | CMC19: INVESTENDO UN CAPITALE ANNUALE CONOSCIUTO, CON O SENZA CAPITALE INIZIALE A UN TASSO DI RIV CONOSCIUTO CHE MONTANTE AVRO' TRA X ANNI? | CMS19: INVESTENDO UN CAPITALE ANNUALE CONOSCIUTO, CON O SENZA CAPITALE INIZIALE A UN TASSO DI RIV CONOSCIUTO CHE MONTANTE AVRO' TRA X ANNI? | CNI19: INVESTENDO UN CAPITALE ANNUALE CONOSCIUTO, CON O SENZA CAPITALE INIZIALE A UN TASSO DI RIV CONOSCIUTO CHE MONTANTE AVRO' TRA X ANNI? | CNY19: INVESTENDO UN CAPITALE ANNUALE CONOSCIUTO, CON O SENZA CAPITALE INIZIALE A UN TASSO DI RIV CONOSCIUTO CHE MONTANTE AVRO' TRA X ANNI? | COO19: INVESTENDO UN CAPITALE ANNUALE CONOSCIUTO, CON O SENZA CAPITALE INIZIALE A UN TASSO DI RIV CONOSCIUTO CHE MONTANTE AVRO' TRA X ANNI? | CPE19: INVESTENDO UN CAPITALE ANNUALE CONOSCIUTO, CON O SENZA CAPITALE INIZIALE A UN TASSO DI RIV CONOSCIUTO CHE MONTANTE AVRO' TRA X ANNI? | CPU19: INVESTENDO UN CAPITALE ANNUALE CONOSCIUTO, CON O SENZA CAPITALE INIZIALE A UN TASSO DI RIV CONOSCIUTO CHE MONTANTE AVRO' TRA X ANNI? | CQK19: INVESTENDO UN CAPITALE ANNUALE CONOSCIUTO, CON O SENZA CAPITALE INIZIALE A UN TASSO DI RIV CONOSCIUTO CHE MONTANTE AVRO' TRA X ANNI? | CRA19: INVESTENDO UN CAPITALE ANNUALE CONOSCIUTO, CON O SENZA CAPITALE INIZIALE A UN TASSO DI RIV CONOSCIUTO CHE MONTANTE AVRO' TRA X ANNI? | CRQ19: INVESTENDO UN CAPITALE ANNUALE CONOSCIUTO, CON O SENZA CAPITALE INIZIALE A UN TASSO DI RIV CONOSCIUTO CHE MONTANTE AVRO' TRA X ANNI? | CSG19: INVESTENDO UN CAPITALE ANNUALE CONOSCIUTO, CON O SENZA CAPITALE INIZIALE A UN TASSO DI RIV CONOSCIUTO CHE MONTANTE AVRO' TRA X ANNI? | CSW19: INVESTENDO UN CAPITALE ANNUALE CONOSCIUTO, CON O SENZA CAPITALE INIZIALE A UN TASSO DI RIV CONOSCIUTO CHE MONTANTE AVRO' TRA X ANNI? | CTM19: INVESTENDO UN CAPITALE ANNUALE CONOSCIUTO, CON O SENZA CAPITALE INIZIALE A UN TASSO DI RIV CONOSCIUTO CHE MONTANTE AVRO' TRA X ANNI? | CUC19: INVESTENDO UN CAPITALE ANNUALE CONOSCIUTO, CON O SENZA CAPITALE INIZIALE A UN TASSO DI RIV CONOSCIUTO CHE MONTANTE AVRO' TRA X ANNI? | CUS19: INVESTENDO UN CAPITALE ANNUALE CONOSCIUTO, CON O SENZA CAPITALE INIZIALE A UN TASSO DI RIV CONOSCIUTO CHE MONTANTE AVRO' TRA X ANNI? | CVI19: INVESTENDO UN CAPITALE ANNUALE CONOSCIUTO, CON O SENZA CAPITALE INIZIALE A UN TASSO DI RIV CONOSCIUTO CHE MONTANTE AVRO' TRA X ANNI? | CVY19: INVESTENDO UN CAPITALE ANNUALE CONOSCIUTO, CON O SENZA CAPITALE INIZIALE A UN TASSO DI RIV CONOSCIUTO CHE MONTANTE AVRO' TRA X ANNI? | CWO19: INVESTENDO UN CAPITALE ANNUALE CONOSCIUTO, CON O SENZA CAPITALE INIZIALE A UN TASSO DI RIV CONOSCIUTO CHE MONTANTE AVRO' TRA X ANNI? | CXE19: INVESTENDO UN CAPITALE ANNUALE CONOSCIUTO, CON O SENZA CAPITALE INIZIALE A UN TASSO DI RIV CONOSCIUTO CHE MONTANTE AVRO' TRA X ANNI? | CXU19: INVESTENDO UN CAPITALE ANNUALE CONOSCIUTO, CON O SENZA CAPITALE INIZIALE A UN TASSO DI RIV CONOSCIUTO CHE MONTANTE AVRO' TRA X ANNI? | CYK19: INVESTENDO UN CAPITALE ANNUALE CONOSCIUTO, CON O SENZA CAPITALE INIZIALE A UN TASSO DI RIV CONOSCIUTO CHE MONTANTE AVRO' TRA X ANNI? | CZA19: INVESTENDO UN CAPITALE ANNUALE CONOSCIUTO, CON O SENZA CAPITALE INIZIALE A UN TASSO DI RIV CONOSCIUTO CHE MONTANTE AVRO' TRA X ANNI? | CZQ19: INVESTENDO UN CAPITALE ANNUALE CONOSCIUTO, CON O SENZA CAPITALE INIZIALE A UN TASSO DI RIV CONOSCIUTO CHE MONTANTE AVRO' TRA X ANNI? | DAG19: INVESTENDO UN CAPITALE ANNUALE CONOSCIUTO, CON O SENZA CAPITALE INIZIALE A UN TASSO DI RIV CONOSCIUTO CHE MONTANTE AVRO' TRA X ANNI? | DAW19: INVESTENDO UN CAPITALE ANNUALE CONOSCIUTO, CON O SENZA CAPITALE INIZIALE A UN TASSO DI RIV CONOSCIUTO CHE MONTANTE AVRO' TRA X ANNI? | DBM19: INVESTENDO UN CAPITALE ANNUALE CONOSCIUTO, CON O SENZA CAPITALE INIZIALE A UN TASSO DI RIV CONOSCIUTO CHE MONTANTE AVRO' TRA X ANNI? | DCC19: INVESTENDO UN CAPITALE ANNUALE CONOSCIUTO, CON O SENZA CAPITALE INIZIALE A UN TASSO DI RIV CONOSCIUTO CHE MONTANTE AVRO' TRA X ANNI? | DCS19: INVESTENDO UN CAPITALE ANNUALE CONOSCIUTO, CON O SENZA CAPITALE INIZIALE A UN TASSO DI RIV CONOSCIUTO CHE MONTANTE AVRO' TRA X ANNI? | DDI19: INVESTENDO UN CAPITALE ANNUALE CONOSCIUTO, CON O SENZA CAPITALE INIZIALE A UN TASSO DI RIV CONOSCIUTO CHE MONTANTE AVRO' TRA X ANNI? | DDY19: INVESTENDO UN CAPITALE ANNUALE CONOSCIUTO, CON O SENZA CAPITALE INIZIALE A UN TASSO DI RIV CONOSCIUTO CHE MONTANTE AVRO' TRA X ANNI? | DEO19: INVESTENDO UN CAPITALE ANNUALE CONOSCIUTO, CON O SENZA CAPITALE INIZIALE A UN TASSO DI RIV CONOSCIUTO CHE MONTANTE AVRO' TRA X ANNI? | DFE19: INVESTENDO UN CAPITALE ANNUALE CONOSCIUTO, CON O SENZA CAPITALE INIZIALE A UN TASSO DI RIV CONOSCIUTO CHE MONTANTE AVRO' TRA X ANNI? | DFU19: INVESTENDO UN CAPITALE ANNUALE CONOSCIUTO, CON O SENZA CAPITALE INIZIALE A UN TASSO DI RIV CONOSCIUTO CHE MONTANTE AVRO' TRA X ANNI? | DGK19: INVESTENDO UN CAPITALE ANNUALE CONOSCIUTO, CON O SENZA CAPITALE INIZIALE A UN TASSO DI RIV CONOSCIUTO CHE MONTANTE AVRO' TRA X ANNI? | DHA19: INVESTENDO UN CAPITALE ANNUALE CONOSCIUTO, CON O SENZA CAPITALE INIZIALE A UN TASSO DI RIV CONOSCIUTO CHE MONTANTE AVRO' TRA X ANNI? | DHQ19: INVESTENDO UN CAPITALE ANNUALE CONOSCIUTO, CON O SENZA CAPITALE INIZIALE A UN TASSO DI RIV CONOSCIUTO CHE MONTANTE AVRO' TRA X ANNI? | DIG19: INVESTENDO UN CAPITALE ANNUALE CONOSCIUTO, CON O SENZA CAPITALE INIZIALE A UN TASSO DI RIV CONOSCIUTO CHE MONTANTE AVRO' TRA X ANNI? | DIW19: INVESTENDO UN CAPITALE ANNUALE CONOSCIUTO, CON O SENZA CAPITALE INIZIALE A UN TASSO DI RIV CONOSCIUTO CHE MONTANTE AVRO' TRA X ANNI? | DJM19: INVESTENDO UN CAPITALE ANNUALE CONOSCIUTO, CON O SENZA CAPITALE INIZIALE A UN TASSO DI RIV CONOSCIUTO CHE MONTANTE AVRO' TRA X ANNI? | DKC19: INVESTENDO UN CAPITALE ANNUALE CONOSCIUTO, CON O SENZA CAPITALE INIZIALE A UN TASSO DI RIV CONOSCIUTO CHE MONTANTE AVRO' TRA X ANNI? | DKS19: INVESTENDO UN CAPITALE ANNUALE CONOSCIUTO, CON O SENZA CAPITALE INIZIALE A UN TASSO DI RIV CONOSCIUTO CHE MONTANTE AVRO' TRA X ANNI? | DLI19: INVESTENDO UN CAPITALE ANNUALE CONOSCIUTO, CON O SENZA CAPITALE INIZIALE A UN TASSO DI RIV CONOSCIUTO CHE MONTANTE AVRO' TRA X ANNI? | DLY19: INVESTENDO UN CAPITALE ANNUALE CONOSCIUTO, CON O SENZA CAPITALE INIZIALE A UN TASSO DI RIV CONOSCIUTO CHE MONTANTE AVRO' TRA X ANNI? | DMO19: INVESTENDO UN CAPITALE ANNUALE CONOSCIUTO, CON O SENZA CAPITALE INIZIALE A UN TASSO DI RIV CONOSCIUTO CHE MONTANTE AVRO' TRA X ANNI? | DNE19: INVESTENDO UN CAPITALE ANNUALE CONOSCIUTO, CON O SENZA CAPITALE INIZIALE A UN TASSO DI RIV CONOSCIUTO CHE MONTANTE AVRO' TRA X ANNI? | DNU19: INVESTENDO UN CAPITALE ANNUALE CONOSCIUTO, CON O SENZA CAPITALE INIZIALE A UN TASSO DI RIV CONOSCIUTO CHE MONTANTE AVRO' TRA X ANNI? | DOK19: INVESTENDO UN CAPITALE ANNUALE CONOSCIUTO, CON O SENZA CAPITALE INIZIALE A UN TASSO DI RIV CONOSCIUTO CHE MONTANTE AVRO' TRA X ANNI? | DPA19: INVESTENDO UN CAPITALE ANNUALE CONOSCIUTO, CON O SENZA CAPITALE INIZIALE A UN TASSO DI RIV CONOSCIUTO CHE MONTANTE AVRO' TRA X ANNI? | DPQ19: INVESTENDO UN CAPITALE ANNUALE CONOSCIUTO, CON O SENZA CAPITALE INIZIALE A UN TASSO DI RIV CONOSCIUTO CHE MONTANTE AVRO' TRA X ANNI? | DQG19: INVESTENDO UN CAPITALE ANNUALE CONOSCIUTO, CON O SENZA CAPITALE INIZIALE A UN TASSO DI RIV CONOSCIUTO CHE MONTANTE AVRO' TRA X ANNI? | DQW19: INVESTENDO UN CAPITALE ANNUALE CONOSCIUTO, CON O SENZA CAPITALE INIZIALE A UN TASSO DI RIV CONOSCIUTO CHE MONTANTE AVRO' TRA X ANNI? | DRM19: INVESTENDO UN CAPITALE ANNUALE CONOSCIUTO, CON O SENZA CAPITALE INIZIALE A UN TASSO DI RIV CONOSCIUTO CHE MONTANTE AVRO' TRA X ANNI? | DSC19: INVESTENDO UN CAPITALE ANNUALE CONOSCIUTO, CON O SENZA CAPITALE INIZIALE A UN TASSO DI RIV CONOSCIUTO CHE MONTANTE AVRO' TRA X ANNI? | DSS19: INVESTENDO UN CAPITALE ANNUALE CONOSCIUTO, CON O SENZA CAPITALE INIZIALE A UN TASSO DI RIV CONOSCIUTO CHE MONTANTE AVRO' TRA X ANNI? | DTI19: INVESTENDO UN CAPITALE ANNUALE CONOSCIUTO, CON O SENZA CAPITALE INIZIALE A UN TASSO DI RIV CONOSCIUTO CHE MONTANTE AVRO' TRA X ANNI? | DTY19: INVESTENDO UN CAPITALE ANNUALE CONOSCIUTO, CON O SENZA CAPITALE INIZIALE A UN TASSO DI RIV CONOSCIUTO CHE MONTANTE AVRO' TRA X ANNI? | DUO19: INVESTENDO UN CAPITALE ANNUALE CONOSCIUTO, CON O SENZA CAPITALE INIZIALE A UN TASSO DI RIV CONOSCIUTO CHE MONTANTE AVRO' TRA X ANNI? | DVE19: INVESTENDO UN CAPITALE ANNUALE CONOSCIUTO, CON O SENZA CAPITALE INIZIALE A UN TASSO DI RIV CONOSCIUTO CHE MONTANTE AVRO' TRA X ANNI? | DVU19: INVESTENDO UN CAPITALE ANNUALE CONOSCIUTO, CON O SENZA CAPITALE INIZIALE A UN TASSO DI RIV CONOSCIUTO CHE MONTANTE AVRO' TRA X ANNI? | DWK19: INVESTENDO UN CAPITALE ANNUALE CONOSCIUTO, CON O SENZA CAPITALE INIZIALE A UN TASSO DI RIV CONOSCIUTO CHE MONTANTE AVRO' TRA X ANNI? | DXA19: INVESTENDO UN CAPITALE ANNUALE CONOSCIUTO, CON O SENZA CAPITALE INIZIALE A UN TASSO DI RIV CONOSCIUTO CHE MONTANTE AVRO' TRA X ANNI? | DXQ19: INVESTENDO UN CAPITALE ANNUALE CONOSCIUTO, CON O SENZA CAPITALE INIZIALE A UN TASSO DI RIV CONOSCIUTO CHE MONTANTE AVRO' TRA X ANNI? | DYG19: INVESTENDO UN CAPITALE ANNUALE CONOSCIUTO, CON O SENZA CAPITALE INIZIALE A UN TASSO DI RIV CONOSCIUTO CHE MONTANTE AVRO' TRA X ANNI? | DYW19: INVESTENDO UN CAPITALE ANNUALE CONOSCIUTO, CON O SENZA CAPITALE INIZIALE A UN TASSO DI RIV CONOSCIUTO CHE MONTANTE AVRO' TRA X ANNI? | DZM19: INVESTENDO UN CAPITALE ANNUALE CONOSCIUTO, CON O SENZA CAPITALE INIZIALE A UN TASSO DI RIV CONOSCIUTO CHE MONTANTE AVRO' TRA X ANNI? | EAC19: INVESTENDO UN CAPITALE ANNUALE CONOSCIUTO, CON O SENZA CAPITALE INIZIALE A UN TASSO DI RIV CONOSCIUTO CHE MONTANTE AVRO' TRA X ANNI? | EAS19: INVESTENDO UN CAPITALE ANNUALE CONOSCIUTO, CON O SENZA CAPITALE INIZIALE A UN TASSO DI RIV CONOSCIUTO CHE MONTANTE AVRO' TRA X ANNI? | EBI19: INVESTENDO UN CAPITALE ANNUALE CONOSCIUTO, CON O SENZA CAPITALE INIZIALE A UN TASSO DI RIV CONOSCIUTO CHE MONTANTE AVRO' TRA X ANNI? | EBY19: INVESTENDO UN CAPITALE ANNUALE CONOSCIUTO, CON O SENZA CAPITALE INIZIALE A UN TASSO DI RIV CONOSCIUTO CHE MONTANTE AVRO' TRA X ANNI? | ECO19: INVESTENDO UN CAPITALE ANNUALE CONOSCIUTO, CON O SENZA CAPITALE INIZIALE A UN TASSO DI RIV CONOSCIUTO CHE MONTANTE AVRO' TRA X ANNI? | EDE19: INVESTENDO UN CAPITALE ANNUALE CONOSCIUTO, CON O SENZA CAPITALE INIZIALE A UN TASSO DI RIV CONOSCIUTO CHE MONTANTE AVRO' TRA X ANNI? | EDU19: INVESTENDO UN CAPITALE ANNUALE CONOSCIUTO, CON O SENZA CAPITALE INIZIALE A UN TASSO DI RIV CONOSCIUTO CHE MONTANTE AVRO' TRA X ANNI? | EEK19: INVESTENDO UN CAPITALE ANNUALE CONOSCIUTO, CON O SENZA CAPITALE INIZIALE A UN TASSO DI RIV CONOSCIUTO CHE MONTANTE AVRO' TRA X ANNI? | EFA19: INVESTENDO UN CAPITALE ANNUALE CONOSCIUTO, CON O SENZA CAPITALE INIZIALE A UN TASSO DI RIV CONOSCIUTO CHE MONTANTE AVRO' TRA X ANNI? | EFQ19: INVESTENDO UN CAPITALE ANNUALE CONOSCIUTO, CON O SENZA CAPITALE INIZIALE A UN TASSO DI RIV CONOSCIUTO CHE MONTANTE AVRO' TRA X ANNI? | EGG19: INVESTENDO UN CAPITALE ANNUALE CONOSCIUTO, CON O SENZA CAPITALE INIZIALE A UN TASSO DI RIV CONOSCIUTO CHE MONTANTE AVRO' TRA X ANNI? | EGW19: INVESTENDO UN CAPITALE ANNUALE CONOSCIUTO, CON O SENZA CAPITALE INIZIALE A UN TASSO DI RIV CONOSCIUTO CHE MONTANTE AVRO' TRA X ANNI? | EHM19: INVESTENDO UN CAPITALE ANNUALE CONOSCIUTO, CON O SENZA CAPITALE INIZIALE A UN TASSO DI RIV CONOSCIUTO CHE MONTANTE AVRO' TRA X ANNI? | EIC19: INVESTENDO UN CAPITALE ANNUALE CONOSCIUTO, CON O SENZA CAPITALE INIZIALE A UN TASSO DI RIV CONOSCIUTO CHE MONTANTE AVRO' TRA X ANNI? | EIS19: INVESTENDO UN CAPITALE ANNUALE CONOSCIUTO, CON O SENZA CAPITALE INIZIALE A UN TASSO DI RIV CONOSCIUTO CHE MONTANTE AVRO' TRA X ANNI? | EJI19: INVESTENDO UN CAPITALE ANNUALE CONOSCIUTO, CON O SENZA CAPITALE INIZIALE A UN TASSO DI RIV CONOSCIUTO CHE MONTANTE AVRO' TRA X ANNI? | EJY19: INVESTENDO UN CAPITALE ANNUALE CONOSCIUTO, CON O SENZA CAPITALE INIZIALE A UN TASSO DI RIV CONOSCIUTO CHE MONTANTE AVRO' TRA X ANNI? | EKO19: INVESTENDO UN CAPITALE ANNUALE CONOSCIUTO, CON O SENZA CAPITALE INIZIALE A UN TASSO DI RIV CONOSCIUTO CHE MONTANTE AVRO' TRA X ANNI? | ELE19: INVESTENDO UN CAPITALE ANNUALE CONOSCIUTO, CON O SENZA CAPITALE INIZIALE A UN TASSO DI RIV CONOSCIUTO CHE MONTANTE AVRO' TRA X ANNI? | ELU19: INVESTENDO UN CAPITALE ANNUALE CONOSCIUTO, CON O SENZA CAPITALE INIZIALE A UN TASSO DI RIV CONOSCIUTO CHE MONTANTE AVRO' TRA X ANNI? | EMK19: INVESTENDO UN CAPITALE ANNUALE CONOSCIUTO, CON O SENZA CAPITALE INIZIALE A UN TASSO DI RIV CONOSCIUTO CHE MONTANTE AVRO' TRA X ANNI? | ENA19: INVESTENDO UN CAPITALE ANNUALE CONOSCIUTO, CON O SENZA CAPITALE INIZIALE A UN TASSO DI RIV CONOSCIUTO CHE MONTANTE AVRO' TRA X ANNI? | ENQ19: INVESTENDO UN CAPITALE ANNUALE CONOSCIUTO, CON O SENZA CAPITALE INIZIALE A UN TASSO DI RIV CONOSCIUTO CHE MONTANTE AVRO' TRA X ANNI? | EOG19: INVESTENDO UN CAPITALE ANNUALE CONOSCIUTO, CON O SENZA CAPITALE INIZIALE A UN TASSO DI RIV CONOSCIUTO CHE MONTANTE AVRO' TRA X ANNI? | EOW19: INVESTENDO UN CAPITALE ANNUALE CONOSCIUTO, CON O SENZA CAPITALE INIZIALE A UN TASSO DI RIV CONOSCIUTO CHE MONTANTE AVRO' TRA X ANNI? | EPM19: INVESTENDO UN CAPITALE ANNUALE CONOSCIUTO, CON O SENZA CAPITALE INIZIALE A UN TASSO DI RIV CONOSCIUTO CHE MONTANTE AVRO' TRA X ANNI? | EQC19: INVESTENDO UN CAPITALE ANNUALE CONOSCIUTO, CON O SENZA CAPITALE INIZIALE A UN TASSO DI RIV CONOSCIUTO CHE MONTANTE AVRO' TRA X ANNI? | EQS19: INVESTENDO UN CAPITALE ANNUALE CONOSCIUTO, CON O SENZA CAPITALE INIZIALE A UN TASSO DI RIV CONOSCIUTO CHE MONTANTE AVRO' TRA X ANNI? | ERI19: INVESTENDO UN CAPITALE ANNUALE CONOSCIUTO, CON O SENZA CAPITALE INIZIALE A UN TASSO DI RIV CONOSCIUTO CHE MONTANTE AVRO' TRA X ANNI? | ERY19: INVESTENDO UN CAPITALE ANNUALE CONOSCIUTO, CON O SENZA CAPITALE INIZIALE A UN TASSO DI RIV CONOSCIUTO CHE MONTANTE AVRO' TRA X ANNI? | ESO19: INVESTENDO UN CAPITALE ANNUALE CONOSCIUTO, CON O SENZA CAPITALE INIZIALE A UN TASSO DI RIV CONOSCIUTO CHE MONTANTE AVRO' TRA X ANNI? | ETE19: INVESTENDO UN CAPITALE ANNUALE CONOSCIUTO, CON O SENZA CAPITALE INIZIALE A UN TASSO DI RIV CONOSCIUTO CHE MONTANTE AVRO' TRA X ANNI? | ETU19: INVESTENDO UN CAPITALE ANNUALE CONOSCIUTO, CON O SENZA CAPITALE INIZIALE A UN TASSO DI RIV CONOSCIUTO CHE MONTANTE AVRO' TRA X ANNI? | EUK19: INVESTENDO UN CAPITALE ANNUALE CONOSCIUTO, CON O SENZA CAPITALE INIZIALE A UN TASSO DI RIV CONOSCIUTO CHE MONTANTE AVRO' TRA X ANNI? | EVA19: INVESTENDO UN CAPITALE ANNUALE CONOSCIUTO, CON O SENZA CAPITALE INIZIALE A UN TASSO DI RIV CONOSCIUTO CHE MONTANTE AVRO' TRA X ANNI? | EVQ19: INVESTENDO UN CAPITALE ANNUALE CONOSCIUTO, CON O SENZA CAPITALE INIZIALE A UN TASSO DI RIV CONOSCIUTO CHE MONTANTE AVRO' TRA X ANNI? | EWG19: INVESTENDO UN CAPITALE ANNUALE CONOSCIUTO, CON O SENZA CAPITALE INIZIALE A UN TASSO DI RIV CONOSCIUTO CHE MONTANTE AVRO' TRA X ANNI? | EWW19: INVESTENDO UN CAPITALE ANNUALE CONOSCIUTO, CON O SENZA CAPITALE INIZIALE A UN TASSO DI RIV CONOSCIUTO CHE MONTANTE AVRO' TRA X ANNI? | EXM19: INVESTENDO UN CAPITALE ANNUALE CONOSCIUTO, CON O SENZA CAPITALE INIZIALE A UN TASSO DI RIV CONOSCIUTO CHE MONTANTE AVRO' TRA X ANNI? | EYC19: INVESTENDO UN CAPITALE ANNUALE CONOSCIUTO, CON O SENZA CAPITALE INIZIALE A UN TASSO DI RIV CONOSCIUTO CHE MONTANTE AVRO' TRA X ANNI? | EYS19: INVESTENDO UN CAPITALE ANNUALE CONOSCIUTO, CON O SENZA CAPITALE INIZIALE A UN TASSO DI RIV CONOSCIUTO CHE MONTANTE AVRO' TRA X ANNI? | EZI19: INVESTENDO UN CAPITALE ANNUALE CONOSCIUTO, CON O SENZA CAPITALE INIZIALE A UN TASSO DI RIV CONOSCIUTO CHE MONTANTE AVRO' TRA X ANNI? | EZY19: INVESTENDO UN CAPITALE ANNUALE CONOSCIUTO, CON O SENZA CAPITALE INIZIALE A UN TASSO DI RIV CONOSCIUTO CHE MONTANTE AVRO' TRA X ANNI? | FAO19: INVESTENDO UN CAPITALE ANNUALE CONOSCIUTO, CON O SENZA CAPITALE INIZIALE A UN TASSO DI RIV CONOSCIUTO CHE MONTANTE AVRO' TRA X ANNI? | FBE19: INVESTENDO UN CAPITALE ANNUALE CONOSCIUTO, CON O SENZA CAPITALE INIZIALE A UN TASSO DI RIV CONOSCIUTO CHE MONTANTE AVRO' TRA X ANNI? | FBU19: INVESTENDO UN CAPITALE ANNUALE CONOSCIUTO, CON O SENZA CAPITALE INIZIALE A UN TASSO DI RIV CONOSCIUTO CHE MONTANTE AVRO' TRA X ANNI? | FCK19: INVESTENDO UN CAPITALE ANNUALE CONOSCIUTO, CON O SENZA CAPITALE INIZIALE A UN TASSO DI RIV CONOSCIUTO CHE MONTANTE AVRO' TRA X ANNI? | FDA19: INVESTENDO UN CAPITALE ANNUALE CONOSCIUTO, CON O SENZA CAPITALE INIZIALE A UN TASSO DI RIV CONOSCIUTO CHE MONTANTE AVRO' TRA X ANNI? | FDQ19: INVESTENDO UN CAPITALE ANNUALE CONOSCIUTO, CON O SENZA CAPITALE INIZIALE A UN TASSO DI RIV CONOSCIUTO CHE MONTANTE AVRO' TRA X ANNI? | FEG19: INVESTENDO UN CAPITALE ANNUALE CONOSCIUTO, CON O SENZA CAPITALE INIZIALE A UN TASSO DI RIV CONOSCIUTO CHE MONTANTE AVRO' TRA X ANNI? | FEW19: INVESTENDO UN CAPITALE ANNUALE CONOSCIUTO, CON O SENZA CAPITALE INIZIALE A UN TASSO DI RIV CONOSCIUTO CHE MONTANTE AVRO' TRA X ANNI? | FFM19: INVESTENDO UN CAPITALE ANNUALE CONOSCIUTO, CON O SENZA CAPITALE INIZIALE A UN TASSO DI RIV CONOSCIUTO CHE MONTANTE AVRO' TRA X ANNI? | FGC19: INVESTENDO UN CAPITALE ANNUALE CONOSCIUTO, CON O SENZA CAPITALE INIZIALE A UN TASSO DI RIV CONOSCIUTO CHE MONTANTE AVRO' TRA X ANNI? | FGS19: INVESTENDO UN CAPITALE ANNUALE CONOSCIUTO, CON O SENZA CAPITALE INIZIALE A UN TASSO DI RIV CONOSCIUTO CHE MONTANTE AVRO' TRA X ANNI? | FHI19: INVESTENDO UN CAPITALE ANNUALE CONOSCIUTO, CON O SENZA CAPITALE INIZIALE A UN TASSO DI RIV CONOSCIUTO CHE MONTANTE AVRO' TRA X ANNI? | FHY19: INVESTENDO UN CAPITALE ANNUALE CONOSCIUTO, CON O SENZA CAPITALE INIZIALE A UN TASSO DI RIV CONOSCIUTO CHE MONTANTE AVRO' TRA X ANNI? | FIO19: INVESTENDO UN CAPITALE ANNUALE CONOSCIUTO, CON O SENZA CAPITALE INIZIALE A UN TASSO DI RIV CONOSCIUTO CHE MONTANTE AVRO' TRA X ANNI? | FJE19: INVESTENDO UN CAPITALE ANNUALE CONOSCIUTO, CON O SENZA CAPITALE INIZIALE A UN TASSO DI RIV CONOSCIUTO CHE MONTANTE AVRO' TRA X ANNI? | FJU19: INVESTENDO UN CAPITALE ANNUALE CONOSCIUTO, CON O SENZA CAPITALE INIZIALE A UN TASSO DI RIV CONOSCIUTO CHE MONTANTE AVRO' TRA X ANNI? | FKK19: INVESTENDO UN CAPITALE ANNUALE CONOSCIUTO, CON O SENZA CAPITALE INIZIALE A UN TASSO DI RIV CONOSCIUTO CHE MONTANTE AVRO' TRA X ANNI? | FLA19: INVESTENDO UN CAPITALE ANNUALE CONOSCIUTO, CON O SENZA CAPITALE INIZIALE A UN TASSO DI RIV CONOSCIUTO CHE MONTANTE AVRO' TRA X ANNI? | FLQ19: INVESTENDO UN CAPITALE ANNUALE CONOSCIUTO, CON O SENZA CAPITALE INIZIALE A UN TASSO DI RIV CONOSCIUTO CHE MONTANTE AVRO' TRA X ANNI? | FMG19: INVESTENDO UN CAPITALE ANNUALE CONOSCIUTO, CON O SENZA CAPITALE INIZIALE A UN TASSO DI RIV CONOSCIUTO CHE MONTANTE AVRO' TRA X ANNI? | FMW19: INVESTENDO UN CAPITALE ANNUALE CONOSCIUTO, CON O SENZA CAPITALE INIZIALE A UN TASSO DI RIV CONOSCIUTO CHE MONTANTE AVRO' TRA X ANNI? | FNM19: INVESTENDO UN CAPITALE ANNUALE CONOSCIUTO, CON O SENZA CAPITALE INIZIALE A UN TASSO DI RIV CONOSCIUTO CHE MONTANTE AVRO' TRA X ANNI? | FOC19: INVESTENDO UN CAPITALE ANNUALE CONOSCIUTO, CON O SENZA CAPITALE INIZIALE A UN TASSO DI RIV CONOSCIUTO CHE MONTANTE AVRO' TRA X ANNI? | FOS19: INVESTENDO UN CAPITALE ANNUALE CONOSCIUTO, CON O SENZA CAPITALE INIZIALE A UN TASSO DI RIV CONOSCIUTO CHE MONTANTE AVRO' TRA X ANNI? | FPI19: INVESTENDO UN CAPITALE ANNUALE CONOSCIUTO, CON O SENZA CAPITALE INIZIALE A UN TASSO DI RIV CONOSCIUTO CHE MONTANTE AVRO' TRA X ANNI? | FPY19: INVESTENDO UN CAPITALE ANNUALE CONOSCIUTO, CON O SENZA CAPITALE INIZIALE A UN TASSO DI RIV CONOSCIUTO CHE MONTANTE AVRO' TRA X ANNI? | FQO19: INVESTENDO UN CAPITALE ANNUALE CONOSCIUTO, CON O SENZA CAPITALE INIZIALE A UN TASSO DI RIV CONOSCIUTO CHE MONTANTE AVRO' TRA X ANNI? | FRE19: INVESTENDO UN CAPITALE ANNUALE CONOSCIUTO, CON O SENZA CAPITALE INIZIALE A UN TASSO DI RIV CONOSCIUTO CHE MONTANTE AVRO' TRA X ANNI? | FRU19: INVESTENDO UN CAPITALE ANNUALE CONOSCIUTO, CON O SENZA CAPITALE INIZIALE A UN TASSO DI RIV CONOSCIUTO CHE MONTANTE AVRO' TRA X ANNI? | FSK19: INVESTENDO UN CAPITALE ANNUALE CONOSCIUTO, CON O SENZA CAPITALE INIZIALE A UN TASSO DI RIV CONOSCIUTO CHE MONTANTE AVRO' TRA X ANNI? | FTA19: INVESTENDO UN CAPITALE ANNUALE CONOSCIUTO, CON O SENZA CAPITALE INIZIALE A UN TASSO DI RIV CONOSCIUTO CHE MONTANTE AVRO' TRA X ANNI? | FTQ19: INVESTENDO UN CAPITALE ANNUALE CONOSCIUTO, CON O SENZA CAPITALE INIZIALE A UN TASSO DI RIV CONOSCIUTO CHE MONTANTE AVRO' TRA X ANNI? | FUG19: INVESTENDO UN CAPITALE ANNUALE CONOSCIUTO, CON O SENZA CAPITALE INIZIALE A UN TASSO DI RIV CONOSCIUTO CHE MONTANTE AVRO' TRA X ANNI? | FUW19: INVESTENDO UN CAPITALE ANNUALE CONOSCIUTO, CON O SENZA CAPITALE INIZIALE A UN TASSO DI RIV CONOSCIUTO CHE MONTANTE AVRO' TRA X ANNI? | FVM19: INVESTENDO UN CAPITALE ANNUALE CONOSCIUTO, CON O SENZA CAPITALE INIZIALE A UN TASSO DI RIV CONOSCIUTO CHE MONTANTE AVRO' TRA X ANNI? | FWC19: INVESTENDO UN CAPITALE ANNUALE CONOSCIUTO, CON O SENZA CAPITALE INIZIALE A UN TASSO DI RIV CONOSCIUTO CHE MONTANTE AVRO' TRA X ANNI? | FWS19: INVESTENDO UN CAPITALE ANNUALE CONOSCIUTO, CON O SENZA CAPITALE INIZIALE A UN TASSO DI RIV CONOSCIUTO CHE MONTANTE AVRO' TRA X ANNI? | FXI19: INVESTENDO UN CAPITALE ANNUALE CONOSCIUTO, CON O SENZA CAPITALE INIZIALE A UN TASSO DI RIV CONOSCIUTO CHE MONTANTE AVRO' TRA X ANNI? | FXY19: INVESTENDO UN CAPITALE ANNUALE CONOSCIUTO, CON O SENZA CAPITALE INIZIALE A UN TASSO DI RIV CONOSCIUTO CHE MONTANTE AVRO' TRA X ANNI? | FYO19: INVESTENDO UN CAPITALE ANNUALE CONOSCIUTO, CON O SENZA CAPITALE INIZIALE A UN TASSO DI RIV CONOSCIUTO CHE MONTANTE AVRO' TRA X ANNI? | FZE19: INVESTENDO UN CAPITALE ANNUALE CONOSCIUTO, CON O SENZA CAPITALE INIZIALE A UN TASSO DI RIV CONOSCIUTO CHE MONTANTE AVRO' TRA X ANNI? | FZU19: INVESTENDO UN CAPITALE ANNUALE CONOSCIUTO, CON O SENZA CAPITALE INIZIALE A UN TASSO DI RIV CONOSCIUTO CHE MONTANTE AVRO' TRA X ANNI? | GAK19: INVESTENDO UN CAPITALE ANNUALE CONOSCIUTO, CON O SENZA CAPITALE INIZIALE A UN TASSO DI RIV CONOSCIUTO CHE MONTANTE AVRO' TRA X ANNI? | GBA19: INVESTENDO UN CAPITALE ANNUALE CONOSCIUTO, CON O SENZA CAPITALE INIZIALE A UN TASSO DI RIV CONOSCIUTO CHE MONTANTE AVRO' TRA X ANNI? | GBQ19: INVESTENDO UN CAPITALE ANNUALE CONOSCIUTO, CON O SENZA CAPITALE INIZIALE A UN TASSO DI RIV CONOSCIUTO CHE MONTANTE AVRO' TRA X ANNI? | GCG19: INVESTENDO UN CAPITALE ANNUALE CONOSCIUTO, CON O SENZA CAPITALE INIZIALE A UN TASSO DI RIV CONOSCIUTO CHE MONTANTE AVRO' TRA X ANNI? | GCW19: INVESTENDO UN CAPITALE ANNUALE CONOSCIUTO, CON O SENZA CAPITALE INIZIALE A UN TASSO DI RIV CONOSCIUTO CHE MONTANTE AVRO' TRA X ANNI? | GDM19: INVESTENDO UN CAPITALE ANNUALE CONOSCIUTO, CON O SENZA CAPITALE INIZIALE A UN TASSO DI RIV CONOSCIUTO CHE MONTANTE AVRO' TRA X ANNI? | GEC19: INVESTENDO UN CAPITALE ANNUALE CONOSCIUTO, CON O SENZA CAPITALE INIZIALE A UN TASSO DI RIV CONOSCIUTO CHE MONTANTE AVRO' TRA X ANNI? | GES19: INVESTENDO UN CAPITALE ANNUALE CONOSCIUTO, CON O SENZA CAPITALE INIZIALE A UN TASSO DI RIV CONOSCIUTO CHE MONTANTE AVRO' TRA X ANNI? | GFI19: INVESTENDO UN CAPITALE ANNUALE CONOSCIUTO, CON O SENZA CAPITALE INIZIALE A UN TASSO DI RIV CONOSCIUTO CHE MONTANTE AVRO' TRA X ANNI? | GFY19: INVESTENDO UN CAPITALE ANNUALE CONOSCIUTO, CON O SENZA CAPITALE INIZIALE A UN TASSO DI RIV CONOSCIUTO CHE MONTANTE AVRO' TRA X ANNI? | GGO19: INVESTENDO UN CAPITALE ANNUALE CONOSCIUTO, CON O SENZA CAPITALE INIZIALE A UN TASSO DI RIV CONOSCIUTO CHE MONTANTE AVRO' TRA X ANNI? | GHE19: INVESTENDO UN CAPITALE ANNUALE CONOSCIUTO, CON O SENZA CAPITALE INIZIALE A UN TASSO DI RIV CONOSCIUTO CHE MONTANTE AVRO' TRA X ANNI? | GHU19: INVESTENDO UN CAPITALE ANNUALE CONOSCIUTO, CON O SENZA CAPITALE INIZIALE A UN TASSO DI RIV CONOSCIUTO CHE MONTANTE AVRO' TRA X ANNI? | GIK19: INVESTENDO UN CAPITALE ANNUALE CONOSCIUTO, CON O SENZA CAPITALE INIZIALE A UN TASSO DI RIV CONOSCIUTO CHE MONTANTE AVRO' TRA X ANNI? | GJA19: INVESTENDO UN CAPITALE ANNUALE CONOSCIUTO, CON O SENZA CAPITALE INIZIALE A UN TASSO DI RIV CONOSCIUTO CHE MONTANTE AVRO' TRA X ANNI? | GJQ19: INVESTENDO UN CAPITALE ANNUALE CONOSCIUTO, CON O SENZA CAPITALE INIZIALE A UN TASSO DI RIV CONOSCIUTO CHE MONTANTE AVRO' TRA X ANNI? | GKG19: INVESTENDO UN CAPITALE ANNUALE CONOSCIUTO, CON O SENZA CAPITALE INIZIALE A UN TASSO DI RIV CONOSCIUTO CHE MONTANTE AVRO' TRA X ANNI? | GKW19: INVESTENDO UN CAPITALE ANNUALE CONOSCIUTO, CON O SENZA CAPITALE INIZIALE A UN TASSO DI RIV CONOSCIUTO CHE MONTANTE AVRO' TRA X ANNI? | GLM19: INVESTENDO UN CAPITALE ANNUALE CONOSCIUTO, CON O SENZA CAPITALE INIZIALE A UN TASSO DI RIV CONOSCIUTO CHE MONTANTE AVRO' TRA X ANNI? | GMC19: INVESTENDO UN CAPITALE ANNUALE CONOSCIUTO, CON O SENZA CAPITALE INIZIALE A UN TASSO DI RIV CONOSCIUTO CHE MONTANTE AVRO' TRA X ANNI? | GMS19: INVESTENDO UN CAPITALE ANNUALE CONOSCIUTO, CON O SENZA CAPITALE INIZIALE A UN TASSO DI RIV CONOSCIUTO CHE MONTANTE AVRO' TRA X ANNI? | GNI19: INVESTENDO UN CAPITALE ANNUALE CONOSCIUTO, CON O SENZA CAPITALE INIZIALE A UN TASSO DI RIV CONOSCIUTO CHE MONTANTE AVRO' TRA X ANNI? | GNY19: INVESTENDO UN CAPITALE ANNUALE CONOSCIUTO, CON O SENZA CAPITALE INIZIALE A UN TASSO DI RIV CONOSCIUTO CHE MONTANTE AVRO' TRA X ANNI? | GOO19: INVESTENDO UN CAPITALE ANNUALE CONOSCIUTO, CON O SENZA CAPITALE INIZIALE A UN TASSO DI RIV CONOSCIUTO CHE MONTANTE AVRO' TRA X ANNI? | GPE19: INVESTENDO UN CAPITALE ANNUALE CONOSCIUTO, CON O SENZA CAPITALE INIZIALE A UN TASSO DI RIV CONOSCIUTO CHE MONTANTE AVRO' TRA X ANNI? | GPU19: INVESTENDO UN CAPITALE ANNUALE CONOSCIUTO, CON O SENZA CAPITALE INIZIALE A UN TASSO DI RIV CONOSCIUTO CHE MONTANTE AVRO' TRA X ANNI? | GQK19: INVESTENDO UN CAPITALE ANNUALE CONOSCIUTO, CON O SENZA CAPITALE INIZIALE A UN TASSO DI RIV CONOSCIUTO CHE MONTANTE AVRO' TRA X ANNI? | GRA19: INVESTENDO UN CAPITALE ANNUALE CONOSCIUTO, CON O SENZA CAPITALE INIZIALE A UN TASSO DI RIV CONOSCIUTO CHE MONTANTE AVRO' TRA X ANNI? | GRQ19: INVESTENDO UN CAPITALE ANNUALE CONOSCIUTO, CON O SENZA CAPITALE INIZIALE A UN TASSO DI RIV CONOSCIUTO CHE MONTANTE AVRO' TRA X ANNI? | GSG19: INVESTENDO UN CAPITALE ANNUALE CONOSCIUTO, CON O SENZA CAPITALE INIZIALE A UN TASSO DI RIV CONOSCIUTO CHE MONTANTE AVRO' TRA X ANNI? | GSW19: INVESTENDO UN CAPITALE ANNUALE CONOSCIUTO, CON O SENZA CAPITALE INIZIALE A UN TASSO DI RIV CONOSCIUTO CHE MONTANTE AVRO' TRA X ANNI? | GTM19: INVESTENDO UN CAPITALE ANNUALE CONOSCIUTO, CON O SENZA CAPITALE INIZIALE A UN TASSO DI RIV CONOSCIUTO CHE MONTANTE AVRO' TRA X ANNI? | GUC19: INVESTENDO UN CAPITALE ANNUALE CONOSCIUTO, CON O SENZA CAPITALE INIZIALE A UN TASSO DI RIV CONOSCIUTO CHE MONTANTE AVRO' TRA X ANNI? | GUS19: INVESTENDO UN CAPITALE ANNUALE CONOSCIUTO, CON O SENZA CAPITALE INIZIALE A UN TASSO DI RIV CONOSCIUTO CHE MONTANTE AVRO' TRA X ANNI? | GVI19: INVESTENDO UN CAPITALE ANNUALE CONOSCIUTO, CON O SENZA CAPITALE INIZIALE A UN TASSO DI RIV CONOSCIUTO CHE MONTANTE AVRO' TRA X ANNI? | GVY19: INVESTENDO UN CAPITALE ANNUALE CONOSCIUTO, CON O SENZA CAPITALE INIZIALE A UN TASSO DI RIV CONOSCIUTO CHE MONTANTE AVRO' TRA X ANNI? | GWO19: INVESTENDO UN CAPITALE ANNUALE CONOSCIUTO, CON O SENZA CAPITALE INIZIALE A UN TASSO DI RIV CONOSCIUTO CHE MONTANTE AVRO' TRA X ANNI? | GXE19: INVESTENDO UN CAPITALE ANNUALE CONOSCIUTO, CON O SENZA CAPITALE INIZIALE A UN TASSO DI RIV CONOSCIUTO CHE MONTANTE AVRO' TRA X ANNI? | GXU19: INVESTENDO UN CAPITALE ANNUALE CONOSCIUTO, CON O SENZA CAPITALE INIZIALE A UN TASSO DI RIV CONOSCIUTO CHE MONTANTE AVRO' TRA X ANNI? | GYK19: INVESTENDO UN CAPITALE ANNUALE CONOSCIUTO, CON O SENZA CAPITALE INIZIALE A UN TASSO DI RIV CONOSCIUTO CHE MONTANTE AVRO' TRA X ANNI? | GZA19: INVESTENDO UN CAPITALE ANNUALE CONOSCIUTO, CON O SENZA CAPITALE INIZIALE A UN TASSO DI RIV CONOSCIUTO CHE MONTANTE AVRO' TRA X ANNI? | GZQ19: INVESTENDO UN CAPITALE ANNUALE CONOSCIUTO, CON O SENZA CAPITALE INIZIALE A UN TASSO DI RIV CONOSCIUTO CHE MONTANTE AVRO' TRA X ANNI? | HAG19: INVESTENDO UN CAPITALE ANNUALE CONOSCIUTO, CON O SENZA CAPITALE INIZIALE A UN TASSO DI RIV CONOSCIUTO CHE MONTANTE AVRO' TRA X ANNI? | HAW19: INVESTENDO UN CAPITALE ANNUALE CONOSCIUTO, CON O SENZA CAPITALE INIZIALE A UN TASSO DI RIV CONOSCIUTO CHE MONTANTE AVRO' TRA X ANNI? | HBM19: INVESTENDO UN CAPITALE ANNUALE CONOSCIUTO, CON O SENZA CAPITALE INIZIALE A UN TASSO DI RIV CONOSCIUTO CHE MONTANTE AVRO' TRA X ANNI? | HCC19: INVESTENDO UN CAPITALE ANNUALE CONOSCIUTO, CON O SENZA CAPITALE INIZIALE A UN TASSO DI RIV CONOSCIUTO CHE MONTANTE AVRO' TRA X ANNI? | HCS19: INVESTENDO UN CAPITALE ANNUALE CONOSCIUTO, CON O SENZA CAPITALE INIZIALE A UN TASSO DI RIV CONOSCIUTO CHE MONTANTE AVRO' TRA X ANNI? | HDI19: INVESTENDO UN CAPITALE ANNUALE CONOSCIUTO, CON O SENZA CAPITALE INIZIALE A UN TASSO DI RIV CONOSCIUTO CHE MONTANTE AVRO' TRA X ANNI? | HDY19: INVESTENDO UN CAPITALE ANNUALE CONOSCIUTO, CON O SENZA CAPITALE INIZIALE A UN TASSO DI RIV CONOSCIUTO CHE MONTANTE AVRO' TRA X ANNI? | HEO19: INVESTENDO UN CAPITALE ANNUALE CONOSCIUTO, CON O SENZA CAPITALE INIZIALE A UN TASSO DI RIV CONOSCIUTO CHE MONTANTE AVRO' TRA X ANNI? | HFE19: INVESTENDO UN CAPITALE ANNUALE CONOSCIUTO, CON O SENZA CAPITALE INIZIALE A UN TASSO DI RIV CONOSCIUTO CHE MONTANTE AVRO' TRA X ANNI? | HFU19: INVESTENDO UN CAPITALE ANNUALE CONOSCIUTO, CON O SENZA CAPITALE INIZIALE A UN TASSO DI RIV CONOSCIUTO CHE MONTANTE AVRO' TRA X ANNI? | HGK19: INVESTENDO UN CAPITALE ANNUALE CONOSCIUTO, CON O SENZA CAPITALE INIZIALE A UN TASSO DI RIV CONOSCIUTO CHE MONTANTE AVRO' TRA X ANNI? | HHA19: INVESTENDO UN CAPITALE ANNUALE CONOSCIUTO, CON O SENZA CAPITALE INIZIALE A UN TASSO DI RIV CONOSCIUTO CHE MONTANTE AVRO' TRA X ANNI? | HHQ19: INVESTENDO UN CAPITALE ANNUALE CONOSCIUTO, CON O SENZA CAPITALE INIZIALE A UN TASSO DI RIV CONOSCIUTO CHE MONTANTE AVRO' TRA X ANNI? | HIG19: INVESTENDO UN CAPITALE ANNUALE CONOSCIUTO, CON O SENZA CAPITALE INIZIALE A UN TASSO DI RIV CONOSCIUTO CHE MONTANTE AVRO' TRA X ANNI? | HIW19: INVESTENDO UN CAPITALE ANNUALE CONOSCIUTO, CON O SENZA CAPITALE INIZIALE A UN TASSO DI RIV CONOSCIUTO CHE MONTANTE AVRO' TRA X ANNI? | HJM19: INVESTENDO UN CAPITALE ANNUALE CONOSCIUTO, CON O SENZA CAPITALE INIZIALE A UN TASSO DI RIV CONOSCIUTO CHE MONTANTE AVRO' TRA X ANNI? | HKC19: INVESTENDO UN CAPITALE ANNUALE CONOSCIUTO, CON O SENZA CAPITALE INIZIALE A UN TASSO DI RIV CONOSCIUTO CHE MONTANTE AVRO' TRA X ANNI? | HKS19: INVESTENDO UN CAPITALE ANNUALE CONOSCIUTO, CON O SENZA CAPITALE INIZIALE A UN TASSO DI RIV CONOSCIUTO CHE MONTANTE AVRO' TRA X ANNI? | HLI19: INVESTENDO UN CAPITALE ANNUALE CONOSCIUTO, CON O SENZA CAPITALE INIZIALE A UN TASSO DI RIV CONOSCIUTO CHE MONTANTE AVRO' TRA X ANNI? | HLY19: INVESTENDO UN CAPITALE ANNUALE CONOSCIUTO, CON O SENZA CAPITALE INIZIALE A UN TASSO DI RIV CONOSCIUTO CHE MONTANTE AVRO' TRA X ANNI? | HMO19: INVESTENDO UN CAPITALE ANNUALE CONOSCIUTO, CON O SENZA CAPITALE INIZIALE A UN TASSO DI RIV CONOSCIUTO CHE MONTANTE AVRO' TRA X ANNI? | HNE19: INVESTENDO UN CAPITALE ANNUALE CONOSCIUTO, CON O SENZA CAPITALE INIZIALE A UN TASSO DI RIV CONOSCIUTO CHE MONTANTE AVRO' TRA X ANNI? | HNU19: INVESTENDO UN CAPITALE ANNUALE CONOSCIUTO, CON O SENZA CAPITALE INIZIALE A UN TASSO DI RIV CONOSCIUTO CHE MONTANTE AVRO' TRA X ANNI? | HOK19: INVESTENDO UN CAPITALE ANNUALE CONOSCIUTO, CON O SENZA CAPITALE INIZIALE A UN TASSO DI RIV CONOSCIUTO CHE MONTANTE AVRO' TRA X ANNI? | HPA19: INVESTENDO UN CAPITALE ANNUALE CONOSCIUTO, CON O SENZA CAPITALE INIZIALE A UN TASSO DI RIV CONOSCIUTO CHE MONTANTE AVRO' TRA X ANNI? | HPQ19: INVESTENDO UN CAPITALE ANNUALE CONOSCIUTO, CON O SENZA CAPITALE INIZIALE A UN TASSO DI RIV CONOSCIUTO CHE MONTANTE AVRO' TRA X ANNI? | HQG19: INVESTENDO UN CAPITALE ANNUALE CONOSCIUTO, CON O SENZA CAPITALE INIZIALE A UN TASSO DI RIV CONOSCIUTO CHE MONTANTE AVRO' TRA X ANNI? | HQW19: INVESTENDO UN CAPITALE ANNUALE CONOSCIUTO, CON O SENZA CAPITALE INIZIALE A UN TASSO DI RIV CONOSCIUTO CHE MONTANTE AVRO' TRA X ANNI? | HRM19: INVESTENDO UN CAPITALE ANNUALE CONOSCIUTO, CON O SENZA CAPITALE INIZIALE A UN TASSO DI RIV CONOSCIUTO CHE MONTANTE AVRO' TRA X ANNI? | HSC19: INVESTENDO UN CAPITALE ANNUALE CONOSCIUTO, CON O SENZA CAPITALE INIZIALE A UN TASSO DI RIV CONOSCIUTO CHE MONTANTE AVRO' TRA X ANNI? | HSS19: INVESTENDO UN CAPITALE ANNUALE CONOSCIUTO, CON O SENZA CAPITALE INIZIALE A UN TASSO DI RIV CONOSCIUTO CHE MONTANTE AVRO' TRA X ANNI? | HTI19: INVESTENDO UN CAPITALE ANNUALE CONOSCIUTO, CON O SENZA CAPITALE INIZIALE A UN TASSO DI RIV CONOSCIUTO CHE MONTANTE AVRO' TRA X ANNI? | HTY19: INVESTENDO UN CAPITALE ANNUALE CONOSCIUTO, CON O SENZA CAPITALE INIZIALE A UN TASSO DI RIV CONOSCIUTO CHE MONTANTE AVRO' TRA X ANNI? | HUO19: INVESTENDO UN CAPITALE ANNUALE CONOSCIUTO, CON O SENZA CAPITALE INIZIALE A UN TASSO DI RIV CONOSCIUTO CHE MONTANTE AVRO' TRA X ANNI? | HVE19: INVESTENDO UN CAPITALE ANNUALE CONOSCIUTO, CON O SENZA CAPITALE INIZIALE A UN TASSO DI RIV CONOSCIUTO CHE MONTANTE AVRO' TRA X ANNI? | HVU19: INVESTENDO UN CAPITALE ANNUALE CONOSCIUTO, CON O SENZA CAPITALE INIZIALE A UN TASSO DI RIV CONOSCIUTO CHE MONTANTE AVRO' TRA X ANNI? | HWK19: INVESTENDO UN CAPITALE ANNUALE CONOSCIUTO, CON O SENZA CAPITALE INIZIALE A UN TASSO DI RIV CONOSCIUTO CHE MONTANTE AVRO' TRA X ANNI? | HXA19: INVESTENDO UN CAPITALE ANNUALE CONOSCIUTO, CON O SENZA CAPITALE INIZIALE A UN TASSO DI RIV CONOSCIUTO CHE MONTANTE AVRO' TRA X ANNI? | HXQ19: INVESTENDO UN CAPITALE ANNUALE CONOSCIUTO, CON O SENZA CAPITALE INIZIALE A UN TASSO DI RIV CONOSCIUTO CHE MONTANTE AVRO' TRA X ANNI? | HYG19: INVESTENDO UN CAPITALE ANNUALE CONOSCIUTO, CON O SENZA CAPITALE INIZIALE A UN TASSO DI RIV CONOSCIUTO CHE MONTANTE AVRO' TRA X ANNI? | HYW19: INVESTENDO UN CAPITALE ANNUALE CONOSCIUTO, CON O SENZA CAPITALE INIZIALE A UN TASSO DI RIV CONOSCIUTO CHE MONTANTE AVRO' TRA X ANNI? | HZM19: INVESTENDO UN CAPITALE ANNUALE CONOSCIUTO, CON O SENZA CAPITALE INIZIALE A UN TASSO DI RIV CONOSCIUTO CHE MONTANTE AVRO' TRA X ANNI? | IAC19: INVESTENDO UN CAPITALE ANNUALE CONOSCIUTO, CON O SENZA CAPITALE INIZIALE A UN TASSO DI RIV CONOSCIUTO CHE MONTANTE AVRO' TRA X ANNI? | IAS19: INVESTENDO UN CAPITALE ANNUALE CONOSCIUTO, CON O SENZA CAPITALE INIZIALE A UN TASSO DI RIV CONOSCIUTO CHE MONTANTE AVRO' TRA X ANNI? | IBI19: INVESTENDO UN CAPITALE ANNUALE CONOSCIUTO, CON O SENZA CAPITALE INIZIALE A UN TASSO DI RIV CONOSCIUTO CHE MONTANTE AVRO' TRA X ANNI? | IBY19: INVESTENDO UN CAPITALE ANNUALE CONOSCIUTO, CON O SENZA CAPITALE INIZIALE A UN TASSO DI RIV CONOSCIUTO CHE MONTANTE AVRO' TRA X ANNI? | ICO19: INVESTENDO UN CAPITALE ANNUALE CONOSCIUTO, CON O SENZA CAPITALE INIZIALE A UN TASSO DI RIV CONOSCIUTO CHE MONTANTE AVRO' TRA X ANNI? | IDE19: INVESTENDO UN CAPITALE ANNUALE CONOSCIUTO, CON O SENZA CAPITALE INIZIALE A UN TASSO DI RIV CONOSCIUTO CHE MONTANTE AVRO' TRA X ANNI? | IDU19: INVESTENDO UN CAPITALE ANNUALE CONOSCIUTO, CON O SENZA CAPITALE INIZIALE A UN TASSO DI RIV CONOSCIUTO CHE MONTANTE AVRO' TRA X ANNI? | IEK19: INVESTENDO UN CAPITALE ANNUALE CONOSCIUTO, CON O SENZA CAPITALE INIZIALE A UN TASSO DI RIV CONOSCIUTO CHE MONTANTE AVRO' TRA X ANNI? | IFA19: INVESTENDO UN CAPITALE ANNUALE CONOSCIUTO, CON O SENZA CAPITALE INIZIALE A UN TASSO DI RIV CONOSCIUTO CHE MONTANTE AVRO' TRA X ANNI? | IFQ19: INVESTENDO UN CAPITALE ANNUALE CONOSCIUTO, CON O SENZA CAPITALE INIZIALE A UN TASSO DI RIV CONOSCIUTO CHE MONTANTE AVRO' TRA X ANNI? | IGG19: INVESTENDO UN CAPITALE ANNUALE CONOSCIUTO, CON O SENZA CAPITALE INIZIALE A UN TASSO DI RIV CONOSCIUTO CHE MONTANTE AVRO' TRA X ANNI? | IGW19: INVESTENDO UN CAPITALE ANNUALE CONOSCIUTO, CON O SENZA CAPITALE INIZIALE A UN TASSO DI RIV CONOSCIUTO CHE MONTANTE AVRO' TRA X ANNI? | IHM19: INVESTENDO UN CAPITALE ANNUALE CONOSCIUTO, CON O SENZA CAPITALE INIZIALE A UN TASSO DI RIV CONOSCIUTO CHE MONTANTE AVRO' TRA X ANNI? | IIC19: INVESTENDO UN CAPITALE ANNUALE CONOSCIUTO, CON O SENZA CAPITALE INIZIALE A UN TASSO DI RIV CONOSCIUTO CHE MONTANTE AVRO' TRA X ANNI? | IIS19: INVESTENDO UN CAPITALE ANNUALE CONOSCIUTO, CON O SENZA CAPITALE INIZIALE A UN TASSO DI RIV CONOSCIUTO CHE MONTANTE AVRO' TRA X ANNI? | IJI19: INVESTENDO UN CAPITALE ANNUALE CONOSCIUTO, CON O SENZA CAPITALE INIZIALE A UN TASSO DI RIV CONOSCIUTO CHE MONTANTE AVRO' TRA X ANNI? | IJY19: INVESTENDO UN CAPITALE ANNUALE CONOSCIUTO, CON O SENZA CAPITALE INIZIALE A UN TASSO DI RIV CONOSCIUTO CHE MONTANTE AVRO' TRA X ANNI? | IKO19: INVESTENDO UN CAPITALE ANNUALE CONOSCIUTO, CON O SENZA CAPITALE INIZIALE A UN TASSO DI RIV CONOSCIUTO CHE MONTANTE AVRO' TRA X ANNI? | ILE19: INVESTENDO UN CAPITALE ANNUALE CONOSCIUTO, CON O SENZA CAPITALE INIZIALE A UN TASSO DI RIV CONOSCIUTO CHE MONTANTE AVRO' TRA X ANNI? | ILU19: INVESTENDO UN CAPITALE ANNUALE CONOSCIUTO, CON O SENZA CAPITALE INIZIALE A UN TASSO DI RIV CONOSCIUTO CHE MONTANTE AVRO' TRA X ANNI? | IMK19: INVESTENDO UN CAPITALE ANNUALE CONOSCIUTO, CON O SENZA CAPITALE INIZIALE A UN TASSO DI RIV CONOSCIUTO CHE MONTANTE AVRO' TRA X ANNI? | INA19: INVESTENDO UN CAPITALE ANNUALE CONOSCIUTO, CON O SENZA CAPITALE INIZIALE A UN TASSO DI RIV CONOSCIUTO CHE MONTANTE AVRO' TRA X ANNI? | INQ19: INVESTENDO UN CAPITALE ANNUALE CONOSCIUTO, CON O SENZA CAPITALE INIZIALE A UN TASSO DI RIV CONOSCIUTO CHE MONTANTE AVRO' TRA X ANNI? | IOG19: INVESTENDO UN CAPITALE ANNUALE CONOSCIUTO, CON O SENZA CAPITALE INIZIALE A UN TASSO DI RIV CONOSCIUTO CHE MONTANTE AVRO' TRA X ANNI? | IOW19: INVESTENDO UN CAPITALE ANNUALE CONOSCIUTO, CON O SENZA CAPITALE INIZIALE A UN TASSO DI RIV CONOSCIUTO CHE MONTANTE AVRO' TRA X ANNI? | IPM19: INVESTENDO UN CAPITALE ANNUALE CONOSCIUTO, CON O SENZA CAPITALE INIZIALE A UN TASSO DI RIV CONOSCIUTO CHE MONTANTE AVRO' TRA X ANNI? | IQC19: INVESTENDO UN CAPITALE ANNUALE CONOSCIUTO, CON O SENZA CAPITALE INIZIALE A UN TASSO DI RIV CONOSCIUTO CHE MONTANTE AVRO' TRA X ANNI? | IQS19: INVESTENDO UN CAPITALE ANNUALE CONOSCIUTO, CON O SENZA CAPITALE INIZIALE A UN TASSO DI RIV CONOSCIUTO CHE MONTANTE AVRO' TRA X ANNI? | IRI19: INVESTENDO UN CAPITALE ANNUALE CONOSCIUTO, CON O SENZA CAPITALE INIZIALE A UN TASSO DI RIV CONOSCIUTO CHE MONTANTE AVRO' TRA X ANNI? | IRY19: INVESTENDO UN CAPITALE ANNUALE CONOSCIUTO, CON O SENZA CAPITALE INIZIALE A UN TASSO DI RIV CONOSCIUTO CHE MONTANTE AVRO' TRA X ANNI? | ISO19: INVESTENDO UN CAPITALE ANNUALE CONOSCIUTO, CON O SENZA CAPITALE INIZIALE A UN TASSO DI RIV CONOSCIUTO CHE MONTANTE AVRO' TRA X ANNI? | ITE19: INVESTENDO UN CAPITALE ANNUALE CONOSCIUTO, CON O SENZA CAPITALE INIZIALE A UN TASSO DI RIV CONOSCIUTO CHE MONTANTE AVRO' TRA X ANNI? | ITU19: INVESTENDO UN CAPITALE ANNUALE CONOSCIUTO, CON O SENZA CAPITALE INIZIALE A UN TASSO DI RIV CONOSCIUTO CHE MONTANTE AVRO' TRA X ANNI? | IUK19: INVESTENDO UN CAPITALE ANNUALE CONOSCIUTO, CON O SENZA CAPITALE INIZIALE A UN TASSO DI RIV CONOSCIUTO CHE MONTANTE AVRO' TRA X ANNI? | IVA19: INVESTENDO UN CAPITALE ANNUALE CONOSCIUTO, CON O SENZA CAPITALE INIZIALE A UN TASSO DI RIV CONOSCIUTO CHE MONTANTE AVRO' TRA X ANNI? | IVQ19: INVESTENDO UN CAPITALE ANNUALE CONOSCIUTO, CON O SENZA CAPITALE INIZIALE A UN TASSO DI RIV CONOSCIUTO CHE MONTANTE AVRO' TRA X ANNI? | IWG19: INVESTENDO UN CAPITALE ANNUALE CONOSCIUTO, CON O SENZA CAPITALE INIZIALE A UN TASSO DI RIV CONOSCIUTO CHE MONTANTE AVRO' TRA X ANNI? | IWW19: INVESTENDO UN CAPITALE ANNUALE CONOSCIUTO, CON O SENZA CAPITALE INIZIALE A UN TASSO DI RIV CONOSCIUTO CHE MONTANTE AVRO' TRA X ANNI? | IXM19: INVESTENDO UN CAPITALE ANNUALE CONOSCIUTO, CON O SENZA CAPITALE INIZIALE A UN TASSO DI RIV CONOSCIUTO CHE MONTANTE AVRO' TRA X ANNI? | IYC19: INVESTENDO UN CAPITALE ANNUALE CONOSCIUTO, CON O SENZA CAPITALE INIZIALE A UN TASSO DI RIV CONOSCIUTO CHE MONTANTE AVRO' TRA X ANNI? | IYS19: INVESTENDO UN CAPITALE ANNUALE CONOSCIUTO, CON O SENZA CAPITALE INIZIALE A UN TASSO DI RIV CONOSCIUTO CHE MONTANTE AVRO' TRA X ANNI? | IZI19: INVESTENDO UN CAPITALE ANNUALE CONOSCIUTO, CON O SENZA CAPITALE INIZIALE A UN TASSO DI RIV CONOSCIUTO CHE MONTANTE AVRO' TRA X ANNI? | IZY19: INVESTENDO UN CAPITALE ANNUALE CONOSCIUTO, CON O SENZA CAPITALE INIZIALE A UN TASSO DI RIV CONOSCIUTO CHE MONTANTE AVRO' TRA X ANNI? | JAO19: INVESTENDO UN CAPITALE ANNUALE CONOSCIUTO, CON O SENZA CAPITALE INIZIALE A UN TASSO DI RIV CONOSCIUTO CHE MONTANTE AVRO' TRA X ANNI? | JBE19: INVESTENDO UN CAPITALE ANNUALE CONOSCIUTO, CON O SENZA CAPITALE INIZIALE A UN TASSO DI RIV CONOSCIUTO CHE MONTANTE AVRO' TRA X ANNI? | JBU19: INVESTENDO UN CAPITALE ANNUALE CONOSCIUTO, CON O SENZA CAPITALE INIZIALE A UN TASSO DI RIV CONOSCIUTO CHE MONTANTE AVRO' TRA X ANNI? | JCK19: INVESTENDO UN CAPITALE ANNUALE CONOSCIUTO, CON O SENZA CAPITALE INIZIALE A UN TASSO DI RIV CONOSCIUTO CHE MONTANTE AVRO' TRA X ANNI? | JDA19: INVESTENDO UN CAPITALE ANNUALE CONOSCIUTO, CON O SENZA CAPITALE INIZIALE A UN TASSO DI RIV CONOSCIUTO CHE MONTANTE AVRO' TRA X ANNI? | JDQ19: INVESTENDO UN CAPITALE ANNUALE CONOSCIUTO, CON O SENZA CAPITALE INIZIALE A UN TASSO DI RIV CONOSCIUTO CHE MONTANTE AVRO' TRA X ANNI? | JEG19: INVESTENDO UN CAPITALE ANNUALE CONOSCIUTO, CON O SENZA CAPITALE INIZIALE A UN TASSO DI RIV CONOSCIUTO CHE MONTANTE AVRO' TRA X ANNI? | JEW19: INVESTENDO UN CAPITALE ANNUALE CONOSCIUTO, CON O SENZA CAPITALE INIZIALE A UN TASSO DI RIV CONOSCIUTO CHE MONTANTE AVRO' TRA X ANNI? | JFM19: INVESTENDO UN CAPITALE ANNUALE CONOSCIUTO, CON O SENZA CAPITALE INIZIALE A UN TASSO DI RIV CONOSCIUTO CHE MONTANTE AVRO' TRA X ANNI? | JGC19: INVESTENDO UN CAPITALE ANNUALE CONOSCIUTO, CON O SENZA CAPITALE INIZIALE A UN TASSO DI RIV CONOSCIUTO CHE MONTANTE AVRO' TRA X ANNI? | JGS19: INVESTENDO UN CAPITALE ANNUALE CONOSCIUTO, CON O SENZA CAPITALE INIZIALE A UN TASSO DI RIV CONOSCIUTO CHE MONTANTE AVRO' TRA X ANNI? | JHI19: INVESTENDO UN CAPITALE ANNUALE CONOSCIUTO, CON O SENZA CAPITALE INIZIALE A UN TASSO DI RIV CONOSCIUTO CHE MONTANTE AVRO' TRA X ANNI? | JHY19: INVESTENDO UN CAPITALE ANNUALE CONOSCIUTO, CON O SENZA CAPITALE INIZIALE A UN TASSO DI RIV CONOSCIUTO CHE MONTANTE AVRO' TRA X ANNI? | JIO19: INVESTENDO UN CAPITALE ANNUALE CONOSCIUTO, CON O SENZA CAPITALE INIZIALE A UN TASSO DI RIV CONOSCIUTO CHE MONTANTE AVRO' TRA X ANNI? | JJE19: INVESTENDO UN CAPITALE ANNUALE CONOSCIUTO, CON O SENZA CAPITALE INIZIALE A UN TASSO DI RIV CONOSCIUTO CHE MONTANTE AVRO' TRA X ANNI? | JJU19: INVESTENDO UN CAPITALE ANNUALE CONOSCIUTO, CON O SENZA CAPITALE INIZIALE A UN TASSO DI RIV CONOSCIUTO CHE MONTANTE AVRO' TRA X ANNI? | JKK19: INVESTENDO UN CAPITALE ANNUALE CONOSCIUTO, CON O SENZA CAPITALE INIZIALE A UN TASSO DI RIV CONOSCIUTO CHE MONTANTE AVRO' TRA X ANNI? | JLA19: INVESTENDO UN CAPITALE ANNUALE CONOSCIUTO, CON O SENZA CAPITALE INIZIALE A UN TASSO DI RIV CONOSCIUTO CHE MONTANTE AVRO' TRA X ANNI? | JLQ19: INVESTENDO UN CAPITALE ANNUALE CONOSCIUTO, CON O SENZA CAPITALE INIZIALE A UN TASSO DI RIV CONOSCIUTO CHE MONTANTE AVRO' TRA X ANNI? | JMG19: INVESTENDO UN CAPITALE ANNUALE CONOSCIUTO, CON O SENZA CAPITALE INIZIALE A UN TASSO DI RIV CONOSCIUTO CHE MONTANTE AVRO' TRA X ANNI? | JMW19: INVESTENDO UN CAPITALE ANNUALE CONOSCIUTO, CON O SENZA CAPITALE INIZIALE A UN TASSO DI RIV CONOSCIUTO CHE MONTANTE AVRO' TRA X ANNI? | JNM19: INVESTENDO UN CAPITALE ANNUALE CONOSCIUTO, CON O SENZA CAPITALE INIZIALE A UN TASSO DI RIV CONOSCIUTO CHE MONTANTE AVRO' TRA X ANNI? | JOC19: INVESTENDO UN CAPITALE ANNUALE CONOSCIUTO, CON O SENZA CAPITALE INIZIALE A UN TASSO DI RIV CONOSCIUTO CHE MONTANTE AVRO' TRA X ANNI? | JOS19: INVESTENDO UN CAPITALE ANNUALE CONOSCIUTO, CON O SENZA CAPITALE INIZIALE A UN TASSO DI RIV CONOSCIUTO CHE MONTANTE AVRO' TRA X ANNI? | JPI19: INVESTENDO UN CAPITALE ANNUALE CONOSCIUTO, CON O SENZA CAPITALE INIZIALE A UN TASSO DI RIV CONOSCIUTO CHE MONTANTE AVRO' TRA X ANNI? | JPY19: INVESTENDO UN CAPITALE ANNUALE CONOSCIUTO, CON O SENZA CAPITALE INIZIALE A UN TASSO DI RIV CONOSCIUTO CHE MONTANTE AVRO' TRA X ANNI? | JQO19: INVESTENDO UN CAPITALE ANNUALE CONOSCIUTO, CON O SENZA CAPITALE INIZIALE A UN TASSO DI RIV CONOSCIUTO CHE MONTANTE AVRO' TRA X ANNI? | JRE19: INVESTENDO UN CAPITALE ANNUALE CONOSCIUTO, CON O SENZA CAPITALE INIZIALE A UN TASSO DI RIV CONOSCIUTO CHE MONTANTE AVRO' TRA X ANNI? | JRU19: INVESTENDO UN CAPITALE ANNUALE CONOSCIUTO, CON O SENZA CAPITALE INIZIALE A UN TASSO DI RIV CONOSCIUTO CHE MONTANTE AVRO' TRA X ANNI? | JSK19: INVESTENDO UN CAPITALE ANNUALE CONOSCIUTO, CON O SENZA CAPITALE INIZIALE A UN TASSO DI RIV CONOSCIUTO CHE MONTANTE AVRO' TRA X ANNI? | JTA19: INVESTENDO UN CAPITALE ANNUALE CONOSCIUTO, CON O SENZA CAPITALE INIZIALE A UN TASSO DI RIV CONOSCIUTO CHE MONTANTE AVRO' TRA X ANNI? | JTQ19: INVESTENDO UN CAPITALE ANNUALE CONOSCIUTO, CON O SENZA CAPITALE INIZIALE A UN TASSO DI RIV CONOSCIUTO CHE MONTANTE AVRO' TRA X ANNI? | JUG19: INVESTENDO UN CAPITALE ANNUALE CONOSCIUTO, CON O SENZA CAPITALE INIZIALE A UN TASSO DI RIV CONOSCIUTO CHE MONTANTE AVRO' TRA X ANNI? | JUW19: INVESTENDO UN CAPITALE ANNUALE CONOSCIUTO, CON O SENZA CAPITALE INIZIALE A UN TASSO DI RIV CONOSCIUTO CHE MONTANTE AVRO' TRA X ANNI? | JVM19: INVESTENDO UN CAPITALE ANNUALE CONOSCIUTO, CON O SENZA CAPITALE INIZIALE A UN TASSO DI RIV CONOSCIUTO CHE MONTANTE AVRO' TRA X ANNI? | JWC19: INVESTENDO UN CAPITALE ANNUALE CONOSCIUTO, CON O SENZA CAPITALE INIZIALE A UN TASSO DI RIV CONOSCIUTO CHE MONTANTE AVRO' TRA X ANNI? | JWS19: INVESTENDO UN CAPITALE ANNUALE CONOSCIUTO, CON O SENZA CAPITALE INIZIALE A UN TASSO DI RIV CONOSCIUTO CHE MONTANTE AVRO' TRA X ANNI? | JXI19: INVESTENDO UN CAPITALE ANNUALE CONOSCIUTO, CON O SENZA CAPITALE INIZIALE A UN TASSO DI RIV CONOSCIUTO CHE MONTANTE AVRO' TRA X ANNI? | JXY19: INVESTENDO UN CAPITALE ANNUALE CONOSCIUTO, CON O SENZA CAPITALE INIZIALE A UN TASSO DI RIV CONOSCIUTO CHE MONTANTE AVRO' TRA X ANNI? | JYO19: INVESTENDO UN CAPITALE ANNUALE CONOSCIUTO, CON O SENZA CAPITALE INIZIALE A UN TASSO DI RIV CONOSCIUTO CHE MONTANTE AVRO' TRA X ANNI? | JZE19: INVESTENDO UN CAPITALE ANNUALE CONOSCIUTO, CON O SENZA CAPITALE INIZIALE A UN TASSO DI RIV CONOSCIUTO CHE MONTANTE AVRO' TRA X ANNI? | JZU19: INVESTENDO UN CAPITALE ANNUALE CONOSCIUTO, CON O SENZA CAPITALE INIZIALE A UN TASSO DI RIV CONOSCIUTO CHE MONTANTE AVRO' TRA X ANNI? | KAK19: INVESTENDO UN CAPITALE ANNUALE CONOSCIUTO, CON O SENZA CAPITALE INIZIALE A UN TASSO DI RIV CONOSCIUTO CHE MONTANTE AVRO' TRA X ANNI? | KBA19: INVESTENDO UN CAPITALE ANNUALE CONOSCIUTO, CON O SENZA CAPITALE INIZIALE A UN TASSO DI RIV CONOSCIUTO CHE MONTANTE AVRO' TRA X ANNI? | KBQ19: INVESTENDO UN CAPITALE ANNUALE CONOSCIUTO, CON O SENZA CAPITALE INIZIALE A UN TASSO DI RIV CONOSCIUTO CHE MONTANTE AVRO' TRA X ANNI? | KCG19: INVESTENDO UN CAPITALE ANNUALE CONOSCIUTO, CON O SENZA CAPITALE INIZIALE A UN TASSO DI RIV CONOSCIUTO CHE MONTANTE AVRO' TRA X ANNI? | KCW19: INVESTENDO UN CAPITALE ANNUALE CONOSCIUTO, CON O SENZA CAPITALE INIZIALE A UN TASSO DI RIV CONOSCIUTO CHE MONTANTE AVRO' TRA X ANNI? | KDM19: INVESTENDO UN CAPITALE ANNUALE CONOSCIUTO, CON O SENZA CAPITALE INIZIALE A UN TASSO DI RIV CONOSCIUTO CHE MONTANTE AVRO' TRA X ANNI? | KEC19: INVESTENDO UN CAPITALE ANNUALE CONOSCIUTO, CON O SENZA CAPITALE INIZIALE A UN TASSO DI RIV CONOSCIUTO CHE MONTANTE AVRO' TRA X ANNI? | KES19: INVESTENDO UN CAPITALE ANNUALE CONOSCIUTO, CON O SENZA CAPITALE INIZIALE A UN TASSO DI RIV CONOSCIUTO CHE MONTANTE AVRO' TRA X ANNI? | KFI19: INVESTENDO UN CAPITALE ANNUALE CONOSCIUTO, CON O SENZA CAPITALE INIZIALE A UN TASSO DI RIV CONOSCIUTO CHE MONTANTE AVRO' TRA X ANNI? | KFY19: INVESTENDO UN CAPITALE ANNUALE CONOSCIUTO, CON O SENZA CAPITALE INIZIALE A UN TASSO DI RIV CONOSCIUTO CHE MONTANTE AVRO' TRA X ANNI? | KGO19: INVESTENDO UN CAPITALE ANNUALE CONOSCIUTO, CON O SENZA CAPITALE INIZIALE A UN TASSO DI RIV CONOSCIUTO CHE MONTANTE AVRO' TRA X ANNI? | KHE19: INVESTENDO UN CAPITALE ANNUALE CONOSCIUTO, CON O SENZA CAPITALE INIZIALE A UN TASSO DI RIV CONOSCIUTO CHE MONTANTE AVRO' TRA X ANNI? | KHU19: INVESTENDO UN CAPITALE ANNUALE CONOSCIUTO, CON O SENZA CAPITALE INIZIALE A UN TASSO DI RIV CONOSCIUTO CHE MONTANTE AVRO' TRA X ANNI? | KIK19: INVESTENDO UN CAPITALE ANNUALE CONOSCIUTO, CON O SENZA CAPITALE INIZIALE A UN TASSO DI RIV CONOSCIUTO CHE MONTANTE AVRO' TRA X ANNI? | KJA19: INVESTENDO UN CAPITALE ANNUALE CONOSCIUTO, CON O SENZA CAPITALE INIZIALE A UN TASSO DI RIV CONOSCIUTO CHE MONTANTE AVRO' TRA X ANNI? | KJQ19: INVESTENDO UN CAPITALE ANNUALE CONOSCIUTO, CON O SENZA CAPITALE INIZIALE A UN TASSO DI RIV CONOSCIUTO CHE MONTANTE AVRO' TRA X ANNI? | KKG19: INVESTENDO UN CAPITALE ANNUALE CONOSCIUTO, CON O SENZA CAPITALE INIZIALE A UN TASSO DI RIV CONOSCIUTO CHE MONTANTE AVRO' TRA X ANNI? | KKW19: INVESTENDO UN CAPITALE ANNUALE CONOSCIUTO, CON O SENZA CAPITALE INIZIALE A UN TASSO DI RIV CONOSCIUTO CHE MONTANTE AVRO' TRA X ANNI? | KLM19: INVESTENDO UN CAPITALE ANNUALE CONOSCIUTO, CON O SENZA CAPITALE INIZIALE A UN TASSO DI RIV CONOSCIUTO CHE MONTANTE AVRO' TRA X ANNI? | KMC19: INVESTENDO UN CAPITALE ANNUALE CONOSCIUTO, CON O SENZA CAPITALE INIZIALE A UN TASSO DI RIV CONOSCIUTO CHE MONTANTE AVRO' TRA X ANNI? | KMS19: INVESTENDO UN CAPITALE ANNUALE CONOSCIUTO, CON O SENZA CAPITALE INIZIALE A UN TASSO DI RIV CONOSCIUTO CHE MONTANTE AVRO' TRA X ANNI? | KNI19: INVESTENDO UN CAPITALE ANNUALE CONOSCIUTO, CON O SENZA CAPITALE INIZIALE A UN TASSO DI RIV CONOSCIUTO CHE MONTANTE AVRO' TRA X ANNI? | KNY19: INVESTENDO UN CAPITALE ANNUALE CONOSCIUTO, CON O SENZA CAPITALE INIZIALE A UN TASSO DI RIV CONOSCIUTO CHE MONTANTE AVRO' TRA X ANNI? | KOO19: INVESTENDO UN CAPITALE ANNUALE CONOSCIUTO, CON O SENZA CAPITALE INIZIALE A UN TASSO DI RIV CONOSCIUTO CHE MONTANTE AVRO' TRA X ANNI? | KPE19: INVESTENDO UN CAPITALE ANNUALE CONOSCIUTO, CON O SENZA CAPITALE INIZIALE A UN TASSO DI RIV CONOSCIUTO CHE MONTANTE AVRO' TRA X ANNI? | KPU19: INVESTENDO UN CAPITALE ANNUALE CONOSCIUTO, CON O SENZA CAPITALE INIZIALE A UN TASSO DI RIV CONOSCIUTO CHE MONTANTE AVRO' TRA X ANNI? | KQK19: INVESTENDO UN CAPITALE ANNUALE CONOSCIUTO, CON O SENZA CAPITALE INIZIALE A UN TASSO DI RIV CONOSCIUTO CHE MONTANTE AVRO' TRA X ANNI? | KRA19: INVESTENDO UN CAPITALE ANNUALE CONOSCIUTO, CON O SENZA CAPITALE INIZIALE A UN TASSO DI RIV CONOSCIUTO CHE MONTANTE AVRO' TRA X ANNI? | KRQ19: INVESTENDO UN CAPITALE ANNUALE CONOSCIUTO, CON O SENZA CAPITALE INIZIALE A UN TASSO DI RIV CONOSCIUTO CHE MONTANTE AVRO' TRA X ANNI? | KSG19: INVESTENDO UN CAPITALE ANNUALE CONOSCIUTO, CON O SENZA CAPITALE INIZIALE A UN TASSO DI RIV CONOSCIUTO CHE MONTANTE AVRO' TRA X ANNI? | KSW19: INVESTENDO UN CAPITALE ANNUALE CONOSCIUTO, CON O SENZA CAPITALE INIZIALE A UN TASSO DI RIV CONOSCIUTO CHE MONTANTE AVRO' TRA X ANNI? | KTM19: INVESTENDO UN CAPITALE ANNUALE CONOSCIUTO, CON O SENZA CAPITALE INIZIALE A UN TASSO DI RIV CONOSCIUTO CHE MONTANTE AVRO' TRA X ANNI? | KUC19: INVESTENDO UN CAPITALE ANNUALE CONOSCIUTO, CON O SENZA CAPITALE INIZIALE A UN TASSO DI RIV CONOSCIUTO CHE MONTANTE AVRO' TRA X ANNI? | KUS19: INVESTENDO UN CAPITALE ANNUALE CONOSCIUTO, CON O SENZA CAPITALE INIZIALE A UN TASSO DI RIV CONOSCIUTO CHE MONTANTE AVRO' TRA X ANNI? | KVI19: INVESTENDO UN CAPITALE ANNUALE CONOSCIUTO, CON O SENZA CAPITALE INIZIALE A UN TASSO DI RIV CONOSCIUTO CHE MONTANTE AVRO' TRA X ANNI? | KVY19: INVESTENDO UN CAPITALE ANNUALE CONOSCIUTO, CON O SENZA CAPITALE INIZIALE A UN TASSO DI RIV CONOSCIUTO CHE MONTANTE AVRO' TRA X ANNI? | KWO19: INVESTENDO UN CAPITALE ANNUALE CONOSCIUTO, CON O SENZA CAPITALE INIZIALE A UN TASSO DI RIV CONOSCIUTO CHE MONTANTE AVRO' TRA X ANNI? | KXE19: INVESTENDO UN CAPITALE ANNUALE CONOSCIUTO, CON O SENZA CAPITALE INIZIALE A UN TASSO DI RIV CONOSCIUTO CHE MONTANTE AVRO' TRA X ANNI? | KXU19: INVESTENDO UN CAPITALE ANNUALE CONOSCIUTO, CON O SENZA CAPITALE INIZIALE A UN TASSO DI RIV CONOSCIUTO CHE MONTANTE AVRO' TRA X ANNI? | KYK19: INVESTENDO UN CAPITALE ANNUALE CONOSCIUTO, CON O SENZA CAPITALE INIZIALE A UN TASSO DI RIV CONOSCIUTO CHE MONTANTE AVRO' TRA X ANNI? | KZA19: INVESTENDO UN CAPITALE ANNUALE CONOSCIUTO, CON O SENZA CAPITALE INIZIALE A UN TASSO DI RIV CONOSCIUTO CHE MONTANTE AVRO' TRA X ANNI? | KZQ19: INVESTENDO UN CAPITALE ANNUALE CONOSCIUTO, CON O SENZA CAPITALE INIZIALE A UN TASSO DI RIV CONOSCIUTO CHE MONTANTE AVRO' TRA X ANNI? | LAG19: INVESTENDO UN CAPITALE ANNUALE CONOSCIUTO, CON O SENZA CAPITALE INIZIALE A UN TASSO DI RIV CONOSCIUTO CHE MONTANTE AVRO' TRA X ANNI? | LAW19: INVESTENDO UN CAPITALE ANNUALE CONOSCIUTO, CON O SENZA CAPITALE INIZIALE A UN TASSO DI RIV CONOSCIUTO CHE MONTANTE AVRO' TRA X ANNI? | LBM19: INVESTENDO UN CAPITALE ANNUALE CONOSCIUTO, CON O SENZA CAPITALE INIZIALE A UN TASSO DI RIV CONOSCIUTO CHE MONTANTE AVRO' TRA X ANNI? | LCC19: INVESTENDO UN CAPITALE ANNUALE CONOSCIUTO, CON O SENZA CAPITALE INIZIALE A UN TASSO DI RIV CONOSCIUTO CHE MONTANTE AVRO' TRA X ANNI? | LCS19: INVESTENDO UN CAPITALE ANNUALE CONOSCIUTO, CON O SENZA CAPITALE INIZIALE A UN TASSO DI RIV CONOSCIUTO CHE MONTANTE AVRO' TRA X ANNI? | LDI19: INVESTENDO UN CAPITALE ANNUALE CONOSCIUTO, CON O SENZA CAPITALE INIZIALE A UN TASSO DI RIV CONOSCIUTO CHE MONTANTE AVRO' TRA X ANNI? | LDY19: INVESTENDO UN CAPITALE ANNUALE CONOSCIUTO, CON O SENZA CAPITALE INIZIALE A UN TASSO DI RIV CONOSCIUTO CHE MONTANTE AVRO' TRA X ANNI? | LEO19: INVESTENDO UN CAPITALE ANNUALE CONOSCIUTO, CON O SENZA CAPITALE INIZIALE A UN TASSO DI RIV CONOSCIUTO CHE MONTANTE AVRO' TRA X ANNI? | LFE19: INVESTENDO UN CAPITALE ANNUALE CONOSCIUTO, CON O SENZA CAPITALE INIZIALE A UN TASSO DI RIV CONOSCIUTO CHE MONTANTE AVRO' TRA X ANNI? | LFU19: INVESTENDO UN CAPITALE ANNUALE CONOSCIUTO, CON O SENZA CAPITALE INIZIALE A UN TASSO DI RIV CONOSCIUTO CHE MONTANTE AVRO' TRA X ANNI? | LGK19: INVESTENDO UN CAPITALE ANNUALE CONOSCIUTO, CON O SENZA CAPITALE INIZIALE A UN TASSO DI RIV CONOSCIUTO CHE MONTANTE AVRO' TRA X ANNI? | LHA19: INVESTENDO UN CAPITALE ANNUALE CONOSCIUTO, CON O SENZA CAPITALE INIZIALE A UN TASSO DI RIV CONOSCIUTO CHE MONTANTE AVRO' TRA X ANNI? | LHQ19: INVESTENDO UN CAPITALE ANNUALE CONOSCIUTO, CON O SENZA CAPITALE INIZIALE A UN TASSO DI RIV CONOSCIUTO CHE MONTANTE AVRO' TRA X ANNI? | LIG19: INVESTENDO UN CAPITALE ANNUALE CONOSCIUTO, CON O SENZA CAPITALE INIZIALE A UN TASSO DI RIV CONOSCIUTO CHE MONTANTE AVRO' TRA X ANNI? | LIW19: INVESTENDO UN CAPITALE ANNUALE CONOSCIUTO, CON O SENZA CAPITALE INIZIALE A UN TASSO DI RIV CONOSCIUTO CHE MONTANTE AVRO' TRA X ANNI? | LJM19: INVESTENDO UN CAPITALE ANNUALE CONOSCIUTO, CON O SENZA CAPITALE INIZIALE A UN TASSO DI RIV CONOSCIUTO CHE MONTANTE AVRO' TRA X ANNI? | LKC19: INVESTENDO UN CAPITALE ANNUALE CONOSCIUTO, CON O SENZA CAPITALE INIZIALE A UN TASSO DI RIV CONOSCIUTO CHE MONTANTE AVRO' TRA X ANNI? | LKS19: INVESTENDO UN CAPITALE ANNUALE CONOSCIUTO, CON O SENZA CAPITALE INIZIALE A UN TASSO DI RIV CONOSCIUTO CHE MONTANTE AVRO' TRA X ANNI? | LLI19: INVESTENDO UN CAPITALE ANNUALE CONOSCIUTO, CON O SENZA CAPITALE INIZIALE A UN TASSO DI RIV CONOSCIUTO CHE MONTANTE AVRO' TRA X ANNI? | LLY19: INVESTENDO UN CAPITALE ANNUALE CONOSCIUTO, CON O SENZA CAPITALE INIZIALE A UN TASSO DI RIV CONOSCIUTO CHE MONTANTE AVRO' TRA X ANNI? | LMO19: INVESTENDO UN CAPITALE ANNUALE CONOSCIUTO, CON O SENZA CAPITALE INIZIALE A UN TASSO DI RIV CONOSCIUTO CHE MONTANTE AVRO' TRA X ANNI? | LNE19: INVESTENDO UN CAPITALE ANNUALE CONOSCIUTO, CON O SENZA CAPITALE INIZIALE A UN TASSO DI RIV CONOSCIUTO CHE MONTANTE AVRO' TRA X ANNI? | LNU19: INVESTENDO UN CAPITALE ANNUALE CONOSCIUTO, CON O SENZA CAPITALE INIZIALE A UN TASSO DI RIV CONOSCIUTO CHE MONTANTE AVRO' TRA X ANNI? | LOK19: INVESTENDO UN CAPITALE ANNUALE CONOSCIUTO, CON O SENZA CAPITALE INIZIALE A UN TASSO DI RIV CONOSCIUTO CHE MONTANTE AVRO' TRA X ANNI? | LPA19: INVESTENDO UN CAPITALE ANNUALE CONOSCIUTO, CON O SENZA CAPITALE INIZIALE A UN TASSO DI RIV CONOSCIUTO CHE MONTANTE AVRO' TRA X ANNI? | LPQ19: INVESTENDO UN CAPITALE ANNUALE CONOSCIUTO, CON O SENZA CAPITALE INIZIALE A UN TASSO DI RIV CONOSCIUTO CHE MONTANTE AVRO' TRA X ANNI? | LQG19: INVESTENDO UN CAPITALE ANNUALE CONOSCIUTO, CON O SENZA CAPITALE INIZIALE A UN TASSO DI RIV CONOSCIUTO CHE MONTANTE AVRO' TRA X ANNI? | LQW19: INVESTENDO UN CAPITALE ANNUALE CONOSCIUTO, CON O SENZA CAPITALE INIZIALE A UN TASSO DI RIV CONOSCIUTO CHE MONTANTE AVRO' TRA X ANNI? | LRM19: INVESTENDO UN CAPITALE ANNUALE CONOSCIUTO, CON O SENZA CAPITALE INIZIALE A UN TASSO DI RIV CONOSCIUTO CHE MONTANTE AVRO' TRA X ANNI? | LSC19: INVESTENDO UN CAPITALE ANNUALE CONOSCIUTO, CON O SENZA CAPITALE INIZIALE A UN TASSO DI RIV CONOSCIUTO CHE MONTANTE AVRO' TRA X ANNI? | LSS19: INVESTENDO UN CAPITALE ANNUALE CONOSCIUTO, CON O SENZA CAPITALE INIZIALE A UN TASSO DI RIV CONOSCIUTO CHE MONTANTE AVRO' TRA X ANNI? | LTI19: INVESTENDO UN CAPITALE ANNUALE CONOSCIUTO, CON O SENZA CAPITALE INIZIALE A UN TASSO DI RIV CONOSCIUTO CHE MONTANTE AVRO' TRA X ANNI? | LTY19: INVESTENDO UN CAPITALE ANNUALE CONOSCIUTO, CON O SENZA CAPITALE INIZIALE A UN TASSO DI RIV CONOSCIUTO CHE MONTANTE AVRO' TRA X ANNI? | LUO19: INVESTENDO UN CAPITALE ANNUALE CONOSCIUTO, CON O SENZA CAPITALE INIZIALE A UN TASSO DI RIV CONOSCIUTO CHE MONTANTE AVRO' TRA X ANNI? | LVE19: INVESTENDO UN CAPITALE ANNUALE CONOSCIUTO, CON O SENZA CAPITALE INIZIALE A UN TASSO DI RIV CONOSCIUTO CHE MONTANTE AVRO' TRA X ANNI? | LVU19: INVESTENDO UN CAPITALE ANNUALE CONOSCIUTO, CON O SENZA CAPITALE INIZIALE A UN TASSO DI RIV CONOSCIUTO CHE MONTANTE AVRO' TRA X ANNI? | LWK19: INVESTENDO UN CAPITALE ANNUALE CONOSCIUTO, CON O SENZA CAPITALE INIZIALE A UN TASSO DI RIV CONOSCIUTO CHE MONTANTE AVRO' TRA X ANNI? | LXA19: INVESTENDO UN CAPITALE ANNUALE CONOSCIUTO, CON O SENZA CAPITALE INIZIALE A UN TASSO DI RIV CONOSCIUTO CHE MONTANTE AVRO' TRA X ANNI? | LXQ19: INVESTENDO UN CAPITALE ANNUALE CONOSCIUTO, CON O SENZA CAPITALE INIZIALE A UN TASSO DI RIV CONOSCIUTO CHE MONTANTE AVRO' TRA X ANNI? | LYG19: INVESTENDO UN CAPITALE ANNUALE CONOSCIUTO, CON O SENZA CAPITALE INIZIALE A UN TASSO DI RIV CONOSCIUTO CHE MONTANTE AVRO' TRA X ANNI? | LYW19: INVESTENDO UN CAPITALE ANNUALE CONOSCIUTO, CON O SENZA CAPITALE INIZIALE A UN TASSO DI RIV CONOSCIUTO CHE MONTANTE AVRO' TRA X ANNI? | LZM19: INVESTENDO UN CAPITALE ANNUALE CONOSCIUTO, CON O SENZA CAPITALE INIZIALE A UN TASSO DI RIV CONOSCIUTO CHE MONTANTE AVRO' TRA X ANNI? | MAC19: INVESTENDO UN CAPITALE ANNUALE CONOSCIUTO, CON O SENZA CAPITALE INIZIALE A UN TASSO DI RIV CONOSCIUTO CHE MONTANTE AVRO' TRA X ANNI? | MAS19: INVESTENDO UN CAPITALE ANNUALE CONOSCIUTO, CON O SENZA CAPITALE INIZIALE A UN TASSO DI RIV CONOSCIUTO CHE MONTANTE AVRO' TRA X ANNI? | MBI19: INVESTENDO UN CAPITALE ANNUALE CONOSCIUTO, CON O SENZA CAPITALE INIZIALE A UN TASSO DI RIV CONOSCIUTO CHE MONTANTE AVRO' TRA X ANNI? | MBY19: INVESTENDO UN CAPITALE ANNUALE CONOSCIUTO, CON O SENZA CAPITALE INIZIALE A UN TASSO DI RIV CONOSCIUTO CHE MONTANTE AVRO' TRA X ANNI? | MCO19: INVESTENDO UN CAPITALE ANNUALE CONOSCIUTO, CON O SENZA CAPITALE INIZIALE A UN TASSO DI RIV CONOSCIUTO CHE MONTANTE AVRO' TRA X ANNI? | MDE19: INVESTENDO UN CAPITALE ANNUALE CONOSCIUTO, CON O SENZA CAPITALE INIZIALE A UN TASSO DI RIV CONOSCIUTO CHE MONTANTE AVRO' TRA X ANNI? | MDU19: INVESTENDO UN CAPITALE ANNUALE CONOSCIUTO, CON O SENZA CAPITALE INIZIALE A UN TASSO DI RIV CONOSCIUTO CHE MONTANTE AVRO' TRA X ANNI? | MEK19: INVESTENDO UN CAPITALE ANNUALE CONOSCIUTO, CON O SENZA CAPITALE INIZIALE A UN TASSO DI RIV CONOSCIUTO CHE MONTANTE AVRO' TRA X ANNI? | MFA19: INVESTENDO UN CAPITALE ANNUALE CONOSCIUTO, CON O SENZA CAPITALE INIZIALE A UN TASSO DI RIV CONOSCIUTO CHE MONTANTE AVRO' TRA X ANNI? | MFQ19: INVESTENDO UN CAPITALE ANNUALE CONOSCIUTO, CON O SENZA CAPITALE INIZIALE A UN TASSO DI RIV CONOSCIUTO CHE MONTANTE AVRO' TRA X ANNI? | MGG19: INVESTENDO UN CAPITALE ANNUALE CONOSCIUTO, CON O SENZA CAPITALE INIZIALE A UN TASSO DI RIV CONOSCIUTO CHE MONTANTE AVRO' TRA X ANNI? | MGW19: INVESTENDO UN CAPITALE ANNUALE CONOSCIUTO, CON O SENZA CAPITALE INIZIALE A UN TASSO DI RIV CONOSCIUTO CHE MONTANTE AVRO' TRA X ANNI? | MHM19: INVESTENDO UN CAPITALE ANNUALE CONOSCIUTO, CON O SENZA CAPITALE INIZIALE A UN TASSO DI RIV CONOSCIUTO CHE MONTANTE AVRO' TRA X ANNI? | MIC19: INVESTENDO UN CAPITALE ANNUALE CONOSCIUTO, CON O SENZA CAPITALE INIZIALE A UN TASSO DI RIV CONOSCIUTO CHE MONTANTE AVRO' TRA X ANNI? | MIS19: INVESTENDO UN CAPITALE ANNUALE CONOSCIUTO, CON O SENZA CAPITALE INIZIALE A UN TASSO DI RIV CONOSCIUTO CHE MONTANTE AVRO' TRA X ANNI? | MJI19: INVESTENDO UN CAPITALE ANNUALE CONOSCIUTO, CON O SENZA CAPITALE INIZIALE A UN TASSO DI RIV CONOSCIUTO CHE MONTANTE AVRO' TRA X ANNI? | MJY19: INVESTENDO UN CAPITALE ANNUALE CONOSCIUTO, CON O SENZA CAPITALE INIZIALE A UN TASSO DI RIV CONOSCIUTO CHE MONTANTE AVRO' TRA X ANNI? | MKO19: INVESTENDO UN CAPITALE ANNUALE CONOSCIUTO, CON O SENZA CAPITALE INIZIALE A UN TASSO DI RIV CONOSCIUTO CHE MONTANTE AVRO' TRA X ANNI? | MLE19: INVESTENDO UN CAPITALE ANNUALE CONOSCIUTO, CON O SENZA CAPITALE INIZIALE A UN TASSO DI RIV CONOSCIUTO CHE MONTANTE AVRO' TRA X ANNI? | MLU19: INVESTENDO UN CAPITALE ANNUALE CONOSCIUTO, CON O SENZA CAPITALE INIZIALE A UN TASSO DI RIV CONOSCIUTO CHE MONTANTE AVRO' TRA X ANNI? | MMK19: INVESTENDO UN CAPITALE ANNUALE CONOSCIUTO, CON O SENZA CAPITALE INIZIALE A UN TASSO DI RIV CONOSCIUTO CHE MONTANTE AVRO' TRA X ANNI? | MNA19: INVESTENDO UN CAPITALE ANNUALE CONOSCIUTO, CON O SENZA CAPITALE INIZIALE A UN TASSO DI RIV CONOSCIUTO CHE MONTANTE AVRO' TRA X ANNI? | MNQ19: INVESTENDO UN CAPITALE ANNUALE CONOSCIUTO, CON O SENZA CAPITALE INIZIALE A UN TASSO DI RIV CONOSCIUTO CHE MONTANTE AVRO' TRA X ANNI? | MOG19: INVESTENDO UN CAPITALE ANNUALE CONOSCIUTO, CON O SENZA CAPITALE INIZIALE A UN TASSO DI RIV CONOSCIUTO CHE MONTANTE AVRO' TRA X ANNI? | MOW19: INVESTENDO UN CAPITALE ANNUALE CONOSCIUTO, CON O SENZA CAPITALE INIZIALE A UN TASSO DI RIV CONOSCIUTO CHE MONTANTE AVRO' TRA X ANNI? | MPM19: INVESTENDO UN CAPITALE ANNUALE CONOSCIUTO, CON O SENZA CAPITALE INIZIALE A UN TASSO DI RIV CONOSCIUTO CHE MONTANTE AVRO' TRA X ANNI? | MQC19: INVESTENDO UN CAPITALE ANNUALE CONOSCIUTO, CON O SENZA CAPITALE INIZIALE A UN TASSO DI RIV CONOSCIUTO CHE MONTANTE AVRO' TRA X ANNI? | MQS19: INVESTENDO UN CAPITALE ANNUALE CONOSCIUTO, CON O SENZA CAPITALE INIZIALE A UN TASSO DI RIV CONOSCIUTO CHE MONTANTE AVRO' TRA X ANNI? | MRI19: INVESTENDO UN CAPITALE ANNUALE CONOSCIUTO, CON O SENZA CAPITALE INIZIALE A UN TASSO DI RIV CONOSCIUTO CHE MONTANTE AVRO' TRA X ANNI? | MRY19: INVESTENDO UN CAPITALE ANNUALE CONOSCIUTO, CON O SENZA CAPITALE INIZIALE A UN TASSO DI RIV CONOSCIUTO CHE MONTANTE AVRO' TRA X ANNI? | MSO19: INVESTENDO UN CAPITALE ANNUALE CONOSCIUTO, CON O SENZA CAPITALE INIZIALE A UN TASSO DI RIV CONOSCIUTO CHE MONTANTE AVRO' TRA X ANNI? | MTE19: INVESTENDO UN CAPITALE ANNUALE CONOSCIUTO, CON O SENZA CAPITALE INIZIALE A UN TASSO DI RIV CONOSCIUTO CHE MONTANTE AVRO' TRA X ANNI? | MTU19: INVESTENDO UN CAPITALE ANNUALE CONOSCIUTO, CON O SENZA CAPITALE INIZIALE A UN TASSO DI RIV CONOSCIUTO CHE MONTANTE AVRO' TRA X ANNI? | MUK19: INVESTENDO UN CAPITALE ANNUALE CONOSCIUTO, CON O SENZA CAPITALE INIZIALE A UN TASSO DI RIV CONOSCIUTO CHE MONTANTE AVRO' TRA X ANNI? | MVA19: INVESTENDO UN CAPITALE ANNUALE CONOSCIUTO, CON O SENZA CAPITALE INIZIALE A UN TASSO DI RIV CONOSCIUTO CHE MONTANTE AVRO' TRA X ANNI? | MVQ19: INVESTENDO UN CAPITALE ANNUALE CONOSCIUTO, CON O SENZA CAPITALE INIZIALE A UN TASSO DI RIV CONOSCIUTO CHE MONTANTE AVRO' TRA X ANNI? | MWG19: INVESTENDO UN CAPITALE ANNUALE CONOSCIUTO, CON O SENZA CAPITALE INIZIALE A UN TASSO DI RIV CONOSCIUTO CHE MONTANTE AVRO' TRA X ANNI? | MWW19: INVESTENDO UN CAPITALE ANNUALE CONOSCIUTO, CON O SENZA CAPITALE INIZIALE A UN TASSO DI RIV CONOSCIUTO CHE MONTANTE AVRO' TRA X ANNI? | MXM19: INVESTENDO UN CAPITALE ANNUALE CONOSCIUTO, CON O SENZA CAPITALE INIZIALE A UN TASSO DI RIV CONOSCIUTO CHE MONTANTE AVRO' TRA X ANNI? | MYC19: INVESTENDO UN CAPITALE ANNUALE CONOSCIUTO, CON O SENZA CAPITALE INIZIALE A UN TASSO DI RIV CONOSCIUTO CHE MONTANTE AVRO' TRA X ANNI? | MYS19: INVESTENDO UN CAPITALE ANNUALE CONOSCIUTO, CON O SENZA CAPITALE INIZIALE A UN TASSO DI RIV CONOSCIUTO CHE MONTANTE AVRO' TRA X ANNI? | MZI19: INVESTENDO UN CAPITALE ANNUALE CONOSCIUTO, CON O SENZA CAPITALE INIZIALE A UN TASSO DI RIV CONOSCIUTO CHE MONTANTE AVRO' TRA X ANNI? | MZY19: INVESTENDO UN CAPITALE ANNUALE CONOSCIUTO, CON O SENZA CAPITALE INIZIALE A UN TASSO DI RIV CONOSCIUTO CHE MONTANTE AVRO' TRA X ANNI? | NAO19: INVESTENDO UN CAPITALE ANNUALE CONOSCIUTO, CON O SENZA CAPITALE INIZIALE A UN TASSO DI RIV CONOSCIUTO CHE MONTANTE AVRO' TRA X ANNI? | NBE19: INVESTENDO UN CAPITALE ANNUALE CONOSCIUTO, CON O SENZA CAPITALE INIZIALE A UN TASSO DI RIV CONOSCIUTO CHE MONTANTE AVRO' TRA X ANNI? | NBU19: INVESTENDO UN CAPITALE ANNUALE CONOSCIUTO, CON O SENZA CAPITALE INIZIALE A UN TASSO DI RIV CONOSCIUTO CHE MONTANTE AVRO' TRA X ANNI? | NCK19: INVESTENDO UN CAPITALE ANNUALE CONOSCIUTO, CON O SENZA CAPITALE INIZIALE A UN TASSO DI RIV CONOSCIUTO CHE MONTANTE AVRO' TRA X ANNI? | NDA19: INVESTENDO UN CAPITALE ANNUALE CONOSCIUTO, CON O SENZA CAPITALE INIZIALE A UN TASSO DI RIV CONOSCIUTO CHE MONTANTE AVRO' TRA X ANNI? | NDQ19: INVESTENDO UN CAPITALE ANNUALE CONOSCIUTO, CON O SENZA CAPITALE INIZIALE A UN TASSO DI RIV CONOSCIUTO CHE MONTANTE AVRO' TRA X ANNI? | NEG19: INVESTENDO UN CAPITALE ANNUALE CONOSCIUTO, CON O SENZA CAPITALE INIZIALE A UN TASSO DI RIV CONOSCIUTO CHE MONTANTE AVRO' TRA X ANNI? | NEW19: INVESTENDO UN CAPITALE ANNUALE CONOSCIUTO, CON O SENZA CAPITALE INIZIALE A UN TASSO DI RIV CONOSCIUTO CHE MONTANTE AVRO' TRA X ANNI? | NFM19: INVESTENDO UN CAPITALE ANNUALE CONOSCIUTO, CON O SENZA CAPITALE INIZIALE A UN TASSO DI RIV CONOSCIUTO CHE MONTANTE AVRO' TRA X ANNI? | NGC19: INVESTENDO UN CAPITALE ANNUALE CONOSCIUTO, CON O SENZA CAPITALE INIZIALE A UN TASSO DI RIV CONOSCIUTO CHE MONTANTE AVRO' TRA X ANNI? | NGS19: INVESTENDO UN CAPITALE ANNUALE CONOSCIUTO, CON O SENZA CAPITALE INIZIALE A UN TASSO DI RIV CONOSCIUTO CHE MONTANTE AVRO' TRA X ANNI? | NHI19: INVESTENDO UN CAPITALE ANNUALE CONOSCIUTO, CON O SENZA CAPITALE INIZIALE A UN TASSO DI RIV CONOSCIUTO CHE MONTANTE AVRO' TRA X ANNI? | NHY19: INVESTENDO UN CAPITALE ANNUALE CONOSCIUTO, CON O SENZA CAPITALE INIZIALE A UN TASSO DI RIV CONOSCIUTO CHE MONTANTE AVRO' TRA X ANNI? | NIO19: INVESTENDO UN CAPITALE ANNUALE CONOSCIUTO, CON O SENZA CAPITALE INIZIALE A UN TASSO DI RIV CONOSCIUTO CHE MONTANTE AVRO' TRA X ANNI? | NJE19: INVESTENDO UN CAPITALE ANNUALE CONOSCIUTO, CON O SENZA CAPITALE INIZIALE A UN TASSO DI RIV CONOSCIUTO CHE MONTANTE AVRO' TRA X ANNI? | NJU19: INVESTENDO UN CAPITALE ANNUALE CONOSCIUTO, CON O SENZA CAPITALE INIZIALE A UN TASSO DI RIV CONOSCIUTO CHE MONTANTE AVRO' TRA X ANNI? | NKK19: INVESTENDO UN CAPITALE ANNUALE CONOSCIUTO, CON O SENZA CAPITALE INIZIALE A UN TASSO DI RIV CONOSCIUTO CHE MONTANTE AVRO' TRA X ANNI? | NLA19: INVESTENDO UN CAPITALE ANNUALE CONOSCIUTO, CON O SENZA CAPITALE INIZIALE A UN TASSO DI RIV CONOSCIUTO CHE MONTANTE AVRO' TRA X ANNI? | NLQ19: INVESTENDO UN CAPITALE ANNUALE CONOSCIUTO, CON O SENZA CAPITALE INIZIALE A UN TASSO DI RIV CONOSCIUTO CHE MONTANTE AVRO' TRA X ANNI? | NMG19: INVESTENDO UN CAPITALE ANNUALE CONOSCIUTO, CON O SENZA CAPITALE INIZIALE A UN TASSO DI RIV CONOSCIUTO CHE MONTANTE AVRO' TRA X ANNI? | NMW19: INVESTENDO UN CAPITALE ANNUALE CONOSCIUTO, CON O SENZA CAPITALE INIZIALE A UN TASSO DI RIV CONOSCIUTO CHE MONTANTE AVRO' TRA X ANNI? | NNM19: INVESTENDO UN CAPITALE ANNUALE CONOSCIUTO, CON O SENZA CAPITALE INIZIALE A UN TASSO DI RIV CONOSCIUTO CHE MONTANTE AVRO' TRA X ANNI? | NOC19: INVESTENDO UN CAPITALE ANNUALE CONOSCIUTO, CON O SENZA CAPITALE INIZIALE A UN TASSO DI RIV CONOSCIUTO CHE MONTANTE AVRO' TRA X ANNI? | NOS19: INVESTENDO UN CAPITALE ANNUALE CONOSCIUTO, CON O SENZA CAPITALE INIZIALE A UN TASSO DI RIV CONOSCIUTO CHE MONTANTE AVRO' TRA X ANNI? | NPI19: INVESTENDO UN CAPITALE ANNUALE CONOSCIUTO, CON O SENZA CAPITALE INIZIALE A UN TASSO DI RIV CONOSCIUTO CHE MONTANTE AVRO' TRA X ANNI? | NPY19: INVESTENDO UN CAPITALE ANNUALE CONOSCIUTO, CON O SENZA CAPITALE INIZIALE A UN TASSO DI RIV CONOSCIUTO CHE MONTANTE AVRO' TRA X ANNI? | NQO19: INVESTENDO UN CAPITALE ANNUALE CONOSCIUTO, CON O SENZA CAPITALE INIZIALE A UN TASSO DI RIV CONOSCIUTO CHE MONTANTE AVRO' TRA X ANNI? | NRE19: INVESTENDO UN CAPITALE ANNUALE CONOSCIUTO, CON O SENZA CAPITALE INIZIALE A UN TASSO DI RIV CONOSCIUTO CHE MONTANTE AVRO' TRA X ANNI? | NRU19: INVESTENDO UN CAPITALE ANNUALE CONOSCIUTO, CON O SENZA CAPITALE INIZIALE A UN TASSO DI RIV CONOSCIUTO CHE MONTANTE AVRO' TRA X ANNI? | NSK19: INVESTENDO UN CAPITALE ANNUALE CONOSCIUTO, CON O SENZA CAPITALE INIZIALE A UN TASSO DI RIV CONOSCIUTO CHE MONTANTE AVRO' TRA X ANNI? | NTA19: INVESTENDO UN CAPITALE ANNUALE CONOSCIUTO, CON O SENZA CAPITALE INIZIALE A UN TASSO DI RIV CONOSCIUTO CHE MONTANTE AVRO' TRA X ANNI? | NTQ19: INVESTENDO UN CAPITALE ANNUALE CONOSCIUTO, CON O SENZA CAPITALE INIZIALE A UN TASSO DI RIV CONOSCIUTO CHE MONTANTE AVRO' TRA X ANNI? | NUG19: INVESTENDO UN CAPITALE ANNUALE CONOSCIUTO, CON O SENZA CAPITALE INIZIALE A UN TASSO DI RIV CONOSCIUTO CHE MONTANTE AVRO' TRA X ANNI? | NUW19: INVESTENDO UN CAPITALE ANNUALE CONOSCIUTO, CON O SENZA CAPITALE INIZIALE A UN TASSO DI RIV CONOSCIUTO CHE MONTANTE AVRO' TRA X ANNI? | NVM19: INVESTENDO UN CAPITALE ANNUALE CONOSCIUTO, CON O SENZA CAPITALE INIZIALE A UN TASSO DI RIV CONOSCIUTO CHE MONTANTE AVRO' TRA X ANNI? | NWC19: INVESTENDO UN CAPITALE ANNUALE CONOSCIUTO, CON O SENZA CAPITALE INIZIALE A UN TASSO DI RIV CONOSCIUTO CHE MONTANTE AVRO' TRA X ANNI? | NWS19: INVESTENDO UN CAPITALE ANNUALE CONOSCIUTO, CON O SENZA CAPITALE INIZIALE A UN TASSO DI RIV CONOSCIUTO CHE MONTANTE AVRO' TRA X ANNI? | NXI19: INVESTENDO UN CAPITALE ANNUALE CONOSCIUTO, CON O SENZA CAPITALE INIZIALE A UN TASSO DI RIV CONOSCIUTO CHE MONTANTE AVRO' TRA X ANNI? | NXY19: INVESTENDO UN CAPITALE ANNUALE CONOSCIUTO, CON O SENZA CAPITALE INIZIALE A UN TASSO DI RIV CONOSCIUTO CHE MONTANTE AVRO' TRA X ANNI? | NYO19: INVESTENDO UN CAPITALE ANNUALE CONOSCIUTO, CON O SENZA CAPITALE INIZIALE A UN TASSO DI RIV CONOSCIUTO CHE MONTANTE AVRO' TRA X ANNI? | NZE19: INVESTENDO UN CAPITALE ANNUALE CONOSCIUTO, CON O SENZA CAPITALE INIZIALE A UN TASSO DI RIV CONOSCIUTO CHE MONTANTE AVRO' TRA X ANNI? | NZU19: INVESTENDO UN CAPITALE ANNUALE CONOSCIUTO, CON O SENZA CAPITALE INIZIALE A UN TASSO DI RIV CONOSCIUTO CHE MONTANTE AVRO' TRA X ANNI? | OAK19: INVESTENDO UN CAPITALE ANNUALE CONOSCIUTO, CON O SENZA CAPITALE INIZIALE A UN TASSO DI RIV CONOSCIUTO CHE MONTANTE AVRO' TRA X ANNI? | OBA19: INVESTENDO UN CAPITALE ANNUALE CONOSCIUTO, CON O SENZA CAPITALE INIZIALE A UN TASSO DI RIV CONOSCIUTO CHE MONTANTE AVRO' TRA X ANNI? | OBQ19: INVESTENDO UN CAPITALE ANNUALE CONOSCIUTO, CON O SENZA CAPITALE INIZIALE A UN TASSO DI RIV CONOSCIUTO CHE MONTANTE AVRO' TRA X ANNI? | OCG19: INVESTENDO UN CAPITALE ANNUALE CONOSCIUTO, CON O SENZA CAPITALE INIZIALE A UN TASSO DI RIV CONOSCIUTO CHE MONTANTE AVRO' TRA X ANNI? | OCW19: INVESTENDO UN CAPITALE ANNUALE CONOSCIUTO, CON O SENZA CAPITALE INIZIALE A UN TASSO DI RIV CONOSCIUTO CHE MONTANTE AVRO' TRA X ANNI? | ODM19: INVESTENDO UN CAPITALE ANNUALE CONOSCIUTO, CON O SENZA CAPITALE INIZIALE A UN TASSO DI RIV CONOSCIUTO CHE MONTANTE AVRO' TRA X ANNI? | OEC19: INVESTENDO UN CAPITALE ANNUALE CONOSCIUTO, CON O SENZA CAPITALE INIZIALE A UN TASSO DI RIV CONOSCIUTO CHE MONTANTE AVRO' TRA X ANNI? | OES19: INVESTENDO UN CAPITALE ANNUALE CONOSCIUTO, CON O SENZA CAPITALE INIZIALE A UN TASSO DI RIV CONOSCIUTO CHE MONTANTE AVRO' TRA X ANNI? | OFI19: INVESTENDO UN CAPITALE ANNUALE CONOSCIUTO, CON O SENZA CAPITALE INIZIALE A UN TASSO DI RIV CONOSCIUTO CHE MONTANTE AVRO' TRA X ANNI? | OFY19: INVESTENDO UN CAPITALE ANNUALE CONOSCIUTO, CON O SENZA CAPITALE INIZIALE A UN TASSO DI RIV CONOSCIUTO CHE MONTANTE AVRO' TRA X ANNI? | OGO19: INVESTENDO UN CAPITALE ANNUALE CONOSCIUTO, CON O SENZA CAPITALE INIZIALE A UN TASSO DI RIV CONOSCIUTO CHE MONTANTE AVRO' TRA X ANNI? | OHE19: INVESTENDO UN CAPITALE ANNUALE CONOSCIUTO, CON O SENZA CAPITALE INIZIALE A UN TASSO DI RIV CONOSCIUTO CHE MONTANTE AVRO' TRA X ANNI? | OHU19: INVESTENDO UN CAPITALE ANNUALE CONOSCIUTO, CON O SENZA CAPITALE INIZIALE A UN TASSO DI RIV CONOSCIUTO CHE MONTANTE AVRO' TRA X ANNI? | OIK19: INVESTENDO UN CAPITALE ANNUALE CONOSCIUTO, CON O SENZA CAPITALE INIZIALE A UN TASSO DI RIV CONOSCIUTO CHE MONTANTE AVRO' TRA X ANNI? | OJA19: INVESTENDO UN CAPITALE ANNUALE CONOSCIUTO, CON O SENZA CAPITALE INIZIALE A UN TASSO DI RIV CONOSCIUTO CHE MONTANTE AVRO' TRA X ANNI? | OJQ19: INVESTENDO UN CAPITALE ANNUALE CONOSCIUTO, CON O SENZA CAPITALE INIZIALE A UN TASSO DI RIV CONOSCIUTO CHE MONTANTE AVRO' TRA X ANNI? | OKG19: INVESTENDO UN CAPITALE ANNUALE CONOSCIUTO, CON O SENZA CAPITALE INIZIALE A UN TASSO DI RIV CONOSCIUTO CHE MONTANTE AVRO' TRA X ANNI? | OKW19: INVESTENDO UN CAPITALE ANNUALE CONOSCIUTO, CON O SENZA CAPITALE INIZIALE A UN TASSO DI RIV CONOSCIUTO CHE MONTANTE AVRO' TRA X ANNI? | OLM19: INVESTENDO UN CAPITALE ANNUALE CONOSCIUTO, CON O SENZA CAPITALE INIZIALE A UN TASSO DI RIV CONOSCIUTO CHE MONTANTE AVRO' TRA X ANNI? | OMC19: INVESTENDO UN CAPITALE ANNUALE CONOSCIUTO, CON O SENZA CAPITALE INIZIALE A UN TASSO DI RIV CONOSCIUTO CHE MONTANTE AVRO' TRA X ANNI? | OMS19: INVESTENDO UN CAPITALE ANNUALE CONOSCIUTO, CON O SENZA CAPITALE INIZIALE A UN TASSO DI RIV CONOSCIUTO CHE MONTANTE AVRO' TRA X ANNI? | ONI19: INVESTENDO UN CAPITALE ANNUALE CONOSCIUTO, CON O SENZA CAPITALE INIZIALE A UN TASSO DI RIV CONOSCIUTO CHE MONTANTE AVRO' TRA X ANNI? | ONY19: INVESTENDO UN CAPITALE ANNUALE CONOSCIUTO, CON O SENZA CAPITALE INIZIALE A UN TASSO DI RIV CONOSCIUTO CHE MONTANTE AVRO' TRA X ANNI? | OOO19: INVESTENDO UN CAPITALE ANNUALE CONOSCIUTO, CON O SENZA CAPITALE INIZIALE A UN TASSO DI RIV CONOSCIUTO CHE MONTANTE AVRO' TRA X ANNI? | OPE19: INVESTENDO UN CAPITALE ANNUALE CONOSCIUTO, CON O SENZA CAPITALE INIZIALE A UN TASSO DI RIV CONOSCIUTO CHE MONTANTE AVRO' TRA X ANNI? | OPU19: INVESTENDO UN CAPITALE ANNUALE CONOSCIUTO, CON O SENZA CAPITALE INIZIALE A UN TASSO DI RIV CONOSCIUTO CHE MONTANTE AVRO' TRA X ANNI? | OQK19: INVESTENDO UN CAPITALE ANNUALE CONOSCIUTO, CON O SENZA CAPITALE INIZIALE A UN TASSO DI RIV CONOSCIUTO CHE MONTANTE AVRO' TRA X ANNI? | ORA19: INVESTENDO UN CAPITALE ANNUALE CONOSCIUTO, CON O SENZA CAPITALE INIZIALE A UN TASSO DI RIV CONOSCIUTO CHE MONTANTE AVRO' TRA X ANNI? | ORQ19: INVESTENDO UN CAPITALE ANNUALE CONOSCIUTO, CON O SENZA CAPITALE INIZIALE A UN TASSO DI RIV CONOSCIUTO CHE MONTANTE AVRO' TRA X ANNI? | OSG19: INVESTENDO UN CAPITALE ANNUALE CONOSCIUTO, CON O SENZA CAPITALE INIZIALE A UN TASSO DI RIV CONOSCIUTO CHE MONTANTE AVRO' TRA X ANNI? | OSW19: INVESTENDO UN CAPITALE ANNUALE CONOSCIUTO, CON O SENZA CAPITALE INIZIALE A UN TASSO DI RIV CONOSCIUTO CHE MONTANTE AVRO' TRA X ANNI? | OTM19: INVESTENDO UN CAPITALE ANNUALE CONOSCIUTO, CON O SENZA CAPITALE INIZIALE A UN TASSO DI RIV CONOSCIUTO CHE MONTANTE AVRO' TRA X ANNI? | OUC19: INVESTENDO UN CAPITALE ANNUALE CONOSCIUTO, CON O SENZA CAPITALE INIZIALE A UN TASSO DI RIV CONOSCIUTO CHE MONTANTE AVRO' TRA X ANNI? | OUS19: INVESTENDO UN CAPITALE ANNUALE CONOSCIUTO, CON O SENZA CAPITALE INIZIALE A UN TASSO DI RIV CONOSCIUTO CHE MONTANTE AVRO' TRA X ANNI? | OVI19: INVESTENDO UN CAPITALE ANNUALE CONOSCIUTO, CON O SENZA CAPITALE INIZIALE A UN TASSO DI RIV CONOSCIUTO CHE MONTANTE AVRO' TRA X ANNI? | OVY19: INVESTENDO UN CAPITALE ANNUALE CONOSCIUTO, CON O SENZA CAPITALE INIZIALE A UN TASSO DI RIV CONOSCIUTO CHE MONTANTE AVRO' TRA X ANNI? | OWO19: INVESTENDO UN CAPITALE ANNUALE CONOSCIUTO, CON O SENZA CAPITALE INIZIALE A UN TASSO DI RIV CONOSCIUTO CHE MONTANTE AVRO' TRA X ANNI? | OXE19: INVESTENDO UN CAPITALE ANNUALE CONOSCIUTO, CON O SENZA CAPITALE INIZIALE A UN TASSO DI RIV CONOSCIUTO CHE MONTANTE AVRO' TRA X ANNI? | OXU19: INVESTENDO UN CAPITALE ANNUALE CONOSCIUTO, CON O SENZA CAPITALE INIZIALE A UN TASSO DI RIV CONOSCIUTO CHE MONTANTE AVRO' TRA X ANNI? | OYK19: INVESTENDO UN CAPITALE ANNUALE CONOSCIUTO, CON O SENZA CAPITALE INIZIALE A UN TASSO DI RIV CONOSCIUTO CHE MONTANTE AVRO' TRA X ANNI? | OZA19: INVESTENDO UN CAPITALE ANNUALE CONOSCIUTO, CON O SENZA CAPITALE INIZIALE A UN TASSO DI RIV CONOSCIUTO CHE MONTANTE AVRO' TRA X ANNI? | OZQ19: INVESTENDO UN CAPITALE ANNUALE CONOSCIUTO, CON O SENZA CAPITALE INIZIALE A UN TASSO DI RIV CONOSCIUTO CHE MONTANTE AVRO' TRA X ANNI? | PAG19: INVESTENDO UN CAPITALE ANNUALE CONOSCIUTO, CON O SENZA CAPITALE INIZIALE A UN TASSO DI RIV CONOSCIUTO CHE MONTANTE AVRO' TRA X ANNI? | PAW19: INVESTENDO UN CAPITALE ANNUALE CONOSCIUTO, CON O SENZA CAPITALE INIZIALE A UN TASSO DI RIV CONOSCIUTO CHE MONTANTE AVRO' TRA X ANNI? | PBM19: INVESTENDO UN CAPITALE ANNUALE CONOSCIUTO, CON O SENZA CAPITALE INIZIALE A UN TASSO DI RIV CONOSCIUTO CHE MONTANTE AVRO' TRA X ANNI? | PCC19: INVESTENDO UN CAPITALE ANNUALE CONOSCIUTO, CON O SENZA CAPITALE INIZIALE A UN TASSO DI RIV CONOSCIUTO CHE MONTANTE AVRO' TRA X ANNI? | PCS19: INVESTENDO UN CAPITALE ANNUALE CONOSCIUTO, CON O SENZA CAPITALE INIZIALE A UN TASSO DI RIV CONOSCIUTO CHE MONTANTE AVRO' TRA X ANNI? | PDI19: INVESTENDO UN CAPITALE ANNUALE CONOSCIUTO, CON O SENZA CAPITALE INIZIALE A UN TASSO DI RIV CONOSCIUTO CHE MONTANTE AVRO' TRA X ANNI? | PDY19: INVESTENDO UN CAPITALE ANNUALE CONOSCIUTO, CON O SENZA CAPITALE INIZIALE A UN TASSO DI RIV CONOSCIUTO CHE MONTANTE AVRO' TRA X ANNI? | PEO19: INVESTENDO UN CAPITALE ANNUALE CONOSCIUTO, CON O SENZA CAPITALE INIZIALE A UN TASSO DI RIV CONOSCIUTO CHE MONTANTE AVRO' TRA X ANNI? | PFE19: INVESTENDO UN CAPITALE ANNUALE CONOSCIUTO, CON O SENZA CAPITALE INIZIALE A UN TASSO DI RIV CONOSCIUTO CHE MONTANTE AVRO' TRA X ANNI? | PFU19: INVESTENDO UN CAPITALE ANNUALE CONOSCIUTO, CON O SENZA CAPITALE INIZIALE A UN TASSO DI RIV CONOSCIUTO CHE MONTANTE AVRO' TRA X ANNI? | PGK19: INVESTENDO UN CAPITALE ANNUALE CONOSCIUTO, CON O SENZA CAPITALE INIZIALE A UN TASSO DI RIV CONOSCIUTO CHE MONTANTE AVRO' TRA X ANNI? | PHA19: INVESTENDO UN CAPITALE ANNUALE CONOSCIUTO, CON O SENZA CAPITALE INIZIALE A UN TASSO DI RIV CONOSCIUTO CHE MONTANTE AVRO' TRA X ANNI? | PHQ19: INVESTENDO UN CAPITALE ANNUALE CONOSCIUTO, CON O SENZA CAPITALE INIZIALE A UN TASSO DI RIV CONOSCIUTO CHE MONTANTE AVRO' TRA X ANNI? | PIG19: INVESTENDO UN CAPITALE ANNUALE CONOSCIUTO, CON O SENZA CAPITALE INIZIALE A UN TASSO DI RIV CONOSCIUTO CHE MONTANTE AVRO' TRA X ANNI? | PIW19: INVESTENDO UN CAPITALE ANNUALE CONOSCIUTO, CON O SENZA CAPITALE INIZIALE A UN TASSO DI RIV CONOSCIUTO CHE MONTANTE AVRO' TRA X ANNI? | PJM19: INVESTENDO UN CAPITALE ANNUALE CONOSCIUTO, CON O SENZA CAPITALE INIZIALE A UN TASSO DI RIV CONOSCIUTO CHE MONTANTE AVRO' TRA X ANNI? | PKC19: INVESTENDO UN CAPITALE ANNUALE CONOSCIUTO, CON O SENZA CAPITALE INIZIALE A UN TASSO DI RIV CONOSCIUTO CHE MONTANTE AVRO' TRA X ANNI? | PKS19: INVESTENDO UN CAPITALE ANNUALE CONOSCIUTO, CON O SENZA CAPITALE INIZIALE A UN TASSO DI RIV CONOSCIUTO CHE MONTANTE AVRO' TRA X ANNI? | PLI19: INVESTENDO UN CAPITALE ANNUALE CONOSCIUTO, CON O SENZA CAPITALE INIZIALE A UN TASSO DI RIV CONOSCIUTO CHE MONTANTE AVRO' TRA X ANNI? | PLY19: INVESTENDO UN CAPITALE ANNUALE CONOSCIUTO, CON O SENZA CAPITALE INIZIALE A UN TASSO DI RIV CONOSCIUTO CHE MONTANTE AVRO' TRA X ANNI? | PMO19: INVESTENDO UN CAPITALE ANNUALE CONOSCIUTO, CON O SENZA CAPITALE INIZIALE A UN TASSO DI RIV CONOSCIUTO CHE MONTANTE AVRO' TRA X ANNI? | PNE19: INVESTENDO UN CAPITALE ANNUALE CONOSCIUTO, CON O SENZA CAPITALE INIZIALE A UN TASSO DI RIV CONOSCIUTO CHE MONTANTE AVRO' TRA X ANNI? | PNU19: INVESTENDO UN CAPITALE ANNUALE CONOSCIUTO, CON O SENZA CAPITALE INIZIALE A UN TASSO DI RIV CONOSCIUTO CHE MONTANTE AVRO' TRA X ANNI? | POK19: INVESTENDO UN CAPITALE ANNUALE CONOSCIUTO, CON O SENZA CAPITALE INIZIALE A UN TASSO DI RIV CONOSCIUTO CHE MONTANTE AVRO' TRA X ANNI? | PPA19: INVESTENDO UN CAPITALE ANNUALE CONOSCIUTO, CON O SENZA CAPITALE INIZIALE A UN TASSO DI RIV CONOSCIUTO CHE MONTANTE AVRO' TRA X ANNI? | PPQ19: INVESTENDO UN CAPITALE ANNUALE CONOSCIUTO, CON O SENZA CAPITALE INIZIALE A UN TASSO DI RIV CONOSCIUTO CHE MONTANTE AVRO' TRA X ANNI? | PQG19: INVESTENDO UN CAPITALE ANNUALE CONOSCIUTO, CON O SENZA CAPITALE INIZIALE A UN TASSO DI RIV CONOSCIUTO CHE MONTANTE AVRO' TRA X ANNI? | PQW19: INVESTENDO UN CAPITALE ANNUALE CONOSCIUTO, CON O SENZA CAPITALE INIZIALE A UN TASSO DI RIV CONOSCIUTO CHE MONTANTE AVRO' TRA X ANNI? | PRM19: INVESTENDO UN CAPITALE ANNUALE CONOSCIUTO, CON O SENZA CAPITALE INIZIALE A UN TASSO DI RIV CONOSCIUTO CHE MONTANTE AVRO' TRA X ANNI? | PSC19: INVESTENDO UN CAPITALE ANNUALE CONOSCIUTO, CON O SENZA CAPITALE INIZIALE A UN TASSO DI RIV CONOSCIUTO CHE MONTANTE AVRO' TRA X ANNI? | PSS19: INVESTENDO UN CAPITALE ANNUALE CONOSCIUTO, CON O SENZA CAPITALE INIZIALE A UN TASSO DI RIV CONOSCIUTO CHE MONTANTE AVRO' TRA X ANNI? | PTI19: INVESTENDO UN CAPITALE ANNUALE CONOSCIUTO, CON O SENZA CAPITALE INIZIALE A UN TASSO DI RIV CONOSCIUTO CHE MONTANTE AVRO' TRA X ANNI? | PTY19: INVESTENDO UN CAPITALE ANNUALE CONOSCIUTO, CON O SENZA CAPITALE INIZIALE A UN TASSO DI RIV CONOSCIUTO CHE MONTANTE AVRO' TRA X ANNI? | PUO19: INVESTENDO UN CAPITALE ANNUALE CONOSCIUTO, CON O SENZA CAPITALE INIZIALE A UN TASSO DI RIV CONOSCIUTO CHE MONTANTE AVRO' TRA X ANNI? | PVE19: INVESTENDO UN CAPITALE ANNUALE CONOSCIUTO, CON O SENZA CAPITALE INIZIALE A UN TASSO DI RIV CONOSCIUTO CHE MONTANTE AVRO' TRA X ANNI? | PVU19: INVESTENDO UN CAPITALE ANNUALE CONOSCIUTO, CON O SENZA CAPITALE INIZIALE A UN TASSO DI RIV CONOSCIUTO CHE MONTANTE AVRO' TRA X ANNI? | PWK19: INVESTENDO UN CAPITALE ANNUALE CONOSCIUTO, CON O SENZA CAPITALE INIZIALE A UN TASSO DI RIV CONOSCIUTO CHE MONTANTE AVRO' TRA X ANNI? | PXA19: INVESTENDO UN CAPITALE ANNUALE CONOSCIUTO, CON O SENZA CAPITALE INIZIALE A UN TASSO DI RIV CONOSCIUTO CHE MONTANTE AVRO' TRA X ANNI? | PXQ19: INVESTENDO UN CAPITALE ANNUALE CONOSCIUTO, CON O SENZA CAPITALE INIZIALE A UN TASSO DI RIV CONOSCIUTO CHE MONTANTE AVRO' TRA X ANNI? | PYG19: INVESTENDO UN CAPITALE ANNUALE CONOSCIUTO, CON O SENZA CAPITALE INIZIALE A UN TASSO DI RIV CONOSCIUTO CHE MONTANTE AVRO' TRA X ANNI? | PYW19: INVESTENDO UN CAPITALE ANNUALE CONOSCIUTO, CON O SENZA CAPITALE INIZIALE A UN TASSO DI RIV CONOSCIUTO CHE MONTANTE AVRO' TRA X ANNI? | PZM19: INVESTENDO UN CAPITALE ANNUALE CONOSCIUTO, CON O SENZA CAPITALE INIZIALE A UN TASSO DI RIV CONOSCIUTO CHE MONTANTE AVRO' TRA X ANNI? | QAC19: INVESTENDO UN CAPITALE ANNUALE CONOSCIUTO, CON O SENZA CAPITALE INIZIALE A UN TASSO DI RIV CONOSCIUTO CHE MONTANTE AVRO' TRA X ANNI? | QAS19: INVESTENDO UN CAPITALE ANNUALE CONOSCIUTO, CON O SENZA CAPITALE INIZIALE A UN TASSO DI RIV CONOSCIUTO CHE MONTANTE AVRO' TRA X ANNI? | QBI19: INVESTENDO UN CAPITALE ANNUALE CONOSCIUTO, CON O SENZA CAPITALE INIZIALE A UN TASSO DI RIV CONOSCIUTO CHE MONTANTE AVRO' TRA X ANNI? | QBY19: INVESTENDO UN CAPITALE ANNUALE CONOSCIUTO, CON O SENZA CAPITALE INIZIALE A UN TASSO DI RIV CONOSCIUTO CHE MONTANTE AVRO' TRA X ANNI? | QCO19: INVESTENDO UN CAPITALE ANNUALE CONOSCIUTO, CON O SENZA CAPITALE INIZIALE A UN TASSO DI RIV CONOSCIUTO CHE MONTANTE AVRO' TRA X ANNI? | QDE19: INVESTENDO UN CAPITALE ANNUALE CONOSCIUTO, CON O SENZA CAPITALE INIZIALE A UN TASSO DI RIV CONOSCIUTO CHE MONTANTE AVRO' TRA X ANNI? | QDU19: INVESTENDO UN CAPITALE ANNUALE CONOSCIUTO, CON O SENZA CAPITALE INIZIALE A UN TASSO DI RIV CONOSCIUTO CHE MONTANTE AVRO' TRA X ANNI? | QEK19: INVESTENDO UN CAPITALE ANNUALE CONOSCIUTO, CON O SENZA CAPITALE INIZIALE A UN TASSO DI RIV CONOSCIUTO CHE MONTANTE AVRO' TRA X ANNI? | QFA19: INVESTENDO UN CAPITALE ANNUALE CONOSCIUTO, CON O SENZA CAPITALE INIZIALE A UN TASSO DI RIV CONOSCIUTO CHE MONTANTE AVRO' TRA X ANNI? | QFQ19: INVESTENDO UN CAPITALE ANNUALE CONOSCIUTO, CON O SENZA CAPITALE INIZIALE A UN TASSO DI RIV CONOSCIUTO CHE MONTANTE AVRO' TRA X ANNI? | QGG19: INVESTENDO UN CAPITALE ANNUALE CONOSCIUTO, CON O SENZA CAPITALE INIZIALE A UN TASSO DI RIV CONOSCIUTO CHE MONTANTE AVRO' TRA X ANNI? | QGW19: INVESTENDO UN CAPITALE ANNUALE CONOSCIUTO, CON O SENZA CAPITALE INIZIALE A UN TASSO DI RIV CONOSCIUTO CHE MONTANTE AVRO' TRA X ANNI? | QHM19: INVESTENDO UN CAPITALE ANNUALE CONOSCIUTO, CON O SENZA CAPITALE INIZIALE A UN TASSO DI RIV CONOSCIUTO CHE MONTANTE AVRO' TRA X ANNI? | QIC19: INVESTENDO UN CAPITALE ANNUALE CONOSCIUTO, CON O SENZA CAPITALE INIZIALE A UN TASSO DI RIV CONOSCIUTO CHE MONTANTE AVRO' TRA X ANNI? | QIS19: INVESTENDO UN CAPITALE ANNUALE CONOSCIUTO, CON O SENZA CAPITALE INIZIALE A UN TASSO DI RIV CONOSCIUTO CHE MONTANTE AVRO' TRA X ANNI? | QJI19: INVESTENDO UN CAPITALE ANNUALE CONOSCIUTO, CON O SENZA CAPITALE INIZIALE A UN TASSO DI RIV CONOSCIUTO CHE MONTANTE AVRO' TRA X ANNI? | QJY19: INVESTENDO UN CAPITALE ANNUALE CONOSCIUTO, CON O SENZA CAPITALE INIZIALE A UN TASSO DI RIV CONOSCIUTO CHE MONTANTE AVRO' TRA X ANNI? | QKO19: INVESTENDO UN CAPITALE ANNUALE CONOSCIUTO, CON O SENZA CAPITALE INIZIALE A UN TASSO DI RIV CONOSCIUTO CHE MONTANTE AVRO' TRA X ANNI? | QLE19: INVESTENDO UN CAPITALE ANNUALE CONOSCIUTO, CON O SENZA CAPITALE INIZIALE A UN TASSO DI RIV CONOSCIUTO CHE MONTANTE AVRO' TRA X ANNI? | QLU19: INVESTENDO UN CAPITALE ANNUALE CONOSCIUTO, CON O SENZA CAPITALE INIZIALE A UN TASSO DI RIV CONOSCIUTO CHE MONTANTE AVRO' TRA X ANNI? | QMK19: INVESTENDO UN CAPITALE ANNUALE CONOSCIUTO, CON O SENZA CAPITALE INIZIALE A UN TASSO DI RIV CONOSCIUTO CHE MONTANTE AVRO' TRA X ANNI? | QNA19: INVESTENDO UN CAPITALE ANNUALE CONOSCIUTO, CON O SENZA CAPITALE INIZIALE A UN TASSO DI RIV CONOSCIUTO CHE MONTANTE AVRO' TRA X ANNI? | QNQ19: INVESTENDO UN CAPITALE ANNUALE CONOSCIUTO, CON O SENZA CAPITALE INIZIALE A UN TASSO DI RIV CONOSCIUTO CHE MONTANTE AVRO' TRA X ANNI? | QOG19: INVESTENDO UN CAPITALE ANNUALE CONOSCIUTO, CON O SENZA CAPITALE INIZIALE A UN TASSO DI RIV CONOSCIUTO CHE MONTANTE AVRO' TRA X ANNI? | QOW19: INVESTENDO UN CAPITALE ANNUALE CONOSCIUTO, CON O SENZA CAPITALE INIZIALE A UN TASSO DI RIV CONOSCIUTO CHE MONTANTE AVRO' TRA X ANNI? | QPM19: INVESTENDO UN CAPITALE ANNUALE CONOSCIUTO, CON O SENZA CAPITALE INIZIALE A UN TASSO DI RIV CONOSCIUTO CHE MONTANTE AVRO' TRA X ANNI? | QQC19: INVESTENDO UN CAPITALE ANNUALE CONOSCIUTO, CON O SENZA CAPITALE INIZIALE A UN TASSO DI RIV CONOSCIUTO CHE MONTANTE AVRO' TRA X ANNI? | QQS19: INVESTENDO UN CAPITALE ANNUALE CONOSCIUTO, CON O SENZA CAPITALE INIZIALE A UN TASSO DI RIV CONOSCIUTO CHE MONTANTE AVRO' TRA X ANNI? | QRI19: INVESTENDO UN CAPITALE ANNUALE CONOSCIUTO, CON O SENZA CAPITALE INIZIALE A UN TASSO DI RIV CONOSCIUTO CHE MONTANTE AVRO' TRA X ANNI? | QRY19: INVESTENDO UN CAPITALE ANNUALE CONOSCIUTO, CON O SENZA CAPITALE INIZIALE A UN TASSO DI RIV CONOSCIUTO CHE MONTANTE AVRO' TRA X ANNI? | QSO19: INVESTENDO UN CAPITALE ANNUALE CONOSCIUTO, CON O SENZA CAPITALE INIZIALE A UN TASSO DI RIV CONOSCIUTO CHE MONTANTE AVRO' TRA X ANNI? | QTE19: INVESTENDO UN CAPITALE ANNUALE CONOSCIUTO, CON O SENZA CAPITALE INIZIALE A UN TASSO DI RIV CONOSCIUTO CHE MONTANTE AVRO' TRA X ANNI? | QTU19: INVESTENDO UN CAPITALE ANNUALE CONOSCIUTO, CON O SENZA CAPITALE INIZIALE A UN TASSO DI RIV CONOSCIUTO CHE MONTANTE AVRO' TRA X ANNI? | QUK19: INVESTENDO UN CAPITALE ANNUALE CONOSCIUTO, CON O SENZA CAPITALE INIZIALE A UN TASSO DI RIV CONOSCIUTO CHE MONTANTE AVRO' TRA X ANNI? | QVA19: INVESTENDO UN CAPITALE ANNUALE CONOSCIUTO, CON O SENZA CAPITALE INIZIALE A UN TASSO DI RIV CONOSCIUTO CHE MONTANTE AVRO' TRA X ANNI? | QVQ19: INVESTENDO UN CAPITALE ANNUALE CONOSCIUTO, CON O SENZA CAPITALE INIZIALE A UN TASSO DI RIV CONOSCIUTO CHE MONTANTE AVRO' TRA X ANNI? | QWG19: INVESTENDO UN CAPITALE ANNUALE CONOSCIUTO, CON O SENZA CAPITALE INIZIALE A UN TASSO DI RIV CONOSCIUTO CHE MONTANTE AVRO' TRA X ANNI? | QWW19: INVESTENDO UN CAPITALE ANNUALE CONOSCIUTO, CON O SENZA CAPITALE INIZIALE A UN TASSO DI RIV CONOSCIUTO CHE MONTANTE AVRO' TRA X ANNI? | QXM19: INVESTENDO UN CAPITALE ANNUALE CONOSCIUTO, CON O SENZA CAPITALE INIZIALE A UN TASSO DI RIV CONOSCIUTO CHE MONTANTE AVRO' TRA X ANNI? | QYC19: INVESTENDO UN CAPITALE ANNUALE CONOSCIUTO, CON O SENZA CAPITALE INIZIALE A UN TASSO DI RIV CONOSCIUTO CHE MONTANTE AVRO' TRA X ANNI? | QYS19: INVESTENDO UN CAPITALE ANNUALE CONOSCIUTO, CON O SENZA CAPITALE INIZIALE A UN TASSO DI RIV CONOSCIUTO CHE MONTANTE AVRO' TRA X ANNI? | QZI19: INVESTENDO UN CAPITALE ANNUALE CONOSCIUTO, CON O SENZA CAPITALE INIZIALE A UN TASSO DI RIV CONOSCIUTO CHE MONTANTE AVRO' TRA X ANNI? | QZY19: INVESTENDO UN CAPITALE ANNUALE CONOSCIUTO, CON O SENZA CAPITALE INIZIALE A UN TASSO DI RIV CONOSCIUTO CHE MONTANTE AVRO' TRA X ANNI? | RAO19: INVESTENDO UN CAPITALE ANNUALE CONOSCIUTO, CON O SENZA CAPITALE INIZIALE A UN TASSO DI RIV CONOSCIUTO CHE MONTANTE AVRO' TRA X ANNI? | RBE19: INVESTENDO UN CAPITALE ANNUALE CONOSCIUTO, CON O SENZA CAPITALE INIZIALE A UN TASSO DI RIV CONOSCIUTO CHE MONTANTE AVRO' TRA X ANNI? | RBU19: INVESTENDO UN CAPITALE ANNUALE CONOSCIUTO, CON O SENZA CAPITALE INIZIALE A UN TASSO DI RIV CONOSCIUTO CHE MONTANTE AVRO' TRA X ANNI? | RCK19: INVESTENDO UN CAPITALE ANNUALE CONOSCIUTO, CON O SENZA CAPITALE INIZIALE A UN TASSO DI RIV CONOSCIUTO CHE MONTANTE AVRO' TRA X ANNI? | RDA19: INVESTENDO UN CAPITALE ANNUALE CONOSCIUTO, CON O SENZA CAPITALE INIZIALE A UN TASSO DI RIV CONOSCIUTO CHE MONTANTE AVRO' TRA X ANNI? | RDQ19: INVESTENDO UN CAPITALE ANNUALE CONOSCIUTO, CON O SENZA CAPITALE INIZIALE A UN TASSO DI RIV CONOSCIUTO CHE MONTANTE AVRO' TRA X ANNI? | REG19: INVESTENDO UN CAPITALE ANNUALE CONOSCIUTO, CON O SENZA CAPITALE INIZIALE A UN TASSO DI RIV CONOSCIUTO CHE MONTANTE AVRO' TRA X ANNI? | REW19: INVESTENDO UN CAPITALE ANNUALE CONOSCIUTO, CON O SENZA CAPITALE INIZIALE A UN TASSO DI RIV CONOSCIUTO CHE MONTANTE AVRO' TRA X ANNI? | RFM19: INVESTENDO UN CAPITALE ANNUALE CONOSCIUTO, CON O SENZA CAPITALE INIZIALE A UN TASSO DI RIV CONOSCIUTO CHE MONTANTE AVRO' TRA X ANNI? | RGC19: INVESTENDO UN CAPITALE ANNUALE CONOSCIUTO, CON O SENZA CAPITALE INIZIALE A UN TASSO DI RIV CONOSCIUTO CHE MONTANTE AVRO' TRA X ANNI? | RGS19: INVESTENDO UN CAPITALE ANNUALE CONOSCIUTO, CON O SENZA CAPITALE INIZIALE A UN TASSO DI RIV CONOSCIUTO CHE MONTANTE AVRO' TRA X ANNI? | RHI19: INVESTENDO UN CAPITALE ANNUALE CONOSCIUTO, CON O SENZA CAPITALE INIZIALE A UN TASSO DI RIV CONOSCIUTO CHE MONTANTE AVRO' TRA X ANNI? | RHY19: INVESTENDO UN CAPITALE ANNUALE CONOSCIUTO, CON O SENZA CAPITALE INIZIALE A UN TASSO DI RIV CONOSCIUTO CHE MONTANTE AVRO' TRA X ANNI? | RIO19: INVESTENDO UN CAPITALE ANNUALE CONOSCIUTO, CON O SENZA CAPITALE INIZIALE A UN TASSO DI RIV CONOSCIUTO CHE MONTANTE AVRO' TRA X ANNI? | RJE19: INVESTENDO UN CAPITALE ANNUALE CONOSCIUTO, CON O SENZA CAPITALE INIZIALE A UN TASSO DI RIV CONOSCIUTO CHE MONTANTE AVRO' TRA X ANNI? | RJU19: INVESTENDO UN CAPITALE ANNUALE CONOSCIUTO, CON O SENZA CAPITALE INIZIALE A UN TASSO DI RIV CONOSCIUTO CHE MONTANTE AVRO' TRA X ANNI? | RKK19: INVESTENDO UN CAPITALE ANNUALE CONOSCIUTO, CON O SENZA CAPITALE INIZIALE A UN TASSO DI RIV CONOSCIUTO CHE MONTANTE AVRO' TRA X ANNI? | RLA19: INVESTENDO UN CAPITALE ANNUALE CONOSCIUTO, CON O SENZA CAPITALE INIZIALE A UN TASSO DI RIV CONOSCIUTO CHE MONTANTE AVRO' TRA X ANNI? | RLQ19: INVESTENDO UN CAPITALE ANNUALE CONOSCIUTO, CON O SENZA CAPITALE INIZIALE A UN TASSO DI RIV CONOSCIUTO CHE MONTANTE AVRO' TRA X ANNI? | RMG19: INVESTENDO UN CAPITALE ANNUALE CONOSCIUTO, CON O SENZA CAPITALE INIZIALE A UN TASSO DI RIV CONOSCIUTO CHE MONTANTE AVRO' TRA X ANNI? | RMW19: INVESTENDO UN CAPITALE ANNUALE CONOSCIUTO, CON O SENZA CAPITALE INIZIALE A UN TASSO DI RIV CONOSCIUTO CHE MONTANTE AVRO' TRA X ANNI? | RNM19: INVESTENDO UN CAPITALE ANNUALE CONOSCIUTO, CON O SENZA CAPITALE INIZIALE A UN TASSO DI RIV CONOSCIUTO CHE MONTANTE AVRO' TRA X ANNI? | ROC19: INVESTENDO UN CAPITALE ANNUALE CONOSCIUTO, CON O SENZA CAPITALE INIZIALE A UN TASSO DI RIV CONOSCIUTO CHE MONTANTE AVRO' TRA X ANNI? | ROS19: INVESTENDO UN CAPITALE ANNUALE CONOSCIUTO, CON O SENZA CAPITALE INIZIALE A UN TASSO DI RIV CONOSCIUTO CHE MONTANTE AVRO' TRA X ANNI? | RPI19: INVESTENDO UN CAPITALE ANNUALE CONOSCIUTO, CON O SENZA CAPITALE INIZIALE A UN TASSO DI RIV CONOSCIUTO CHE MONTANTE AVRO' TRA X ANNI? | RPY19: INVESTENDO UN CAPITALE ANNUALE CONOSCIUTO, CON O SENZA CAPITALE INIZIALE A UN TASSO DI RIV CONOSCIUTO CHE MONTANTE AVRO' TRA X ANNI? | RQO19: INVESTENDO UN CAPITALE ANNUALE CONOSCIUTO, CON O SENZA CAPITALE INIZIALE A UN TASSO DI RIV CONOSCIUTO CHE MONTANTE AVRO' TRA X ANNI? | RRE19: INVESTENDO UN CAPITALE ANNUALE CONOSCIUTO, CON O SENZA CAPITALE INIZIALE A UN TASSO DI RIV CONOSCIUTO CHE MONTANTE AVRO' TRA X ANNI? | RRU19: INVESTENDO UN CAPITALE ANNUALE CONOSCIUTO, CON O SENZA CAPITALE INIZIALE A UN TASSO DI RIV CONOSCIUTO CHE MONTANTE AVRO' TRA X ANNI? | RSK19: INVESTENDO UN CAPITALE ANNUALE CONOSCIUTO, CON O SENZA CAPITALE INIZIALE A UN TASSO DI RIV CONOSCIUTO CHE MONTANTE AVRO' TRA X ANNI? | RTA19: INVESTENDO UN CAPITALE ANNUALE CONOSCIUTO, CON O SENZA CAPITALE INIZIALE A UN TASSO DI RIV CONOSCIUTO CHE MONTANTE AVRO' TRA X ANNI? | RTQ19: INVESTENDO UN CAPITALE ANNUALE CONOSCIUTO, CON O SENZA CAPITALE INIZIALE A UN TASSO DI RIV CONOSCIUTO CHE MONTANTE AVRO' TRA X ANNI? | RUG19: INVESTENDO UN CAPITALE ANNUALE CONOSCIUTO, CON O SENZA CAPITALE INIZIALE A UN TASSO DI RIV CONOSCIUTO CHE MONTANTE AVRO' TRA X ANNI? | RUW19: INVESTENDO UN CAPITALE ANNUALE CONOSCIUTO, CON O SENZA CAPITALE INIZIALE A UN TASSO DI RIV CONOSCIUTO CHE MONTANTE AVRO' TRA X ANNI? | RVM19: INVESTENDO UN CAPITALE ANNUALE CONOSCIUTO, CON O SENZA CAPITALE INIZIALE A UN TASSO DI RIV CONOSCIUTO CHE MONTANTE AVRO' TRA X ANNI? | RWC19: INVESTENDO UN CAPITALE ANNUALE CONOSCIUTO, CON O SENZA CAPITALE INIZIALE A UN TASSO DI RIV CONOSCIUTO CHE MONTANTE AVRO' TRA X ANNI? | RWS19: INVESTENDO UN CAPITALE ANNUALE CONOSCIUTO, CON O SENZA CAPITALE INIZIALE A UN TASSO DI RIV CONOSCIUTO CHE MONTANTE AVRO' TRA X ANNI? | RXI19: INVESTENDO UN CAPITALE ANNUALE CONOSCIUTO, CON O SENZA CAPITALE INIZIALE A UN TASSO DI RIV CONOSCIUTO CHE MONTANTE AVRO' TRA X ANNI? | RXY19: INVESTENDO UN CAPITALE ANNUALE CONOSCIUTO, CON O SENZA CAPITALE INIZIALE A UN TASSO DI RIV CONOSCIUTO CHE MONTANTE AVRO' TRA X ANNI? | RYO19: INVESTENDO UN CAPITALE ANNUALE CONOSCIUTO, CON O SENZA CAPITALE INIZIALE A UN TASSO DI RIV CONOSCIUTO CHE MONTANTE AVRO' TRA X ANNI? | RZE19: INVESTENDO UN CAPITALE ANNUALE CONOSCIUTO, CON O SENZA CAPITALE INIZIALE A UN TASSO DI RIV CONOSCIUTO CHE MONTANTE AVRO' TRA X ANNI? | RZU19: INVESTENDO UN CAPITALE ANNUALE CONOSCIUTO, CON O SENZA CAPITALE INIZIALE A UN TASSO DI RIV CONOSCIUTO CHE MONTANTE AVRO' TRA X ANNI? | SAK19: INVESTENDO UN CAPITALE ANNUALE CONOSCIUTO, CON O SENZA CAPITALE INIZIALE A UN TASSO DI RIV CONOSCIUTO CHE MONTANTE AVRO' TRA X ANNI? | SBA19: INVESTENDO UN CAPITALE ANNUALE CONOSCIUTO, CON O SENZA CAPITALE INIZIALE A UN TASSO DI RIV CONOSCIUTO CHE MONTANTE AVRO' TRA X ANNI? | SBQ19: INVESTENDO UN CAPITALE ANNUALE CONOSCIUTO, CON O SENZA CAPITALE INIZIALE A UN TASSO DI RIV CONOSCIUTO CHE MONTANTE AVRO' TRA X ANNI? | SCG19: INVESTENDO UN CAPITALE ANNUALE CONOSCIUTO, CON O SENZA CAPITALE INIZIALE A UN TASSO DI RIV CONOSCIUTO CHE MONTANTE AVRO' TRA X ANNI? | SCW19: INVESTENDO UN CAPITALE ANNUALE CONOSCIUTO, CON O SENZA CAPITALE INIZIALE A UN TASSO DI RIV CONOSCIUTO CHE MONTANTE AVRO' TRA X ANNI? | SDM19: INVESTENDO UN CAPITALE ANNUALE CONOSCIUTO, CON O SENZA CAPITALE INIZIALE A UN TASSO DI RIV CONOSCIUTO CHE MONTANTE AVRO' TRA X ANNI? | SEC19: INVESTENDO UN CAPITALE ANNUALE CONOSCIUTO, CON O SENZA CAPITALE INIZIALE A UN TASSO DI RIV CONOSCIUTO CHE MONTANTE AVRO' TRA X ANNI? | SES19: INVESTENDO UN CAPITALE ANNUALE CONOSCIUTO, CON O SENZA CAPITALE INIZIALE A UN TASSO DI RIV CONOSCIUTO CHE MONTANTE AVRO' TRA X ANNI? | SFI19: INVESTENDO UN CAPITALE ANNUALE CONOSCIUTO, CON O SENZA CAPITALE INIZIALE A UN TASSO DI RIV CONOSCIUTO CHE MONTANTE AVRO' TRA X ANNI? | SFY19: INVESTENDO UN CAPITALE ANNUALE CONOSCIUTO, CON O SENZA CAPITALE INIZIALE A UN TASSO DI RIV CONOSCIUTO CHE MONTANTE AVRO' TRA X ANNI? | SGO19: INVESTENDO UN CAPITALE ANNUALE CONOSCIUTO, CON O SENZA CAPITALE INIZIALE A UN TASSO DI RIV CONOSCIUTO CHE MONTANTE AVRO' TRA X ANNI? | SHE19: INVESTENDO UN CAPITALE ANNUALE CONOSCIUTO, CON O SENZA CAPITALE INIZIALE A UN TASSO DI RIV CONOSCIUTO CHE MONTANTE AVRO' TRA X ANNI? | SHU19: INVESTENDO UN CAPITALE ANNUALE CONOSCIUTO, CON O SENZA CAPITALE INIZIALE A UN TASSO DI RIV CONOSCIUTO CHE MONTANTE AVRO' TRA X ANNI? | SIK19: INVESTENDO UN CAPITALE ANNUALE CONOSCIUTO, CON O SENZA CAPITALE INIZIALE A UN TASSO DI RIV CONOSCIUTO CHE MONTANTE AVRO' TRA X ANNI? | SJA19: INVESTENDO UN CAPITALE ANNUALE CONOSCIUTO, CON O SENZA CAPITALE INIZIALE A UN TASSO DI RIV CONOSCIUTO CHE MONTANTE AVRO' TRA X ANNI? | SJQ19: INVESTENDO UN CAPITALE ANNUALE CONOSCIUTO, CON O SENZA CAPITALE INIZIALE A UN TASSO DI RIV CONOSCIUTO CHE MONTANTE AVRO' TRA X ANNI? | SKG19: INVESTENDO UN CAPITALE ANNUALE CONOSCIUTO, CON O SENZA CAPITALE INIZIALE A UN TASSO DI RIV CONOSCIUTO CHE MONTANTE AVRO' TRA X ANNI? | SKW19: INVESTENDO UN CAPITALE ANNUALE CONOSCIUTO, CON O SENZA CAPITALE INIZIALE A UN TASSO DI RIV CONOSCIUTO CHE MONTANTE AVRO' TRA X ANNI? | SLM19: INVESTENDO UN CAPITALE ANNUALE CONOSCIUTO, CON O SENZA CAPITALE INIZIALE A UN TASSO DI RIV CONOSCIUTO CHE MONTANTE AVRO' TRA X ANNI? | SMC19: INVESTENDO UN CAPITALE ANNUALE CONOSCIUTO, CON O SENZA CAPITALE INIZIALE A UN TASSO DI RIV CONOSCIUTO CHE MONTANTE AVRO' TRA X ANNI? | SMS19: INVESTENDO UN CAPITALE ANNUALE CONOSCIUTO, CON O SENZA CAPITALE INIZIALE A UN TASSO DI RIV CONOSCIUTO CHE MONTANTE AVRO' TRA X ANNI? | SNI19: INVESTENDO UN CAPITALE ANNUALE CONOSCIUTO, CON O SENZA CAPITALE INIZIALE A UN TASSO DI RIV CONOSCIUTO CHE MONTANTE AVRO' TRA X ANNI? | SNY19: INVESTENDO UN CAPITALE ANNUALE CONOSCIUTO, CON O SENZA CAPITALE INIZIALE A UN TASSO DI RIV CONOSCIUTO CHE MONTANTE AVRO' TRA X ANNI? | SOO19: INVESTENDO UN CAPITALE ANNUALE CONOSCIUTO, CON O SENZA CAPITALE INIZIALE A UN TASSO DI RIV CONOSCIUTO CHE MONTANTE AVRO' TRA X ANNI? | SPE19: INVESTENDO UN CAPITALE ANNUALE CONOSCIUTO, CON O SENZA CAPITALE INIZIALE A UN TASSO DI RIV CONOSCIUTO CHE MONTANTE AVRO' TRA X ANNI? | SPU19: INVESTENDO UN CAPITALE ANNUALE CONOSCIUTO, CON O SENZA CAPITALE INIZIALE A UN TASSO DI RIV CONOSCIUTO CHE MONTANTE AVRO' TRA X ANNI? | SQK19: INVESTENDO UN CAPITALE ANNUALE CONOSCIUTO, CON O SENZA CAPITALE INIZIALE A UN TASSO DI RIV CONOSCIUTO CHE MONTANTE AVRO' TRA X ANNI? | SRA19: INVESTENDO UN CAPITALE ANNUALE CONOSCIUTO, CON O SENZA CAPITALE INIZIALE A UN TASSO DI RIV CONOSCIUTO CHE MONTANTE AVRO' TRA X ANNI? | SRQ19: INVESTENDO UN CAPITALE ANNUALE CONOSCIUTO, CON O SENZA CAPITALE INIZIALE A UN TASSO DI RIV CONOSCIUTO CHE MONTANTE AVRO' TRA X ANNI? | SSG19: INVESTENDO UN CAPITALE ANNUALE CONOSCIUTO, CON O SENZA CAPITALE INIZIALE A UN TASSO DI RIV CONOSCIUTO CHE MONTANTE AVRO' TRA X ANNI? | SSW19: INVESTENDO UN CAPITALE ANNUALE CONOSCIUTO, CON O SENZA CAPITALE INIZIALE A UN TASSO DI RIV CONOSCIUTO CHE MONTANTE AVRO' TRA X ANNI? | STM19: INVESTENDO UN CAPITALE ANNUALE CONOSCIUTO, CON O SENZA CAPITALE INIZIALE A UN TASSO DI RIV CONOSCIUTO CHE MONTANTE AVRO' TRA X ANNI? | SUC19: INVESTENDO UN CAPITALE ANNUALE CONOSCIUTO, CON O SENZA CAPITALE INIZIALE A UN TASSO DI RIV CONOSCIUTO CHE MONTANTE AVRO' TRA X ANNI? | SUS19: INVESTENDO UN CAPITALE ANNUALE CONOSCIUTO, CON O SENZA CAPITALE INIZIALE A UN TASSO DI RIV CONOSCIUTO CHE MONTANTE AVRO' TRA X ANNI? | SVI19: INVESTENDO UN CAPITALE ANNUALE CONOSCIUTO, CON O SENZA CAPITALE INIZIALE A UN TASSO DI RIV CONOSCIUTO CHE MONTANTE AVRO' TRA X ANNI? | SVY19: INVESTENDO UN CAPITALE ANNUALE CONOSCIUTO, CON O SENZA CAPITALE INIZIALE A UN TASSO DI RIV CONOSCIUTO CHE MONTANTE AVRO' TRA X ANNI? | SWO19: INVESTENDO UN CAPITALE ANNUALE CONOSCIUTO, CON O SENZA CAPITALE INIZIALE A UN TASSO DI RIV CONOSCIUTO CHE MONTANTE AVRO' TRA X ANNI? | SXE19: INVESTENDO UN CAPITALE ANNUALE CONOSCIUTO, CON O SENZA CAPITALE INIZIALE A UN TASSO DI RIV CONOSCIUTO CHE MONTANTE AVRO' TRA X ANNI? | SXU19: INVESTENDO UN CAPITALE ANNUALE CONOSCIUTO, CON O SENZA CAPITALE INIZIALE A UN TASSO DI RIV CONOSCIUTO CHE MONTANTE AVRO' TRA X ANNI? | SYK19: INVESTENDO UN CAPITALE ANNUALE CONOSCIUTO, CON O SENZA CAPITALE INIZIALE A UN TASSO DI RIV CONOSCIUTO CHE MONTANTE AVRO' TRA X ANNI? | SZA19: INVESTENDO UN CAPITALE ANNUALE CONOSCIUTO, CON O SENZA CAPITALE INIZIALE A UN TASSO DI RIV CONOSCIUTO CHE MONTANTE AVRO' TRA X ANNI? | SZQ19: INVESTENDO UN CAPITALE ANNUALE CONOSCIUTO, CON O SENZA CAPITALE INIZIALE A UN TASSO DI RIV CONOSCIUTO CHE MONTANTE AVRO' TRA X ANNI? | TAG19: INVESTENDO UN CAPITALE ANNUALE CONOSCIUTO, CON O SENZA CAPITALE INIZIALE A UN TASSO DI RIV CONOSCIUTO CHE MONTANTE AVRO' TRA X ANNI? | TAW19: INVESTENDO UN CAPITALE ANNUALE CONOSCIUTO, CON O SENZA CAPITALE INIZIALE A UN TASSO DI RIV CONOSCIUTO CHE MONTANTE AVRO' TRA X ANNI? | TBM19: INVESTENDO UN CAPITALE ANNUALE CONOSCIUTO, CON O SENZA CAPITALE INIZIALE A UN TASSO DI RIV CONOSCIUTO CHE MONTANTE AVRO' TRA X ANNI? | TCC19: INVESTENDO UN CAPITALE ANNUALE CONOSCIUTO, CON O SENZA CAPITALE INIZIALE A UN TASSO DI RIV CONOSCIUTO CHE MONTANTE AVRO' TRA X ANNI? | TCS19: INVESTENDO UN CAPITALE ANNUALE CONOSCIUTO, CON O SENZA CAPITALE INIZIALE A UN TASSO DI RIV CONOSCIUTO CHE MONTANTE AVRO' TRA X ANNI? | TDI19: INVESTENDO UN CAPITALE ANNUALE CONOSCIUTO, CON O SENZA CAPITALE INIZIALE A UN TASSO DI RIV CONOSCIUTO CHE MONTANTE AVRO' TRA X ANNI? | TDY19: INVESTENDO UN CAPITALE ANNUALE CONOSCIUTO, CON O SENZA CAPITALE INIZIALE A UN TASSO DI RIV CONOSCIUTO CHE MONTANTE AVRO' TRA X ANNI? | TEO19: INVESTENDO UN CAPITALE ANNUALE CONOSCIUTO, CON O SENZA CAPITALE INIZIALE A UN TASSO DI RIV CONOSCIUTO CHE MONTANTE AVRO' TRA X ANNI? | TFE19: INVESTENDO UN CAPITALE ANNUALE CONOSCIUTO, CON O SENZA CAPITALE INIZIALE A UN TASSO DI RIV CONOSCIUTO CHE MONTANTE AVRO' TRA X ANNI? | TFU19: INVESTENDO UN CAPITALE ANNUALE CONOSCIUTO, CON O SENZA CAPITALE INIZIALE A UN TASSO DI RIV CONOSCIUTO CHE MONTANTE AVRO' TRA X ANNI? | TGK19: INVESTENDO UN CAPITALE ANNUALE CONOSCIUTO, CON O SENZA CAPITALE INIZIALE A UN TASSO DI RIV CONOSCIUTO CHE MONTANTE AVRO' TRA X ANNI? | THA19: INVESTENDO UN CAPITALE ANNUALE CONOSCIUTO, CON O SENZA CAPITALE INIZIALE A UN TASSO DI RIV CONOSCIUTO CHE MONTANTE AVRO' TRA X ANNI? | THQ19: INVESTENDO UN CAPITALE ANNUALE CONOSCIUTO, CON O SENZA CAPITALE INIZIALE A UN TASSO DI RIV CONOSCIUTO CHE MONTANTE AVRO' TRA X ANNI? | TIG19: INVESTENDO UN CAPITALE ANNUALE CONOSCIUTO, CON O SENZA CAPITALE INIZIALE A UN TASSO DI RIV CONOSCIUTO CHE MONTANTE AVRO' TRA X ANNI? | TIW19: INVESTENDO UN CAPITALE ANNUALE CONOSCIUTO, CON O SENZA CAPITALE INIZIALE A UN TASSO DI RIV CONOSCIUTO CHE MONTANTE AVRO' TRA X ANNI? | TJM19: INVESTENDO UN CAPITALE ANNUALE CONOSCIUTO, CON O SENZA CAPITALE INIZIALE A UN TASSO DI RIV CONOSCIUTO CHE MONTANTE AVRO' TRA X ANNI? | TKC19: INVESTENDO UN CAPITALE ANNUALE CONOSCIUTO, CON O SENZA CAPITALE INIZIALE A UN TASSO DI RIV CONOSCIUTO CHE MONTANTE AVRO' TRA X ANNI? | TKS19: INVESTENDO UN CAPITALE ANNUALE CONOSCIUTO, CON O SENZA CAPITALE INIZIALE A UN TASSO DI RIV CONOSCIUTO CHE MONTANTE AVRO' TRA X ANNI? | TLI19: INVESTENDO UN CAPITALE ANNUALE CONOSCIUTO, CON O SENZA CAPITALE INIZIALE A UN TASSO DI RIV CONOSCIUTO CHE MONTANTE AVRO' TRA X ANNI? | TLY19: INVESTENDO UN CAPITALE ANNUALE CONOSCIUTO, CON O SENZA CAPITALE INIZIALE A UN TASSO DI RIV CONOSCIUTO CHE MONTANTE AVRO' TRA X ANNI? | TMO19: INVESTENDO UN CAPITALE ANNUALE CONOSCIUTO, CON O SENZA CAPITALE INIZIALE A UN TASSO DI RIV CONOSCIUTO CHE MONTANTE AVRO' TRA X ANNI? | TNE19: INVESTENDO UN CAPITALE ANNUALE CONOSCIUTO, CON O SENZA CAPITALE INIZIALE A UN TASSO DI RIV CONOSCIUTO CHE MONTANTE AVRO' TRA X ANNI? | TNU19: INVESTENDO UN CAPITALE ANNUALE CONOSCIUTO, CON O SENZA CAPITALE INIZIALE A UN TASSO DI RIV CONOSCIUTO CHE MONTANTE AVRO' TRA X ANNI? | TOK19: INVESTENDO UN CAPITALE ANNUALE CONOSCIUTO, CON O SENZA CAPITALE INIZIALE A UN TASSO DI RIV CONOSCIUTO CHE MONTANTE AVRO' TRA X ANNI? | TPA19: INVESTENDO UN CAPITALE ANNUALE CONOSCIUTO, CON O SENZA CAPITALE INIZIALE A UN TASSO DI RIV CONOSCIUTO CHE MONTANTE AVRO' TRA X ANNI? | TPQ19: INVESTENDO UN CAPITALE ANNUALE CONOSCIUTO, CON O SENZA CAPITALE INIZIALE A UN TASSO DI RIV CONOSCIUTO CHE MONTANTE AVRO' TRA X ANNI? | TQG19: INVESTENDO UN CAPITALE ANNUALE CONOSCIUTO, CON O SENZA CAPITALE INIZIALE A UN TASSO DI RIV CONOSCIUTO CHE MONTANTE AVRO' TRA X ANNI? | TQW19: INVESTENDO UN CAPITALE ANNUALE CONOSCIUTO, CON O SENZA CAPITALE INIZIALE A UN TASSO DI RIV CONOSCIUTO CHE MONTANTE AVRO' TRA X ANNI? | TRM19: INVESTENDO UN CAPITALE ANNUALE CONOSCIUTO, CON O SENZA CAPITALE INIZIALE A UN TASSO DI RIV CONOSCIUTO CHE MONTANTE AVRO' TRA X ANNI? | TSC19: INVESTENDO UN CAPITALE ANNUALE CONOSCIUTO, CON O SENZA CAPITALE INIZIALE A UN TASSO DI RIV CONOSCIUTO CHE MONTANTE AVRO' TRA X ANNI? | TSS19: INVESTENDO UN CAPITALE ANNUALE CONOSCIUTO, CON O SENZA CAPITALE INIZIALE A UN TASSO DI RIV CONOSCIUTO CHE MONTANTE AVRO' TRA X ANNI? | TTI19: INVESTENDO UN CAPITALE ANNUALE CONOSCIUTO, CON O SENZA CAPITALE INIZIALE A UN TASSO DI RIV CONOSCIUTO CHE MONTANTE AVRO' TRA X ANNI? | TTY19: INVESTENDO UN CAPITALE ANNUALE CONOSCIUTO, CON O SENZA CAPITALE INIZIALE A UN TASSO DI RIV CONOSCIUTO CHE MONTANTE AVRO' TRA X ANNI? | TUO19: INVESTENDO UN CAPITALE ANNUALE CONOSCIUTO, CON O SENZA CAPITALE INIZIALE A UN TASSO DI RIV CONOSCIUTO CHE MONTANTE AVRO' TRA X ANNI? | TVE19: INVESTENDO UN CAPITALE ANNUALE CONOSCIUTO, CON O SENZA CAPITALE INIZIALE A UN TASSO DI RIV CONOSCIUTO CHE MONTANTE AVRO' TRA X ANNI? | TVU19: INVESTENDO UN CAPITALE ANNUALE CONOSCIUTO, CON O SENZA CAPITALE INIZIALE A UN TASSO DI RIV CONOSCIUTO CHE MONTANTE AVRO' TRA X ANNI? | TWK19: INVESTENDO UN CAPITALE ANNUALE CONOSCIUTO, CON O SENZA CAPITALE INIZIALE A UN TASSO DI RIV CONOSCIUTO CHE MONTANTE AVRO' TRA X ANNI? | TXA19: INVESTENDO UN CAPITALE ANNUALE CONOSCIUTO, CON O SENZA CAPITALE INIZIALE A UN TASSO DI RIV CONOSCIUTO CHE MONTANTE AVRO' TRA X ANNI? | TXQ19: INVESTENDO UN CAPITALE ANNUALE CONOSCIUTO, CON O SENZA CAPITALE INIZIALE A UN TASSO DI RIV CONOSCIUTO CHE MONTANTE AVRO' TRA X ANNI? | TYG19: INVESTENDO UN CAPITALE ANNUALE CONOSCIUTO, CON O SENZA CAPITALE INIZIALE A UN TASSO DI RIV CONOSCIUTO CHE MONTANTE AVRO' TRA X ANNI? | TYW19: INVESTENDO UN CAPITALE ANNUALE CONOSCIUTO, CON O SENZA CAPITALE INIZIALE A UN TASSO DI RIV CONOSCIUTO CHE MONTANTE AVRO' TRA X ANNI? | TZM19: INVESTENDO UN CAPITALE ANNUALE CONOSCIUTO, CON O SENZA CAPITALE INIZIALE A UN TASSO DI RIV CONOSCIUTO CHE MONTANTE AVRO' TRA X ANNI? | UAC19: INVESTENDO UN CAPITALE ANNUALE CONOSCIUTO, CON O SENZA CAPITALE INIZIALE A UN TASSO DI RIV CONOSCIUTO CHE MONTANTE AVRO' TRA X ANNI? | UAS19: INVESTENDO UN CAPITALE ANNUALE CONOSCIUTO, CON O SENZA CAPITALE INIZIALE A UN TASSO DI RIV CONOSCIUTO CHE MONTANTE AVRO' TRA X ANNI? | UBI19: INVESTENDO UN CAPITALE ANNUALE CONOSCIUTO, CON O SENZA CAPITALE INIZIALE A UN TASSO DI RIV CONOSCIUTO CHE MONTANTE AVRO' TRA X ANNI? | UBY19: INVESTENDO UN CAPITALE ANNUALE CONOSCIUTO, CON O SENZA CAPITALE INIZIALE A UN TASSO DI RIV CONOSCIUTO CHE MONTANTE AVRO' TRA X ANNI? | UCO19: INVESTENDO UN CAPITALE ANNUALE CONOSCIUTO, CON O SENZA CAPITALE INIZIALE A UN TASSO DI RIV CONOSCIUTO CHE MONTANTE AVRO' TRA X ANNI? | UDE19: INVESTENDO UN CAPITALE ANNUALE CONOSCIUTO, CON O SENZA CAPITALE INIZIALE A UN TASSO DI RIV CONOSCIUTO CHE MONTANTE AVRO' TRA X ANNI? | UDU19: INVESTENDO UN CAPITALE ANNUALE CONOSCIUTO, CON O SENZA CAPITALE INIZIALE A UN TASSO DI RIV CONOSCIUTO CHE MONTANTE AVRO' TRA X ANNI? | UEK19: INVESTENDO UN CAPITALE ANNUALE CONOSCIUTO, CON O SENZA CAPITALE INIZIALE A UN TASSO DI RIV CONOSCIUTO CHE MONTANTE AVRO' TRA X ANNI? | UFA19: INVESTENDO UN CAPITALE ANNUALE CONOSCIUTO, CON O SENZA CAPITALE INIZIALE A UN TASSO DI RIV CONOSCIUTO CHE MONTANTE AVRO' TRA X ANNI? | UFQ19: INVESTENDO UN CAPITALE ANNUALE CONOSCIUTO, CON O SENZA CAPITALE INIZIALE A UN TASSO DI RIV CONOSCIUTO CHE MONTANTE AVRO' TRA X ANNI? | UGG19: INVESTENDO UN CAPITALE ANNUALE CONOSCIUTO, CON O SENZA CAPITALE INIZIALE A UN TASSO DI RIV CONOSCIUTO CHE MONTANTE AVRO' TRA X ANNI? | UGW19: INVESTENDO UN CAPITALE ANNUALE CONOSCIUTO, CON O SENZA CAPITALE INIZIALE A UN TASSO DI RIV CONOSCIUTO CHE MONTANTE AVRO' TRA X ANNI? | UHM19: INVESTENDO UN CAPITALE ANNUALE CONOSCIUTO, CON O SENZA CAPITALE INIZIALE A UN TASSO DI RIV CONOSCIUTO CHE MONTANTE AVRO' TRA X ANNI? | UIC19: INVESTENDO UN CAPITALE ANNUALE CONOSCIUTO, CON O SENZA CAPITALE INIZIALE A UN TASSO DI RIV CONOSCIUTO CHE MONTANTE AVRO' TRA X ANNI? | UIS19: INVESTENDO UN CAPITALE ANNUALE CONOSCIUTO, CON O SENZA CAPITALE INIZIALE A UN TASSO DI RIV CONOSCIUTO CHE MONTANTE AVRO' TRA X ANNI? | UJI19: INVESTENDO UN CAPITALE ANNUALE CONOSCIUTO, CON O SENZA CAPITALE INIZIALE A UN TASSO DI RIV CONOSCIUTO CHE MONTANTE AVRO' TRA X ANNI? | UJY19: INVESTENDO UN CAPITALE ANNUALE CONOSCIUTO, CON O SENZA CAPITALE INIZIALE A UN TASSO DI RIV CONOSCIUTO CHE MONTANTE AVRO' TRA X ANNI? | UKO19: INVESTENDO UN CAPITALE ANNUALE CONOSCIUTO, CON O SENZA CAPITALE INIZIALE A UN TASSO DI RIV CONOSCIUTO CHE MONTANTE AVRO' TRA X ANNI? | ULE19: INVESTENDO UN CAPITALE ANNUALE CONOSCIUTO, CON O SENZA CAPITALE INIZIALE A UN TASSO DI RIV CONOSCIUTO CHE MONTANTE AVRO' TRA X ANNI? | ULU19: INVESTENDO UN CAPITALE ANNUALE CONOSCIUTO, CON O SENZA CAPITALE INIZIALE A UN TASSO DI RIV CONOSCIUTO CHE MONTANTE AVRO' TRA X ANNI? | UMK19: INVESTENDO UN CAPITALE ANNUALE CONOSCIUTO, CON O SENZA CAPITALE INIZIALE A UN TASSO DI RIV CONOSCIUTO CHE MONTANTE AVRO' TRA X ANNI? | UNA19: INVESTENDO UN CAPITALE ANNUALE CONOSCIUTO, CON O SENZA CAPITALE INIZIALE A UN TASSO DI RIV CONOSCIUTO CHE MONTANTE AVRO' TRA X ANNI? | UNQ19: INVESTENDO UN CAPITALE ANNUALE CONOSCIUTO, CON O SENZA CAPITALE INIZIALE A UN TASSO DI RIV CONOSCIUTO CHE MONTANTE AVRO' TRA X ANNI? | UOG19: INVESTENDO UN CAPITALE ANNUALE CONOSCIUTO, CON O SENZA CAPITALE INIZIALE A UN TASSO DI RIV CONOSCIUTO CHE MONTANTE AVRO' TRA X ANNI? | UOW19: INVESTENDO UN CAPITALE ANNUALE CONOSCIUTO, CON O SENZA CAPITALE INIZIALE A UN TASSO DI RIV CONOSCIUTO CHE MONTANTE AVRO' TRA X ANNI? | UPM19: INVESTENDO UN CAPITALE ANNUALE CONOSCIUTO, CON O SENZA CAPITALE INIZIALE A UN TASSO DI RIV CONOSCIUTO CHE MONTANTE AVRO' TRA X ANNI? | UQC19: INVESTENDO UN CAPITALE ANNUALE CONOSCIUTO, CON O SENZA CAPITALE INIZIALE A UN TASSO DI RIV CONOSCIUTO CHE MONTANTE AVRO' TRA X ANNI? | UQS19: INVESTENDO UN CAPITALE ANNUALE CONOSCIUTO, CON O SENZA CAPITALE INIZIALE A UN TASSO DI RIV CONOSCIUTO CHE MONTANTE AVRO' TRA X ANNI? | URI19: INVESTENDO UN CAPITALE ANNUALE CONOSCIUTO, CON O SENZA CAPITALE INIZIALE A UN TASSO DI RIV CONOSCIUTO CHE MONTANTE AVRO' TRA X ANNI? | URY19: INVESTENDO UN CAPITALE ANNUALE CONOSCIUTO, CON O SENZA CAPITALE INIZIALE A UN TASSO DI RIV CONOSCIUTO CHE MONTANTE AVRO' TRA X ANNI? | USO19: INVESTENDO UN CAPITALE ANNUALE CONOSCIUTO, CON O SENZA CAPITALE INIZIALE A UN TASSO DI RIV CONOSCIUTO CHE MONTANTE AVRO' TRA X ANNI? | UTE19: INVESTENDO UN CAPITALE ANNUALE CONOSCIUTO, CON O SENZA CAPITALE INIZIALE A UN TASSO DI RIV CONOSCIUTO CHE MONTANTE AVRO' TRA X ANNI? | UTU19: INVESTENDO UN CAPITALE ANNUALE CONOSCIUTO, CON O SENZA CAPITALE INIZIALE A UN TASSO DI RIV CONOSCIUTO CHE MONTANTE AVRO' TRA X ANNI? | UUK19: INVESTENDO UN CAPITALE ANNUALE CONOSCIUTO, CON O SENZA CAPITALE INIZIALE A UN TASSO DI RIV CONOSCIUTO CHE MONTANTE AVRO' TRA X ANNI? | UVA19: INVESTENDO UN CAPITALE ANNUALE CONOSCIUTO, CON O SENZA CAPITALE INIZIALE A UN TASSO DI RIV CONOSCIUTO CHE MONTANTE AVRO' TRA X ANNI? | UVQ19: INVESTENDO UN CAPITALE ANNUALE CONOSCIUTO, CON O SENZA CAPITALE INIZIALE A UN TASSO DI RIV CONOSCIUTO CHE MONTANTE AVRO' TRA X ANNI? | UWG19: INVESTENDO UN CAPITALE ANNUALE CONOSCIUTO, CON O SENZA CAPITALE INIZIALE A UN TASSO DI RIV CONOSCIUTO CHE MONTANTE AVRO' TRA X ANNI? | UWW19: INVESTENDO UN CAPITALE ANNUALE CONOSCIUTO, CON O SENZA CAPITALE INIZIALE A UN TASSO DI RIV CONOSCIUTO CHE MONTANTE AVRO' TRA X ANNI? | UXM19: INVESTENDO UN CAPITALE ANNUALE CONOSCIUTO, CON O SENZA CAPITALE INIZIALE A UN TASSO DI RIV CONOSCIUTO CHE MONTANTE AVRO' TRA X ANNI? | UYC19: INVESTENDO UN CAPITALE ANNUALE CONOSCIUTO, CON O SENZA CAPITALE INIZIALE A UN TASSO DI RIV CONOSCIUTO CHE MONTANTE AVRO' TRA X ANNI? | UYS19: INVESTENDO UN CAPITALE ANNUALE CONOSCIUTO, CON O SENZA CAPITALE INIZIALE A UN TASSO DI RIV CONOSCIUTO CHE MONTANTE AVRO' TRA X ANNI? | UZI19: INVESTENDO UN CAPITALE ANNUALE CONOSCIUTO, CON O SENZA CAPITALE INIZIALE A UN TASSO DI RIV CONOSCIUTO CHE MONTANTE AVRO' TRA X ANNI? | UZY19: INVESTENDO UN CAPITALE ANNUALE CONOSCIUTO, CON O SENZA CAPITALE INIZIALE A UN TASSO DI RIV CONOSCIUTO CHE MONTANTE AVRO' TRA X ANNI? | VAO19: INVESTENDO UN CAPITALE ANNUALE CONOSCIUTO, CON O SENZA CAPITALE INIZIALE A UN TASSO DI RIV CONOSCIUTO CHE MONTANTE AVRO' TRA X ANNI? | VBE19: INVESTENDO UN CAPITALE ANNUALE CONOSCIUTO, CON O SENZA CAPITALE INIZIALE A UN TASSO DI RIV CONOSCIUTO CHE MONTANTE AVRO' TRA X ANNI? | VBU19: INVESTENDO UN CAPITALE ANNUALE CONOSCIUTO, CON O SENZA CAPITALE INIZIALE A UN TASSO DI RIV CONOSCIUTO CHE MONTANTE AVRO' TRA X ANNI? | VCK19: INVESTENDO UN CAPITALE ANNUALE CONOSCIUTO, CON O SENZA CAPITALE INIZIALE A UN TASSO DI RIV CONOSCIUTO CHE MONTANTE AVRO' TRA X ANNI? | VDA19: INVESTENDO UN CAPITALE ANNUALE CONOSCIUTO, CON O SENZA CAPITALE INIZIALE A UN TASSO DI RIV CONOSCIUTO CHE MONTANTE AVRO' TRA X ANNI? | VDQ19: INVESTENDO UN CAPITALE ANNUALE CONOSCIUTO, CON O SENZA CAPITALE INIZIALE A UN TASSO DI RIV CONOSCIUTO CHE MONTANTE AVRO' TRA X ANNI? | VEG19: INVESTENDO UN CAPITALE ANNUALE CONOSCIUTO, CON O SENZA CAPITALE INIZIALE A UN TASSO DI RIV CONOSCIUTO CHE MONTANTE AVRO' TRA X ANNI? | VEW19: INVESTENDO UN CAPITALE ANNUALE CONOSCIUTO, CON O SENZA CAPITALE INIZIALE A UN TASSO DI RIV CONOSCIUTO CHE MONTANTE AVRO' TRA X ANNI? | VFM19: INVESTENDO UN CAPITALE ANNUALE CONOSCIUTO, CON O SENZA CAPITALE INIZIALE A UN TASSO DI RIV CONOSCIUTO CHE MONTANTE AVRO' TRA X ANNI? | VGC19: INVESTENDO UN CAPITALE ANNUALE CONOSCIUTO, CON O SENZA CAPITALE INIZIALE A UN TASSO DI RIV CONOSCIUTO CHE MONTANTE AVRO' TRA X ANNI? | VGS19: INVESTENDO UN CAPITALE ANNUALE CONOSCIUTO, CON O SENZA CAPITALE INIZIALE A UN TASSO DI RIV CONOSCIUTO CHE MONTANTE AVRO' TRA X ANNI? | VHI19: INVESTENDO UN CAPITALE ANNUALE CONOSCIUTO, CON O SENZA CAPITALE INIZIALE A UN TASSO DI RIV CONOSCIUTO CHE MONTANTE AVRO' TRA X ANNI? | VHY19: INVESTENDO UN CAPITALE ANNUALE CONOSCIUTO, CON O SENZA CAPITALE INIZIALE A UN TASSO DI RIV CONOSCIUTO CHE MONTANTE AVRO' TRA X ANNI? | VIO19: INVESTENDO UN CAPITALE ANNUALE CONOSCIUTO, CON O SENZA CAPITALE INIZIALE A UN TASSO DI RIV CONOSCIUTO CHE MONTANTE AVRO' TRA X ANNI? | VJE19: INVESTENDO UN CAPITALE ANNUALE CONOSCIUTO, CON O SENZA CAPITALE INIZIALE A UN TASSO DI RIV CONOSCIUTO CHE MONTANTE AVRO' TRA X ANNI? | VJU19: INVESTENDO UN CAPITALE ANNUALE CONOSCIUTO, CON O SENZA CAPITALE INIZIALE A UN TASSO DI RIV CONOSCIUTO CHE MONTANTE AVRO' TRA X ANNI? | VKK19: INVESTENDO UN CAPITALE ANNUALE CONOSCIUTO, CON O SENZA CAPITALE INIZIALE A UN TASSO DI RIV CONOSCIUTO CHE MONTANTE AVRO' TRA X ANNI? | VLA19: INVESTENDO UN CAPITALE ANNUALE CONOSCIUTO, CON O SENZA CAPITALE INIZIALE A UN TASSO DI RIV CONOSCIUTO CHE MONTANTE AVRO' TRA X ANNI? | VLQ19: INVESTENDO UN CAPITALE ANNUALE CONOSCIUTO, CON O SENZA CAPITALE INIZIALE A UN TASSO DI RIV CONOSCIUTO CHE MONTANTE AVRO' TRA X ANNI? | VMG19: INVESTENDO UN CAPITALE ANNUALE CONOSCIUTO, CON O SENZA CAPITALE INIZIALE A UN TASSO DI RIV CONOSCIUTO CHE MONTANTE AVRO' TRA X ANNI? | VMW19: INVESTENDO UN CAPITALE ANNUALE CONOSCIUTO, CON O SENZA CAPITALE INIZIALE A UN TASSO DI RIV CONOSCIUTO CHE MONTANTE AVRO' TRA X ANNI? | VNM19: INVESTENDO UN CAPITALE ANNUALE CONOSCIUTO, CON O SENZA CAPITALE INIZIALE A UN TASSO DI RIV CONOSCIUTO CHE MONTANTE AVRO' TRA X ANNI? | VOC19: INVESTENDO UN CAPITALE ANNUALE CONOSCIUTO, CON O SENZA CAPITALE INIZIALE A UN TASSO DI RIV CONOSCIUTO CHE MONTANTE AVRO' TRA X ANNI? | VOS19: INVESTENDO UN CAPITALE ANNUALE CONOSCIUTO, CON O SENZA CAPITALE INIZIALE A UN TASSO DI RIV CONOSCIUTO CHE MONTANTE AVRO' TRA X ANNI? | VPI19: INVESTENDO UN CAPITALE ANNUALE CONOSCIUTO, CON O SENZA CAPITALE INIZIALE A UN TASSO DI RIV CONOSCIUTO CHE MONTANTE AVRO' TRA X ANNI? | VPY19: INVESTENDO UN CAPITALE ANNUALE CONOSCIUTO, CON O SENZA CAPITALE INIZIALE A UN TASSO DI RIV CONOSCIUTO CHE MONTANTE AVRO' TRA X ANNI? | VQO19: INVESTENDO UN CAPITALE ANNUALE CONOSCIUTO, CON O SENZA CAPITALE INIZIALE A UN TASSO DI RIV CONOSCIUTO CHE MONTANTE AVRO' TRA X ANNI? | VRE19: INVESTENDO UN CAPITALE ANNUALE CONOSCIUTO, CON O SENZA CAPITALE INIZIALE A UN TASSO DI RIV CONOSCIUTO CHE MONTANTE AVRO' TRA X ANNI? | VRU19: INVESTENDO UN CAPITALE ANNUALE CONOSCIUTO, CON O SENZA CAPITALE INIZIALE A UN TASSO DI RIV CONOSCIUTO CHE MONTANTE AVRO' TRA X ANNI? | VSK19: INVESTENDO UN CAPITALE ANNUALE CONOSCIUTO, CON O SENZA CAPITALE INIZIALE A UN TASSO DI RIV CONOSCIUTO CHE MONTANTE AVRO' TRA X ANNI? | VTA19: INVESTENDO UN CAPITALE ANNUALE CONOSCIUTO, CON O SENZA CAPITALE INIZIALE A UN TASSO DI RIV CONOSCIUTO CHE MONTANTE AVRO' TRA X ANNI? | VTQ19: INVESTENDO UN CAPITALE ANNUALE CONOSCIUTO, CON O SENZA CAPITALE INIZIALE A UN TASSO DI RIV CONOSCIUTO CHE MONTANTE AVRO' TRA X ANNI? | VUG19: INVESTENDO UN CAPITALE ANNUALE CONOSCIUTO, CON O SENZA CAPITALE INIZIALE A UN TASSO DI RIV CONOSCIUTO CHE MONTANTE AVRO' TRA X ANNI? | VUW19: INVESTENDO UN CAPITALE ANNUALE CONOSCIUTO, CON O SENZA CAPITALE INIZIALE A UN TASSO DI RIV CONOSCIUTO CHE MONTANTE AVRO' TRA X ANNI? | VVM19: INVESTENDO UN CAPITALE ANNUALE CONOSCIUTO, CON O SENZA CAPITALE INIZIALE A UN TASSO DI RIV CONOSCIUTO CHE MONTANTE AVRO' TRA X ANNI? | VWC19: INVESTENDO UN CAPITALE ANNUALE CONOSCIUTO, CON O SENZA CAPITALE INIZIALE A UN TASSO DI RIV CONOSCIUTO CHE MONTANTE AVRO' TRA X ANNI? | VWS19: INVESTENDO UN CAPITALE ANNUALE CONOSCIUTO, CON O SENZA CAPITALE INIZIALE A UN TASSO DI RIV CONOSCIUTO CHE MONTANTE AVRO' TRA X ANNI? | VXI19: INVESTENDO UN CAPITALE ANNUALE CONOSCIUTO, CON O SENZA CAPITALE INIZIALE A UN TASSO DI RIV CONOSCIUTO CHE MONTANTE AVRO' TRA X ANNI? | VXY19: INVESTENDO UN CAPITALE ANNUALE CONOSCIUTO, CON O SENZA CAPITALE INIZIALE A UN TASSO DI RIV CONOSCIUTO CHE MONTANTE AVRO' TRA X ANNI? | VYO19: INVESTENDO UN CAPITALE ANNUALE CONOSCIUTO, CON O SENZA CAPITALE INIZIALE A UN TASSO DI RIV CONOSCIUTO CHE MONTANTE AVRO' TRA X ANNI? | VZE19: INVESTENDO UN CAPITALE ANNUALE CONOSCIUTO, CON O SENZA CAPITALE INIZIALE A UN TASSO DI RIV CONOSCIUTO CHE MONTANTE AVRO' TRA X ANNI? | VZU19: INVESTENDO UN CAPITALE ANNUALE CONOSCIUTO, CON O SENZA CAPITALE INIZIALE A UN TASSO DI RIV CONOSCIUTO CHE MONTANTE AVRO' TRA X ANNI? | WAK19: INVESTENDO UN CAPITALE ANNUALE CONOSCIUTO, CON O SENZA CAPITALE INIZIALE A UN TASSO DI RIV CONOSCIUTO CHE MONTANTE AVRO' TRA X ANNI? | WBA19: INVESTENDO UN CAPITALE ANNUALE CONOSCIUTO, CON O SENZA CAPITALE INIZIALE A UN TASSO DI RIV CONOSCIUTO CHE MONTANTE AVRO' TRA X ANNI? | WBQ19: INVESTENDO UN CAPITALE ANNUALE CONOSCIUTO, CON O SENZA CAPITALE INIZIALE A UN TASSO DI RIV CONOSCIUTO CHE MONTANTE AVRO' TRA X ANNI? | WCG19: INVESTENDO UN CAPITALE ANNUALE CONOSCIUTO, CON O SENZA CAPITALE INIZIALE A UN TASSO DI RIV CONOSCIUTO CHE MONTANTE AVRO' TRA X ANNI? | WCW19: INVESTENDO UN CAPITALE ANNUALE CONOSCIUTO, CON O SENZA CAPITALE INIZIALE A UN TASSO DI RIV CONOSCIUTO CHE MONTANTE AVRO' TRA X ANNI? | WDM19: INVESTENDO UN CAPITALE ANNUALE CONOSCIUTO, CON O SENZA CAPITALE INIZIALE A UN TASSO DI RIV CONOSCIUTO CHE MONTANTE AVRO' TRA X ANNI? | WEC19: INVESTENDO UN CAPITALE ANNUALE CONOSCIUTO, CON O SENZA CAPITALE INIZIALE A UN TASSO DI RIV CONOSCIUTO CHE MONTANTE AVRO' TRA X ANNI? | WES19: INVESTENDO UN CAPITALE ANNUALE CONOSCIUTO, CON O SENZA CAPITALE INIZIALE A UN TASSO DI RIV CONOSCIUTO CHE MONTANTE AVRO' TRA X ANNI? | WFI19: INVESTENDO UN CAPITALE ANNUALE CONOSCIUTO, CON O SENZA CAPITALE INIZIALE A UN TASSO DI RIV CONOSCIUTO CHE MONTANTE AVRO' TRA X ANNI? | WFY19: INVESTENDO UN CAPITALE ANNUALE CONOSCIUTO, CON O SENZA CAPITALE INIZIALE A UN TASSO DI RIV CONOSCIUTO CHE MONTANTE AVRO' TRA X ANNI? | WGO19: INVESTENDO UN CAPITALE ANNUALE CONOSCIUTO, CON O SENZA CAPITALE INIZIALE A UN TASSO DI RIV CONOSCIUTO CHE MONTANTE AVRO' TRA X ANNI? | WHE19: INVESTENDO UN CAPITALE ANNUALE CONOSCIUTO, CON O SENZA CAPITALE INIZIALE A UN TASSO DI RIV CONOSCIUTO CHE MONTANTE AVRO' TRA X ANNI? | WHU19: INVESTENDO UN CAPITALE ANNUALE CONOSCIUTO, CON O SENZA CAPITALE INIZIALE A UN TASSO DI RIV CONOSCIUTO CHE MONTANTE AVRO' TRA X ANNI? | WIK19: INVESTENDO UN CAPITALE ANNUALE CONOSCIUTO, CON O SENZA CAPITALE INIZIALE A UN TASSO DI RIV CONOSCIUTO CHE MONTANTE AVRO' TRA X ANNI? | WJA19: INVESTENDO UN CAPITALE ANNUALE CONOSCIUTO, CON O SENZA CAPITALE INIZIALE A UN TASSO DI RIV CONOSCIUTO CHE MONTANTE AVRO' TRA X ANNI? | WJQ19: INVESTENDO UN CAPITALE ANNUALE CONOSCIUTO, CON O SENZA CAPITALE INIZIALE A UN TASSO DI RIV CONOSCIUTO CHE MONTANTE AVRO' TRA X ANNI? | WKG19: INVESTENDO UN CAPITALE ANNUALE CONOSCIUTO, CON O SENZA CAPITALE INIZIALE A UN TASSO DI RIV CONOSCIUTO CHE MONTANTE AVRO' TRA X ANNI? | WKW19: INVESTENDO UN CAPITALE ANNUALE CONOSCIUTO, CON O SENZA CAPITALE INIZIALE A UN TASSO DI RIV CONOSCIUTO CHE MONTANTE AVRO' TRA X ANNI? | WLM19: INVESTENDO UN CAPITALE ANNUALE CONOSCIUTO, CON O SENZA CAPITALE INIZIALE A UN TASSO DI RIV CONOSCIUTO CHE MONTANTE AVRO' TRA X ANNI? | WMC19: INVESTENDO UN CAPITALE ANNUALE CONOSCIUTO, CON O SENZA CAPITALE INIZIALE A UN TASSO DI RIV CONOSCIUTO CHE MONTANTE AVRO' TRA X ANNI? | WMS19: INVESTENDO UN CAPITALE ANNUALE CONOSCIUTO, CON O SENZA CAPITALE INIZIALE A UN TASSO DI RIV CONOSCIUTO CHE MONTANTE AVRO' TRA X ANNI? | WNI19: INVESTENDO UN CAPITALE ANNUALE CONOSCIUTO, CON O SENZA CAPITALE INIZIALE A UN TASSO DI RIV CONOSCIUTO CHE MONTANTE AVRO' TRA X ANNI? | WNY19: INVESTENDO UN CAPITALE ANNUALE CONOSCIUTO, CON O SENZA CAPITALE INIZIALE A UN TASSO DI RIV CONOSCIUTO CHE MONTANTE AVRO' TRA X ANNI? | WOO19: INVESTENDO UN CAPITALE ANNUALE CONOSCIUTO, CON O SENZA CAPITALE INIZIALE A UN TASSO DI RIV CONOSCIUTO CHE MONTANTE AVRO' TRA X ANNI? | WPE19: INVESTENDO UN CAPITALE ANNUALE CONOSCIUTO, CON O SENZA CAPITALE INIZIALE A UN TASSO DI RIV CONOSCIUTO CHE MONTANTE AVRO' TRA X ANNI? | WPU19: INVESTENDO UN CAPITALE ANNUALE CONOSCIUTO, CON O SENZA CAPITALE INIZIALE A UN TASSO DI RIV CONOSCIUTO CHE MONTANTE AVRO' TRA X ANNI? | WQK19: INVESTENDO UN CAPITALE ANNUALE CONOSCIUTO, CON O SENZA CAPITALE INIZIALE A UN TASSO DI RIV CONOSCIUTO CHE MONTANTE AVRO' TRA X ANNI? | WRA19: INVESTENDO UN CAPITALE ANNUALE CONOSCIUTO, CON O SENZA CAPITALE INIZIALE A UN TASSO DI RIV CONOSCIUTO CHE MONTANTE AVRO' TRA X ANNI? | WRQ19: INVESTENDO UN CAPITALE ANNUALE CONOSCIUTO, CON O SENZA CAPITALE INIZIALE A UN TASSO DI RIV CONOSCIUTO CHE MONTANTE AVRO' TRA X ANNI? | WSG19: INVESTENDO UN CAPITALE ANNUALE CONOSCIUTO, CON O SENZA CAPITALE INIZIALE A UN TASSO DI RIV CONOSCIUTO CHE MONTANTE AVRO' TRA X ANNI? | WSW19: INVESTENDO UN CAPITALE ANNUALE CONOSCIUTO, CON O SENZA CAPITALE INIZIALE A UN TASSO DI RIV CONOSCIUTO CHE MONTANTE AVRO' TRA X ANNI? | WTM19: INVESTENDO UN CAPITALE ANNUALE CONOSCIUTO, CON O SENZA CAPITALE INIZIALE A UN TASSO DI RIV CONOSCIUTO CHE MONTANTE AVRO' TRA X ANNI? | WUC19: INVESTENDO UN CAPITALE ANNUALE CONOSCIUTO, CON O SENZA CAPITALE INIZIALE A UN TASSO DI RIV CONOSCIUTO CHE MONTANTE AVRO' TRA X ANNI? | WUS19: INVESTENDO UN CAPITALE ANNUALE CONOSCIUTO, CON O SENZA CAPITALE INIZIALE A UN TASSO DI RIV CONOSCIUTO CHE MONTANTE AVRO' TRA X ANNI? | WVI19: INVESTENDO UN CAPITALE ANNUALE CONOSCIUTO, CON O SENZA CAPITALE INIZIALE A UN TASSO DI RIV CONOSCIUTO CHE MONTANTE AVRO' TRA X ANNI? | WVY19: INVESTENDO UN CAPITALE ANNUALE CONOSCIUTO, CON O SENZA CAPITALE INIZIALE A UN TASSO DI RIV CONOSCIUTO CHE MONTANTE AVRO' TRA X ANNI? | WWO19: INVESTENDO UN CAPITALE ANNUALE CONOSCIUTO, CON O SENZA CAPITALE INIZIALE A UN TASSO DI RIV CONOSCIUTO CHE MONTANTE AVRO' TRA X ANNI? | WXE19: INVESTENDO UN CAPITALE ANNUALE CONOSCIUTO, CON O SENZA CAPITALE INIZIALE A UN TASSO DI RIV CONOSCIUTO CHE MONTANTE AVRO' TRA X ANNI? | WXU19: INVESTENDO UN CAPITALE ANNUALE CONOSCIUTO, CON O SENZA CAPITALE INIZIALE A UN TASSO DI RIV CONOSCIUTO CHE MONTANTE AVRO' TRA X ANNI? | WYK19: INVESTENDO UN CAPITALE ANNUALE CONOSCIUTO, CON O SENZA CAPITALE INIZIALE A UN TASSO DI RIV CONOSCIUTO CHE MONTANTE AVRO' TRA X ANNI? | WZA19: INVESTENDO UN CAPITALE ANNUALE CONOSCIUTO, CON O SENZA CAPITALE INIZIALE A UN TASSO DI RIV CONOSCIUTO CHE MONTANTE AVRO' TRA X ANNI? | WZQ19: INVESTENDO UN CAPITALE ANNUALE CONOSCIUTO, CON O SENZA CAPITALE INIZIALE A UN TASSO DI RIV CONOSCIUTO CHE MONTANTE AVRO' TRA X ANNI? | XAG19: INVESTENDO UN CAPITALE ANNUALE CONOSCIUTO, CON O SENZA CAPITALE INIZIALE A UN TASSO DI RIV CONOSCIUTO CHE MONTANTE AVRO' TRA X ANNI? | XAW19: INVESTENDO UN CAPITALE ANNUALE CONOSCIUTO, CON O SENZA CAPITALE INIZIALE A UN TASSO DI RIV CONOSCIUTO CHE MONTANTE AVRO' TRA X ANNI? | XBM19: INVESTENDO UN CAPITALE ANNUALE CONOSCIUTO, CON O SENZA CAPITALE INIZIALE A UN TASSO DI RIV CONOSCIUTO CHE MONTANTE AVRO' TRA X ANNI? | XCC19: INVESTENDO UN CAPITALE ANNUALE CONOSCIUTO, CON O SENZA CAPITALE INIZIALE A UN TASSO DI RIV CONOSCIUTO CHE MONTANTE AVRO' TRA X ANNI? | XCS19: INVESTENDO UN CAPITALE ANNUALE CONOSCIUTO, CON O SENZA CAPITALE INIZIALE A UN TASSO DI RIV CONOSCIUTO CHE MONTANTE AVRO' TRA X ANNI? | XDI19: INVESTENDO UN CAPITALE ANNUALE CONOSCIUTO, CON O SENZA CAPITALE INIZIALE A UN TASSO DI RIV CONOSCIUTO CHE MONTANTE AVRO' TRA X ANNI? | XDY19: INVESTENDO UN CAPITALE ANNUALE CONOSCIUTO, CON O SENZA CAPITALE INIZIALE A UN TASSO DI RIV CONOSCIUTO CHE MONTANTE AVRO' TRA X ANNI? | XEO19: INVESTENDO UN CAPITALE ANNUALE CONOSCIUTO, CON O SENZA CAPITALE INIZIALE A UN TASSO DI RIV CONOSCIUTO CHE MONTANTE AVRO' TRA X ANNI?
A23: Avvertenza: I risultati di calcolo sono basati su procedure che utilizzano dati stimati dall'Aderente e pertanto potrebbero non trovare conferma nel corso del rapporto. Quindi la posizione
A24: individuale maturata e la prestazione pensionistica corrispondente potrebbero risultare differenti da quelle riportate nel progetto esemplificativo individuale.
H26: PROGETTO ESEMPLIFICATIVO INDIVIDUALE
H29: CALCOLO RENDITE VITALIZIE
E31: PROPRIETA' INTELLETTUALE E REALIZZAZIONE DI GIUSEPPE NICOLETTI - E' VIETATA LA RIPRODUZIONE E/O COMMERCIALIZZAZIONE ANCHE PARZIALE

Sheet TFR
E3: CONVIENE INVESTIRE IL TFR IN UN FONDO O LASCIARLO IN AZIENDA?
C6: RETRIBUZIONE ANNUALE INIZIALE | H6: 20000
C8: % INCREMENTO ANNUO RETRIBUZIONE | H8: 2 | I8: la percentuale inserita può essere modificata secondo stime individuali
K9: ANNI
C10: ANNO INIZIO INVESTIMENTO TFR NEL FONDO | H10: 2014 | K10: =+H11-H10+1 -> 21 | M10: TASSAZIONE
C11: ANNO FINE INVESTIMENTO NEL FONDO | H11: 2034 | L11: RISCATTO | O11: PENSIONAMENTO
I12: O/W RIV | J12: SOLO TFR | L12: FONDO | M12: AZIENDA | O12: FONDO | P12: AZIENDA
C13: TFR YTD NEL FONDO | H13: =VLOOKUP(H11,CALCOLI1!$H$29:$U$59,5) -> 53401.07089 | I13: =VLOOKUP(H11,CALCOLI1!$H$29:$U$59,14) -> 15203.56393 | J13: =+H13-I13 -> 38197.50696 | L13: 0.23 | M13: =+CALCOLI1!Q69/100 -> 0.23 | O13: =VLOOKUP(K10,CALCOLI1!$H$72:$J$113,3)/100 -> 0.132 | P13: =+M13 -> 0.23
C14: TFR YTD IN AZIENDA | H14: =VLOOKUP(H11,CALCOLI1!$H$29:$U$59,4) -> 51989.17086 | I14: =VLOOKUP(H11,CALCOLI1!$H$29:$U$59,13) -> 13791.6639 | J14: =+H14-I14 -> 38197.50696
C16: DELTA FONDO - AZIENDA | H16: =+H13-H14 -> 1411.900029 | L16: =+M13-L13 -> 0 | O16: =+P13-O13 -> 0.098
D19: <===== campi modificabili
D20: <===== risultato | I20: <===== modifica facoltativa
A22: ATTENZIONE: LE PERCENTUALI DI RIVALUTAZIONE DOPO IL 2013 SONO STIMATE CON INFLAZIONE CHE SI INCREMENTA DEL 2% ALL'ANNO E FONDO CHE SI MANTIENE STABILE AL 4% ANNUO
C23: PROPRIETA' INTELLETTUALE E REALIZZAZIONE DI GIUSEPPE NICOLETTI - E' VIETATA LA RIPRODUZIONE E/O COMMERCIALIZZAZIONE ANCHE PARZIALE

Sheet TCM
C3: TRA QUANTO TEMPO INVESTENDO UN CAPITALE NOTO A UN TASSO ANNUO DI RENDIMENTO NOTO POTRO' AVERE IL MONTANTE CHE MI SERVE?
C5: CAPITALE INVESTITO | F5: 0 | H5: anni | I5: mesi | J5: giorni
C6: MONTANTE DESIDERATO | F6: 0 | H6: =+CALCOLI!H8 -> 0 | I6: =+CALCOLI!I8 -> 0 | J6: =+CALCOLI!J8 -> 0
C7: TASSO ANNUO RENDIMENTO | F7: 0
C9: QUANTO CAPITALE DEVO INVESTIRE PER OTTENERE TRA X ANNI UN MONTANTE DESIDERATO? | Q9: <===== dati modificabili
C11: MONTANTE DESIDERATO | F11: 0 | Q11: <===== dati fissi
C12: TASSO ANNUO RENDIMENTO | F12: 0
C13: PERIODO INVESTIMENTO ANNI | F13: 0 | Q13: <===== risultato
C14: CAPITALE DA INVESTIRE | F14: =+CALCOLI!M8 -> 0
Q16: <===== modifica facoltativa
C19: INVESTENDO UN CAPITALE ANNUALE CONOSCIUTO, CON O SENZA CAPITALE INIZIALE A UN TASSO DI RIV CONOSCIUTO CHE MONTANTE AVRO' TRA X ANNI?
C21: EVENTUALE CAPITALE INIZIALE | F21: 0 | J21: =IF(F26=0,0,VLOOKUP(F26,CALCOLI1!$L$74:$U$123,5)) -> 0 | K21: MONTANTE FINALE
C22: VERSAMENTO ANNUO | F22: 0 | J22: =IF(F26=0,0,VLOOKUP(F26,CALCOLI1!$L$74:$V$123,11)) -> 0 | K22: RIVALUTAZIONE
C23: INCREM VERSAMENTO ANNUO | F23: 0 | G23: (*) | J23: =IF(F26=0,0,VLOOKUP(F26,CALCOLI1!$L$74:$W$123,12)) -> 0 | K23: CAPITALE INVESTITO
C24: TASSO ANNUO RENDIMENTO | F24: 0 | J24: 0.05 | K24: % CARICAMENTO
C25: INCREMENTO ANNUO RIV | F25: 1 | J25: 0.4 | K25: % NON RETROC. SU RIV.
C26: ANNI INVESTIMENTO | F26: 0 | J26: (*) la percentuale inserita può essere modificata secondo stime personali
D28: PROPRIETA' INTELLETTUALE E REALIZZAZIONE DI GIUSEPPE NICOLETTI - E' VIETATA LA RIPRODUZIONE E/O COMMERCIALIZZAZIONE ANCHE PARZIALE

Sheet M&R
D4: PROGETTO ESEMPLIFICATIVO PERSONALIZZATO ADERENTI NON DIRIGENTI | N4: Età minima 51 anni =====> | Q4: =IF(O6-I6>0,O6-I6,0) -> 51 | R4: < === età
B6: SESSO | D6: M | E6: (M o F) | G6: ANNO DI NASCITA | I6: 1960 | J6: ANNO INIZIO VERSAMENTI | L6: 1986 | M6: ANNO FINE VERSAMENTI | O6: 2011 | Q6: =IF(O6-L6>0,O6-L6,0) -> 25 | R6: < === anni versamenti
B8: RETRIBUZIONE ANNUALE | D8: 80000 | G8: % INCR. RETRIB. ANNUA | I8: 2 | J8: TFR ANNUALE | L8: =+CALCOLI1!E11 -> 5925.925926 | M8: % TFR ACCANTONATO | O8: 100 | R8: <== campi modificabili
B10: CODICE AZIENDA | D10: 1 | E10: (**) | G10: QUALIFICA CONTRATTUALE | J10: CONTR VOLONTARIO INIZIO € | L10: 0 | M10: % CONTRIB. SOLO PER EX S3 | O10: 1.6 | R10: <== modifica facoltativa
B12: % RIV FONDO | D12: 3 | E12: (°) | G12: % CARICAMENTO | I12: 0.05 | J12: % NON RETROCESSA SU RIV | L12: =0.4+CALCOLI1!AT5 -> 0.45 | R12: <===== dati fissi
B14: CONTRIBUTI YTD | D14: =+CALCOLI1!E22 -> 162748.2972 | G14: TFR YTD | I14: =+CALCOLI1!E23 -> 187911.0917 | J14: TOT YTD CON RIV | L14: =+CALCOLI1!E24 -> 412398.9821 | M14: SOLO RIVALUTAZIONE | O14: =+CALCOLI1!E25 -> 61739.59315 | R14: <===== risultato
B15: ULTIMA RETRIB PERCEPITA | D15: =+CALCOLI1!U7 -> 211104.9435
B19: (**) 1=IBM/ISSF/TOSHIBA/ACG/ Modis/HCL/DB2I/SEM. GEST LABS/Lenovo; 3=ex S3
B20: (*) valore calcolato su superstite di età UGUALE a quella dell'aderente
B21: (^) tasso di sostituzione calcolato sull'ultima retribuzione lorda percepita
B22: (°) percentuale modificabile in funzione del comparto da 1% a 4%
B25: PROPRIETA' INTELLETTUALE E REALIZZAZIONE DI GIUSEPPE NICOLETTI - E' VIETATA LA RIPRODUZIONE E/O COMMERCIALIZZAZIONE ANCHE PARZIALE

Sheet CALCOLI1 (hidden)
C3: DETERMINAZIONE DELLA RENDITA IMMEDIATA, REVERSIBILE, CERTA PER 5 E 10 ANNI, CONTROASSICURATA CASO MORTE | Q3: ETA' ALLA PENSIONE | S3: =IF($E$7-$E$5>0,$E$7-$E$5,0) -> 51 | U3: =IF($E$4="M",VLOOKUP($S$3,CALCOLI1!$X$13:$Y$102,2),VLOOKUP($S$3,CALCOLI1!$AA$13:$AB$100,2)) -> -1 | AQ3: calcolo over performance per M&R
C4: SESSO | E4: =+'M&R'!D6 -> M | Q4: RENDITA IMMEDIATA | U4: RETRIBUZIONE | V4: TASSO SOST
C5: ANNO DI NASCITA | E5: =IF('M&R'!I6>0,'M&R'!I6,0) -> 1960 | H5: =TODAY() -> 2018-12-13 | I5: =YEAR(H5) -> 2018 | J5: =+I5-E5 -> 58 | K5: <=ETA' | Q5: ETA' ALLA PENS+AGE SHIFTING | S5: =IF($E$7-$E$5>0,$E$7-$E$5+U3,0) -> 50 | Z5: RENDITA | AA5: VALORE | AB5: TASSO SOST.(^) | AQ5: =+'M&R'!D12 -> 3 | AR5: =IF(AQ5>2.5,AQ5-2.5,0) -> 0.5 | AS5: =+AR5*10 -> 5 | AT5: =+AS5*0.01 -> 0.05
C6: ANNO INIZIO VERSAMENTI | E6: =IF('M&R'!L6>0,'M&R'!L6,0) -> 1986 | Q6: PENSIONE COEFF | T6: =IF($E$4="M",VLOOKUP($S$5,CALCOLI!$F$16:$H$36,2),VLOOKUP($S$5,CALCOLI!$F$16:$H$36,3)) -> 0.02761 | Z6: ORDINARIA | AA6: =+T7 -> 11386.3359 | AB6: =+V7 -> 0.05393685107
C7: ANNO FINE VERSAMENTI | E7: =IF('M&R'!O6>0,'M&R'!O6,0) -> 2011 | H7: =+E7-E6 -> 25 | Q7: VALORE PENSIONE ANNUA | T7: =+E24*T6 -> 11386.3359 | U7: =IF($S$5>0,VLOOKUP($S$5,CALCOLI!$A$41:$J$110,10),0) -> 211104.9435 | V7: =+T7/U7 -> 0.05393685107 | Y7: =+AA6*73.53% -> 8372.372784 | Z7: REVERSIBILE | AA7: =+Y7 -> 8372.372784 | AB7: =+V11 -> 0.03965976659
C8: ANZIANITA' DI SERVIZIO | E8: =+'M&R'!I10 -> 0 | H8: % INCR RETR ANNUALE | L8: % RIV FONDO | N8: % CARIC | O8: % SU RIV | Q8: RENDITA REVERSIBILE | Z8: AL SUPERSTITE * | AA8: =+U11 -> 5023.423671 | AB8: =+W11 -> 0.02379585996
C9: RETRIBUZIONE ANNUALE | E9: =+'M&R'!D8 -> 80000 | H9: =+'M&R'!I8 -> 2 | I9: =IF(E9>46031,46031,E9) -> 46031 | J9: =IF(I9<46031,0,E9-I9) -> 33969 | L9: =+'M&R'!D12 -> 3 | N9: =+'M&R'!I12 -> 0.05 | O9: =+'M&R'!L12+M12 -> 0.5 | Q9: ETA' ALLA PENS+AGE SHIFTING | S9: =+S5 -> 50 | U9: AL SUPERSTITE | Y9: =+T15*99.29% -> 11297.30349 | Z9: CERTA 5 ANNI | AA9: =+Y9 -> 11297.30349 | AB9: =+V15 -> 0.05351510631
C10: % INCREMENTO RETRIB | I10: 2 | J10: 7 | Q10: PENSIONE COEFF | T10: =IF($E$4="M",VLOOKUP($S$5,CALCOLI!$Z$5:$AB$25,2),VLOOKUP($S$5,CALCOLI!$Z$5:AJ$25,3)) -> 0.02274 | Y10: =+T19*97.11% -> 11029.23714 | Z10: CERTA 10 ANNI | AA10: =+Y10 -> 11029.23714 | AB10: =+V19 -> 0.05224528124
C11: TFR ANNUALE | E11: =+E9/13.5 -> 5925.925926 | I11: =+I9*I10% -> 920.62 | J11: =+J9*J10% -> 2377.83 | K11: =+I11+J11 -> 3298.45 | L11: =+L9-2.5 -> 0.5 | M11: =IF(L11>0,L11,0) -> 0.5 | Q11: VALORE PENSIONE ANNUA | T11: =+E24*T10 -> 9377.952853 | U11: =+Y7*60% -> 5023.423671 | V11: =+Y7/U7 -> 0.03965976659 | W11: =+U11/U7 -> 0.02379585996 | Y11: =+T23*85.56% -> 9456.341652 | Z11: CONTROASSICURATA | AA11: =+Y11 -> 9456.341652 | AB11: =+V23 -> 0.04479450598
C12: % TFR ACCANTONATO | E12: =+'M&R'!O8 -> 100 | K12: =+K11/E9% -> 4.1230625 | L12: over perf===> | M12: =+M11*10*0.01 -> 0.05 | O12: CTR DIR | P12: CTR AZ | Q12: RENDITA CERTA 5 ANNI | X12: maschi | AA12: femmine
C13: TFR ACCANTONATO | E13: =+E11*E12% -> 5925.925926 | Q13: ETA' ALLA PENS+AGE SHIFTING | S13: =+S9 -> 50 | X13: 0 | Y13: -2 | AA13: 0 | AB13: -2
C14: % CONTR DIP AL FONDO | E14: =+O19 -> 3.857392656 | I14: 0 | K14: 63000 | L14: =+K14-I14 -> 63000 | M14: =IF(E9>L14,L14,E9) -> 63000 | N14: =+E9-M14 -> 17000 | O14: =+M14*3.25% -> 2047.5 | P14: =+M14*2.89% -> 1820.7 | Q14: PENSIONE COEFF | T14: =IF($E$4="M",VLOOKUP($S$5,CALCOLI!$J$16:$L$36,2),VLOOKUP($S$5,CALCOLI!$J$16:$L$36,3)) -> 0.02759 | X14: =1+X13 -> 1 | Y14: -2 | AA14: =1+AA13 -> 1 | AB14: -2
C15: %CONTR AZ AL FONDO | E15: =+P19 -> 3.249193419 | I15: 63000.01 | K15: 76411.46 | L15: =+K15-I15 -> 13411.45 | M15: =IF(N14>=L15,L15,N14) -> 13411.45 | N15: =+N14-M15 -> 3588.55 | O15: =+M15*5.95% -> 797.981275 | P15: =+M15*4.46% -> 598.15067 | Q15: VALORE PENSIONE ANNUA | T15: =+E24*T14 -> 11378.08792 | V15: =+Y9/U7 -> 0.05351510631 | X15: =1+X14 -> 2 | Y15: -2 | AA15: =1+AA14 -> 2 | AB15: -2
C16: CONTRIBUTO DIPENDENTE | E16: =+O18 -> 3085.914125 | I16: 76411.47 | K16: 87458.9 | L16: 11047.43 | M16: =IF(N15>=L16,L16,N15) -> 3588.55 | N16: =+N15-M16 -> 0 | O16: =+M16*6.7% -> 240.43285 | P16: =+M16*5.03% -> 180.504065 | Q16: RENDITA CERTA 10 ANNI | X16: 3 | Y16: -2 | AA16: 3 | AB16: -2
C17: CONTRIBUTO AZIENDA | E17: =+P18 -> 2599.354735 | I17: 87458.91 | K17: 999999 | L17: 912540.09 | M17: =+N16 -> 0 | O17: =+M17*7.3% -> 0 | P17: =+M17*5.48% -> 0 | Q17: ETA' ALLA PENS+AGE SHIFTING | S17: =+S13 -> 50 | X17: 4 | Y17: -2 | AA17: 4 | AB17: -2
C18: IMPORTO CONTR VOL | O18: =SUM(O14:O17) -> 3085.914125 | P18: =SUM(P14:P17) -> 2599.354735 | Q18: PENSIONE COEFF | T18: =IF($E$4="M",VLOOKUP($S$5,CALCOLI!$N$16:$P$36,2),VLOOKUP($S$5,CALCOLI!$N$16:$P$36,3)) -> 0.02754 | X18: 5 | Y18: -2 | AA18: 5 | AB18: -2
C19: TOTALE | E19: =+E13+E16+E17+E18 -> 11611.19479 | L19: ALIQUOTA MEDIA IBM TOSHIBA | O19: =+O18/E9% -> 3.857392656 | P19: =+P18/E9% -> 3.249193419 | Q19: VALORE PENSIONE ANNUA | T19: =+E24*T18 -> 11357.46797 | V19: =+Y10/U7 -> 0.05224528124 | X19: 6 | Y19: -2 | AA19: 6 | AB19: -2
C20: VERSAMENTO INIZIALE | Q20: RENDITA CONTRASSICURATA | X20: 7 | Y20: -2 | AA20: 7 | AB20: -2
Q21: ETA' ALLA PENS+AGE SHIFTING | S21: =+S17 -> 50 | X21: 8 | Y21: -2 | AA21: 8 | AB21: -2
C22: VERSAMENTI YTD | E22: =IF(H7>0,VLOOKUP(H7,CALCOLI!$A$41:$I$110,9),0) -> 162748.2972 | Q22: PENSIONE COEFF | T22: =IF($E$4="M",VLOOKUP($S$5,CALCOLI!$R$16:$T$36,2),VLOOKUP($S$5,CALCOLI!$R$16:$T$36,3)) -> 0.0268 | X22: 9 | Y22: -2 | AA22: 9 | AB22: -2
C23: TFR YTD | E23: =IF(H7>0,VLOOKUP(H7,CALCOLI!$A$41:$H$110,6),0) -> 187911.0917 | Q23: VALORE PENSIONE ANNUA | T23: =+E24*T22 -> 11052.29272 | V23: =+Y11/U7 -> 0.04479450598 | X23: 10 | Y23: -2 | AA23: 10 | AB23: -2
C24: TOT YTD CON RIV | E24: =IF(H7>0,VLOOKUP(H7,CALCOLI!$A$41:$H$110,8),0) -> 412398.9821 | X24: 11 | Y24: -2 | AA24: 11 | AB24: -2
C25: SOLO RIV | E25: =+E24-E23-E22 -> 61739.59315 | L25: =+TFR!H8+100 -> 102 | X25: 12 | Y25: -2 | AA25: 12 | AB25: -2
I26: =+TFR!H6 -> 20000 | X26: 13 | Y26: -2 | AA26: 13 | AB26: -2
C27: RETRIBUZIONE | D27: IN | E27: ANNI | H27: ANNI | I27: RETR ANNUALE | J27: TFR | K27: TFRYTD ISTAT | L27: TFRYTD FONDO | M27: CAP+RIV | N27: RIV ISTAT | O27: RIV FONDO | Q27: RIV ISTAT | R27: RIV TFR | T27: ytd riv istat | U27: ytd riv fondo | X27: 14 | Y27: -2 | AA27: 14 | AB27: -2
C28: =IF(D28<>0,0,$I$26) -> 0 | D28: =+TFR!$H$10-E28 -> 7 | E28: 2007 | I28: =+C28 -> 0 | J28: =+I28/13.5 -> 0 | K28: =+J28 -> 0 | X28: 15 | Y28: -2 | AA28: 15 | AB28: -2
C29: =IF(D29<>0,0,$I$26) -> 0 | D29: =+TFR!$H$10-E29 -> 6 | E29: 2008 | H29: 2008 | I29: =IF(I28=0,C29,+I28*$L$25/100) -> 0 | J29: =+I29/13.5 -> 0 | K29: =+J29+K28+Q29 -> 0 | L29: =+K28+J29+R29 -> 0 | N29: 3.03 | O29: 4.36 | Q29: =+K28*N29% -> 0 | R29: =+K28*O29% -> 0 | T29: =+Q29 -> 0 | U29: =+R29 -> 0 | X29: 16 | Y29: -2 | AA29: 16 | AB29: -2
C30: =IF(D30<>0,0,$I$26) -> 0 | D30: =+TFR!$H$10-E30 -> 5 | E30: 2009 | H30: 2009 | I30: =IF(I29=0,C30,+I29*$L$25/100) -> 0 | J30: 0 | K30: 0 | L30: =+L29+J30+R30 -> 0 | N30: 2.22 | O30: 4.24 | Q30: 0 | R30: =+L29*O30% -> 0 | T30: =+Q30+T29 -> 0 | U30: =+R30+U29 -> 0 | X30: 17 | Y30: -2 | AA30: 17 | AB30: -2
C31: =IF(D31<>0,0,$I$26) -> 0 | D31: =+TFR!$H$10-E31 -> 4 | E31: 2010 | H31: 2010 | I31: =IF(I30=0,C31,+I30*$L$25/100) -> 0 | J31: 0 | K31: 0 | L31: =+L30+J31+R31 -> 0 | N31: 2.93 | O31: 3.8 | Q31: 0 | R31: =+L30*O31% -> 0 | T31: =+Q31+T30 -> 0 | U31: =+R31+U30 -> 0 | X31: 18 | Y31: -2 | AA31: 18 | AB31: -2
C32: 0 | D32: =+TFR!$H$10-E32 -> 3 | E32: 2011 | H32: 2011 | I32: 0 | J32: 0 | K32: 0 | L32: =+L31+J32+R32 -> 0 | N32: 3.88 | O32: 4.01 | Q32: 0 | R32: =+L31*O32% -> 0 | T32: 0 | U32: 0 | X32: 19 | Y32: -2 | AA32: 19 | AB32: -2
C33: 0 | D33: =+TFR!$H$10-E33 -> 2 | E33: 2012 | H33: 2012 | I33: 0 | J33: 0 | K33: 0 | L33: =+L32+J33+R33 -> 0 | N33: 3.3 | O33: 3.83 | Q33: 0 | R33: =+L32*O33% -> 0 | T33: 0 | U33: 0 | X33: 20 | Y33: -2 | AA33: 20 | AB33: -2
C34: 0 | D34: =+TFR!$H$10-E34 -> 1 | E34: 2013 | H34: 2013 | I34: 0 | J34: 0 | K34: 0 | L34: =+L33+J34+R34 -> 0 | N34: 1.92 | O34: 3.91 | Q34: 0 | R34: =+L33*O34% -> 0 | T34: 0 | U34: 0 | X34: 21 | Y34: -2 | AA34: 21 | AB34: -2
C35: 20000 | D35: =+TFR!$H$10-E35 -> 0 | E35: 2014 | H35: 2014 | I35: 20000 | J35: 1481.481481 | K35: =+J35+K34+Q35 -> 1481.481481 | L35: =+L34+J35+R35 -> 1481.481481 | N35: =0.21+1.5 -> 1.71 | O35: 3.9 | Q35: =+K34*N35% -> 0 | R35: =+L34*O35% -> 0 | T35: 0 | U35: 0 | X35: 22 | Y35: -2 | AA35: 22 | AB35: -2
C36: 0 | D36: =+TFR!$H$10-E36 -> -1 | E36: =+E35+1 -> 2015 | H36: =+H35+1 -> 2015 | I36: 20400 | J36: 1511.111111 | K36: =+J36+K35+Q36 -> 3022.222222 | L36: 3051.851852 | N36: 2 | O36: 4 | Q36: 29.62962963 | R36: 59.25925926 | T36: 29.62962963 | U36: 59.25925926 | X36: 23 | Y36: -2 | AA36: 23 | AB36: -2
C37: 0 | D37: =+TFR!$H$10-E37 -> -2 | E37: =+E36+1 -> 2016 | H37: =+H36+1 -> 2016 | I37: 20808 | J37: 1541.333333 | K37: 4636.088889 | L37: 4688.708148 | N37: 2.4 | O37: 3.13 | Q37: 72.53333333 | R37: 95.52296296 | T37: 102.162963 | U37: 154.7822222 | X37: 24 | Y37: -2 | AA37: 24 | AB37: -2
C38: 0 | D38: =+TFR!$H$10-E38 -> -3 | E38: 2017 | H38: 2017 | I38: 21224.16 | J38: 1572.16 | K38: 6338.059378 | L38: 6406.218101 | N38: 2.8 | O38: 3.1 | Q38: 129.8104889 | R38: 145.3499526 | T38: 231.9734519 | U38: 300.1321748 | X38: 25 | Y38: -2 | AA38: 25 | AB38: -2
C39: 0 | D39: =+TFR!$H$10-E39 -> -4 | E39: 2018 | H39: 2018 | I39: 21648.6432 | J39: 1603.6032 | K39: 8144.480478 | L39: 8230.835825 | N39: 3.2 | O39: =4-0.55 -> 3.45 | Q39: 202.8179001 | R39: 221.0145245 | T39: 434.7913519 | U39: 521.1466993 | X39: 26 | Y39: -2 | AA39: 26 | AB39: -2
C40: 0 | D40: =+TFR!$H$10-E40 -> -5 | E40: 2019 | H40: 2019 | I40: 22081.61606 | J40: 1635.675264 | K40: 10040.77912 | L40: 10150.47493 | N40: 3.2 | O40: =4-0.55 -> 3.45 | Q40: 260.6233753 | R40: 283.963836 | T40: 695.4147272 | U40: 805.1105353 | X40: 27 | Y40: -2 | AA40: 27 | AB40: -2
C41: 0 | D41: =+TFR!$H$10-E41 -> -6 | E41: 2020 | H41: 2020 | I41: 22523.24839 | J41: 1668.388769 | K41: 12030.47282 | L41: 12169.05508 | N41: 3.2 | O41: 3.45 | Q41: 321.3049317 | R41: 350.1913849 | T41: 1016.719659 | U41: 1155.30192 | X41: 28 | Y41: -2 | AA41: 28 | AB41: -2
C42: 0 | D42: =+TFR!$H$10-E42 -> -7 | E42: 2021 | H42: 2021 | I42: 22973.71335 | J42: 1701.756545 | K42: 14117.20449 | L42: 14290.64402 | N42: 3.2 | O42: 3.45 | Q42: 384.9751302 | R42: 419.8324002 | T42: 1401.694789 | U42: 1575.13432 | X42: 29 | Y42: -2 | AA42: 29 | AB42: -2
C43: 0 | D43: =+TFR!$H$10-E43 -> -8 | E43: 2022 | H43: 2022 | I43: 23433.18762 | J43: 1735.791676 | K43: 16304.74671 | L43: 16519.46292 | N43: 3.2 | O43: 3.45 | Q43: 451.7505438 | R43: 493.0272188 | T43: 1853.445333 | U43: 2068.161539 | X43: 30 | Y43: -2 | AA43: 30 | AB43: -2
C44: 0 | D44: =+TFR!$H$10-E44 -> -9 | E44: 2023 | H44: 2023 | I44: 23901.85137 | J44: 1770.507509 | K44: 18597.00612 | L44: 18859.8919 | N44: 3.2 | O44: 3.45 | Q44: 521.7518948 | R44: 569.9214707 | T44: 2375.197228 | U44: 2638.08301 | X44: 31 | Y44: -2 | AA44: 31 | AB44: -2
C45: 0 | D45: =+TFR!$H$10-E45 -> -10 | E45: 2024 | H45: 2024 | I45: 24379.8884 | J45: 1805.917659 | K45: 20998.02797 | L45: 21316.47583 | N45: 3.2 | O45: 3.45 | Q45: 595.1041957 | R45: 650.6662705 | T45: 2970.301423 | U45: 3288.74928 | X45: 32 | Y45: -2 | AA45: 32 | AB45: -2
C46: 0 | D46: =+TFR!$H$10-E46 -> -11 | E46: 2025 | H46: 2025 | I46: 24867.48617 | J46: 1842.036012 | K46: 23512.00088 | L46: 23893.93026 | N46: 3.2 | O46: 3.45 | Q46: 671.9368951 | R46: 735.4184161 | T46: 3642.238319 | U46: 4024.167697 | X46: 33 | Y46: -2 | AA46: 33 | AB46: -2
C47: 0 | D47: =+TFR!$H$10-E47 -> -12 | E47: 2026 | H47: 2026 | I47: 25364.83589 | J47: 1878.876733 | K47: 26143.26164 | L47: 26597.14758 | N47: 3.2 | O47: 3.45 | Q47: 752.3840281 | R47: 824.3405939 | T47: 4394.622347 | U47: 4848.50829 | X47: 34 | Y47: -2 | AA47: 34 | AB47: -2
C48: 0 | D48: =+TFR!$H$10-E48 -> -13 | E48: 2027 | H48: 2027 | I48: 25872.13261 | J48: 1916.454267 | K48: 28896.30028 | L48: 29431.20344 | N48: 3.2 | O48: 3.45 | Q48: 836.5843725 | R48: 917.6015916 | T48: 5231.206719 | U48: 5766.109882 | X48: 35 | Y48: -2 | AA48: 35 | AB48: -2
C49: 0 | D49: =+TFR!$H$10-E49 -> -14 | E49: 2028 | H49: 2028 | I49: 26389.57526 | J49: 1954.783353 | K49: 31775.76524 | L49: 32401.36331 | N49: 3.2 | O49: 3.45 | Q49: 924.6816089 | R49: 1015.376519 | T49: 6155.888328 | U49: 6781.486401 | X49: 36 | Y49: -2 | AA49: 36 | AB49: -2
C50: 0 | D50: =+TFR!$H$10-E50 -> -15 | E50: 2029 | H50: 2029 | I50: 26917.36677 | J50: 1993.87902 | K50: 34786.46875 | L50: 35513.08937 | N50: 3.2 | O50: 3.45 | Q50: 1016.824488 | R50: 1117.847034 | T50: 7172.712816 | U50: 7899.333435 | X50: 37 | Y50: -2 | AA50: 37 | AB50: -2
C51: 0 | D51: =+TFR!$H$10-E51 -> -16 | E51: 2030 | H51: 2030 | I51: 27455.7141 | J51: 2033.7566 | K51: 37933.39235 | L51: 38772.04755 | N51: 3.2 | O51: 3.45 | Q51: 1113.167 | R51: 1225.201583 | T51: 8285.879816 | U51: 9124.535018 | X51: 38 | Y51: -2 | AA51: 38 | AB51: -2
C52: 0 | D52: =+TFR!$H$10-E52 -> -17 | E52: 2031 | H52: 2031 | I52: 28004.82838 | J52: 2074.431732 | K52: 41221.69264 | L52: 42184.11492 | N52: 3.2 | O52: 3.45 | Q52: 1213.868555 | R52: 1337.635641 | T52: 9499.748371 | U52: 10462.17066 | X52: 39 | Y52: -2 | AA52: 39 | AB52: -2
C53: 0 | D53: =+TFR!$H$10-E53 -> -18 | E53: 2032 | H53: 2032 | I53: 28564.92495 | J53: 2115.920367 | K53: 44656.70717 | L53: 45755.38726 | N53: 3.2 | O53: 3.45 | Q53: 1319.094164 | R53: 1455.351965 | T53: 10818.84254 | U53: 11917.52262 | X53: 40 | Y53: -2 | AA53: 40 | AB53: -2
C54: 0 | D54: =+TFR!$H$10-E54 -> -19 | E54: 2033 | H54: 2033 | I54: 29136.22345 | J54: 2158.238774 | K54: 48243.96057 | L54: 49492.18689 | N54: 3.2 | O54: 3.45 | Q54: 1429.014629 | R54: 1578.56086 | T54: 12247.85716 | U54: 13496.08348 | X54: 41 | Y54: -2 | AA54: 41 | AB54: -2
C55: 0 | D55: =+TFR!$H$10-E55 -> -20 | E55: 2034 | H55: 2034 | I55: 29718.94792 | J55: 2201.40355 | K55: 51989.17086 | L55: 53401.07089 | N55: 3.2 | O55: 3.45 | Q55: 1543.806738 | R55: 1707.480448 | T55: 13791.6639 | U55: 15203.56393 | X55: 42 | Y55: -2 | AA55: 42 | AB55: -2
C56: 0 | D56: =+TFR!$H$10-E56 -> -21 | E56: 2035 | H56: 2035 | I56: 30313.32688 | J56: 2245.431621 | K56: 55898.25595 | L56: 57488.83945 | N56: 3.2 | O56: 3.45 | Q56: 1663.653467 | R56: 1842.336946 | T56: 15455.31737 | U56: 17045.90088 | X56: 43 | Y56: -2 | AA56: 43 | AB56: -2
C57: 0 | D57: =+TFR!$H$10-E57 -> -22 | E57: 2036 | H57: 2036 | I57: 30919.59342 | J57: 2290.340253 | K57: 59977.34039 | L57: 61762.54467 | N57: 3.2 | O57: 3.45 | Q57: 1788.74419 | R57: 1983.364961 | T57: 17244.06156 | U57: 19029.26584 | X57: 44 | Y57: -2 | AA57: 44 | AB57: -2
C58: 0 | D58: =+TFR!$H$10-E58 -> -23 | E58: 2037 | H58: 2037 | I58: 31537.98528 | J58: 2336.147058 | K58: 64232.76234 | L58: 66229.49952 | N58: 3.2 | O58: 3.45 | Q58: 1919.274892 | R58: 2130.807791 | T58: 19163.33645 | U58: 21160.07363 | X58: 45 | Y58: -2 | AA58: 45 | AB58: -2
C59: 0 | D59: =+TFR!$H$10-E59 -> -24 | E59: 2038 | H59: 2038 | I59: 32168.74499 | J59: 2382.869999 | K59: 68671.08073 | L59: 70897.28725 | N59: 3.2 | O59: 3.45 | Q59: 2055.448395 | R59: 2284.917733 | T59: 21218.78485 | U59: 23444.99136 | X59: 46 | Y59: -2 | AA59: 46 | AB59: -1
X60: 47 | Y60: -2 | AA60: 47 | AB60: -1
M61: ANNI | N61: TFR | O61: RR | X61: 48 | Y61: -1 | AA61: 48 | AB61: -1
H62: SCAGLIONI | K62: ALIQUOTE | L62: RESIDUI | Q62: IMPOSTE | X62: 49 | Y62: -1 | AA62: 49 | AB62: -1
H63: 0 | I63: 26000 | J63: 26000 | K63: 23 | L63: =IF(O63>I63,I63,O63) -> 21827.14683 | M63: =+TFR!K10 -> 21 | N63: =+TFR!J13 -> 38197.50696 | O63: =+N63*144/(M63*12) -> 21827.14683 | Q63: =+L63*K63% -> 5020.243771 | X63: 50 | Y63: -1 | AA63: 50 | AB63: -1
H64: 26000.01 | I64: =+J64-H64 -> 28999.99 | J64: 55000 | K64: 33 | L64: =IF(O64>I64,I64,O64) -> 0 | O64: =IF(O63>L63,O63-L63,0) -> 0 | Q64: =+L64*K64% -> 0 | X64: 51 | Y64: -1 | AA64: 51 | AB64: -1
H65: 55000.01 | I65: =+J65-H65 -> 44999.99 | J65: 100000 | K65: 39 | L65: =IF(O65>I65,I65,O65) -> 0 | O65: =IF(O64>L64,O64-L64,0) -> 0 | Q65: =+L65*K65% -> 0 | X65: 52 | Y65: -1 | AA65: 52 | AB65: -1
H66: 100000.01 | I66: =+J66-H66 -> 899998.99 | J66: 999999 | K66: 43 | L66: =IF(O66>I66,I66,O66) -> 0 | O66: =IF(O65>L65,O65-L65,0) -> 0 | Q66: =+L66*K66% -> 0 | X66: 53 | Y66: -1 | AA66: 53 | AB66: -1
Q67: =SUM(Q63:Q66) -> 5020.243771 | X67: 54 | Y67: -1 | AA67: 54 | AB67: -1
X68: 55 | Y68: -1 | AA68: 55 | AB68: -1
O69: % MEDIA | Q69: =+Q67/O63*100 -> 23 | X69: 56 | Y69: -1 | AA69: 56 | AB69: 0
I70: TASSAZIONE FONDO PER PENSIONAMENTO | X70: 57 | Y70: -1 | AA70: 57 | AB70: 0
X71: 58 | Y71: 0 | AA71: 58 | AB71: 0
H72: 1 | J72: 15 | X72: 59 | Y72: 0 | AA72: 59 | AB72: 0
H73: =1+H72 -> 2 | J73: 15 | L73: ANNI | M73: EVENTUALE CAPITALE INIZIALE | N73: VERSAMENTO ANNUALE | O73: INCREMENTO ANNUALE DEL VERSAMENTO | P73: MONTANTE ANNUALE | Q73: RIVALUTAZIONE ANNUALE | R73: EVENTUALE INCREMENTO RIVALUTAZIONE ANNUALE | T73: VERSAMENTO INCREMENTATO | U73: RIVALUTAZIONE | X73: 60 | Y73: 0 | AA73: 60 | AB73: 0
H74: =1+H73 -> 3 | J74: 15 | L74: 1 | M74: =+TCM!F21 -> 0 | N74: =+TCM!F22 -> 0 | O74: =+TCM!F23/100 -> 0 | P74: =((+M74+N74)+U74) -> 0 | Q74: =+TCM!F24/100-TCM!J25/100 -> -0.004 | R74: =+TCM!F25/100 -> 0.01 | T74: =N74+N74*O74 -> 0 | U74: =(N74+M74)*99%*Q74 -> 0 | W74: =+M74+N74 -> 0 | X74: 61 | Y74: 0 | AA74: 61 | AB74: 0
H75: 4 | J75: 15 | L75: =+L74+1 -> 2 | N75: =+T74 -> 0 | P75: =+P74+U75+N75 -> 0 | Q75: =Q74+Q74*$R$74 -> -0.00404 | T75: =N75+N75*$O$74 -> 0 | U75: =(N75+M75+P74)*Q75 -> 0 | V75: =+U75+U74 -> 0 | W75: =+M75+N75+W74 -> 0 | X75: 62 | Y75: 0 | AA75: 62 | AB75: 0
H76: 5 | J76: 15 | L76: =+L75+1 -> 3 | N76: =+T75 -> 0 | P76: =+P75+U76+N76 -> 0 | Q76: =Q75+Q75*$R$74 -> -0.0040804 | T76: =N76+N76*$O$74 -> 0 | U76: =(N76+M76+P75)*Q76 -> 0 | V76: =+U76+V75 -> 0 | W76: =+M76+N76+W75 -> 0 | X76: 63 | Y76: 0 | AA76: 63 | AB76: 0
H77: 6 | J77: 15 | L77: 4 | N77: 0 | P77: 0 | Q77: -0.004121204 | T77: 0 | U77: 0 | V77: =+U77+V76 -> 0 | W77: 0 | X77: 64 | Y77: 0 | AA77: 64 | AB77: 0
H78: 7 | J78: 15 | L78: 5 | N78: 0 | P78: 0 | Q78: -0.00416241604 | T78: 0 | U78: =N78*Q78+M78*Q78+P77*Q78 -> 0 | V78: 0 | W78: 0 | X78: 65 | Y78: 0 | AA78: 65 | AB78: 0
H79: 8 | J79: 15 | L79: 6 | N79: 0 | P79: 0 | Q79: -0.0042040402 | T79: 0 | U79: 0 | V79: 0 | W79: 0 | X79: =1+X78 -> 66 | Y79: 0 | AA79: =1+AA78 -> 66 | AB79: 0
H80: 9 | J80: 15 | L80: 7 | N80: 0 | P80: 0 | Q80: -0.004246080602 | T80: 0 | U80: 0 | V80: 0 | W80: 0 | X80: 67 | Y80: 0 | AA80: 67 | AB80: 0
H81: 10 | J81: 15 | L81: 8 | N81: 0 | P81: 0 | Q81: -0.004288541408 | T81: 0 | U81: 0 | V81: 0 | W81: 0 | X81: 68 | Y81: 0 | AA81: 68 | AB81: 0
H82: 11 | J82: 15 | L82: 9 | N82: 0 | P82: 0 | Q82: -0.004331426823 | T82: 0 | U82: 0 | V82: 0 | W82: 0 | X82: 69 | Y82: 0 | AA82: 69 | AB82: 1
H83: 12 | J83: 15 | L83: 10 | N83: 0 | P83: 0 | Q83: -0.004374741091 | T83: 0 | U83: 0 | V83: 0 | W83: 0 | X83: 70 | Y83: 0 | AA83: 70 | AB83: 1
H84: 13 | J84: 15 | L84: 11 | N84: 0 | P84: 0 | Q84: -0.004418488502 | T84: 0 | U84: 0 | V84: 0 | W84: 0 | X84: 71 | Y84: 1 | AA84: 71 | AB84: 1
H85: 14 | J85: 15 | L85: 12 | N85: 0 | P85: 0 | Q85: -0.004462673387 | T85: 0 | U85: 0 | V85: 0 | W85: 0 | X85: 72 | Y85: 1 | AA85: 72 | AB85: 1
H86: 15 | J86: 15 | L86: 13 | N86: 0 | P86: 0 | Q86: -0.004507300121 | T86: 0 | U86: 0 | V86: 0 | W86: 0 | X86: 73 | Y86: 1 | AA86: 73 | AB86: 1
H87: 16 | J87: =+J86-0.3 -> 14.7 | L87: 14 | N87: 0 | P87: 0 | Q87: -0.004552373122 | T87: 0 | U87: 0 | V87: 0 | W87: 0 | X87: 74 | Y87: 1 | AA87: 74 | AB87: 1
H88: 17 | J88: =+J87-0.3 -> 14.4 | L88: 15 | N88: 0 | P88: 0 | Q88: -0.004597896853 | T88: 0 | U88: 0 | V88: 0 | W88: 0 | X88: 75 | Y88: 1 | AA88: 75 | AB88: 1
H89: 18 | J89: 14.1 | L89: 16 | N89: 0 | P89: 0 | Q89: -0.004643875821 | T89: 0 | U89: 0 | V89: 0 | W89: 0 | X89: 76 | Y89: 1 | AA89: 76 | AB89: 1
H90: 19 | J90: 13.8 | L90: 17 | N90: 0 | P90: 0 | Q90: -0.00469031458 | T90: 0 | U90: 0 | V90: 0 | W90: 0 | X90: 77 | Y90: 1 | AA90: 77 | AB90: 1
H91: 20 | J91: 13.5 | L91: 18 | N91: 0 | P91: 0 | Q91: -0.004737217725 | T91: 0 | U91: 0 | V91: 0 | W91: 0 | X91: 78 | Y91: 1 | AA91: 78 | AB91: 2
H92: 21 | J92: 13.2 | L92: 19 | N92: 0 | P92: 0 | Q92: -0.004784589903 | T92: 0 | U92: 0 | V92: 0 | W92: 0 | X92: 79 | Y92: 1 | AA92: 79 | AB92: 2
H93: 22 | J93: 12.9 | L93: 20 | N93: 0 | P93: 0 | Q93: -0.004832435802 | T93: 0 | U93: 0 | V93: 0 | W93: 0 | X93: 80 | Y93: 2 | AA93: 80 | AB93: 2
H94: 23 | J94: 12.6 | L94: 21 | N94: 0 | P94: 0 | Q94: -0.00488076016 | T94: 0 | U94: 0 | V94: 0 | W94: 0 | X94: 81 | Y94: 2 | AA94: 81 | AB94: 2
H95: 24 | J95: 12.3 | L95: 22 | N95: 0 | P95: 0 | Q95: -0.004929567761 | T95: 0 | U95: 0 | V95: 0 | W95: 0 | X95: 82 | Y95: 2 | AA95: 82 | AB95: 2
H96: 25 | J96: 12 | L96: 23 | N96: 0 | P96: 0 | Q96: -0.004978863439 | T96: 0 | U96: 0 | V96: 0 | W96: 0 | X96: 83 | Y96: 2 | AA96: 83 | AB96: 2
H97: 26 | J97: 11.7 | L97: 24 | N97: 0 | P97: 0 | Q97: -0.005028652073 | T97: 0 | U97: 0 | V97: 0 | W97: 0 | X97: 84 | Y97: 2 | AA97: 84 | AB97: 2
H98: 27 | J98: 11.4 | L98: 25 | N98: 0 | P98: 0 | Q98: -0.005078938594 | T98: 0 | U98: 0 | V98: 0 | W98: 0 | X98: 85 | Y98: 2 | AA98: 85 | AB98: 2
H99: 28 | J99: 11.1 | L99: 26 | N99: 0 | P99: 0 | Q99: -0.00512972798 | T99: 0 | U99: 0 | V99: 0 | W99: 0 | X99: 86 | Y99: 2 | AA99: 86 | AB99: 2
H100: 29 | J100: 10.8 | L100: 27 | N100: 0 | P100: 0 | Q100: -0.00518102526 | T100: 0 | U100: 0 | V100: 0 | W100: 0 | X100: 87 | Y100: 2 | AA100: 87 | AB100: 2
H101: 30 | J101: 10.5 | L101: 28 | N101: 0 | P101: 0 | Q101: -0.005232835512 | T101: 0 | U101: 0 | V101: 0 | W101: 0 | X101: 88 | Y101: 2
H102: 31 | J102: 10.2 | L102: 29 | N102: 0 | P102: 0 | Q102: -0.005285163868 | T102: 0 | U102: 0 | V102: 0 | W102: 0 | X102: 89 | Y102: 2
H103: 32 | J103: 9.9 | L103: 30 | N103: 0 | P103: 0 | Q103: -0.005338015506 | T103: 0 | U103: 0 | V103: 0 | W103: 0
H104: 33 | J104: 9.6 | L104: 31 | N104: 0 | P104: 0 | Q104: -0.005391395661 | T104: 0 | U104: 0 | V104: 0 | W104: 0
H105: 34 | J105: 9.3 | L105: 32 | N105: 0 | P105: 0 | Q105: -0.005445309618 | T105: 0 | U105: 0 | V105: 0 | W105: 0
H106: 35 | J106: 9 | L106: 33 | N106: 0 | P106: 0 | Q106: -0.005499762714 | T106: 0 | U106: 0 | V106: 0 | W106: 0
H107: 36 | J107: 9 | L107: 34 | N107: 0 | P107: 0 | Q107: -0.005554760341 | T107: 0 | U107: 0 | V107: 0 | W107: 0
H108: 37 | J108: 9 | L108: 35 | N108: 0 | P108: 0 | Q108: -0.005610307945 | T108: 0 | U108: 0 | V108: 0 | W108: 0
H109: 38 | J109: 9 | L109: 36 | N109: 0 | P109: 0 | Q109: -0.005666411024 | T109: 0 | U109: 0 | V109: 0 | W109: 0
H110: 39 | J110: 9 | L110: 37 | N110: 0 | P110: 0 | Q110: -0.005723075134 | T110: 0 | U110: 0 | V110: 0 | W110: 0
H111: 40 | J111: 9 | L111: 38 | N111: 0 | P111: 0 | Q111: -0.005780305886 | T111: 0 | U111: 0 | V111: 0 | W111: 0
H112: 41 | J112: 9 | L112: 39 | N112: 0 | P112: 0 | Q112: -0.005838108945 | T112: 0 | U112: 0 | V112: 0 | W112: 0
H113: 42 | J113: 9 | L113: 40 | N113: 0 | P113: 0 | Q113: -0.005896490034 | T113: 0 | U113: 0 | V113: 0 | W113: 0
L114: 41 | N114: 0 | P114: 0 | Q114: -0.005955454934 | T114: 0 | U114: 0 | V114: 0 | W114: 0
L115: 42 | N115: 0 | P115: 0 | Q115: -0.006015009484 | T115: 0 | U115: 0 | V115: 0 | W115: 0
L116: 43 | N116: 0 | P116: 0 | Q116: -0.006075159579 | T116: 0 | U116: 0 | V116: 0 | W116: 0
L117: 44 | N117: 0 | P117: 0 | Q117: -0.006135911174 | T117: 0 | U117: 0 | V117: 0 | W117: 0
L118: 45 | N118: 0 | P118: 0 | Q118: -0.006197270286 | T118: 0 | U118: 0 | V118: 0 | W118: 0
L119: 46 | N119: 0 | P119: 0 | Q119: -0.006259242989 | T119: 0 | U119: 0 | V119: 0 | W119: 0
L120: 47 | N120: 0 | P120: 0 | Q120: -0.006321835419 | T120: 0 | U120: 0 | V120: 0 | W120: 0
L121: 48 | N121: 0 | P121: 0 | Q121: -0.006385053773 | T121: 0 | U121: 0 | V121: 0 | W121: 0
L122: 49 | N122: 0 | P122: 0 | Q122: -0.006448904311 | T122: 0 | U122: 0 | V122: 0 | W122: 0
L123: 50 | N123: 0 | P123: 0 | Q123: -0.006513393354 | T123: 0 | U123: 0 | V123: 0 | W123: 0

Sheet CALCOLI (hidden)
Y2: RENDITA REVERSIBILE SU ASSICURATO DI PARI ETA' E SESSO DIVERSO
Z3: Età | AA3: Maschi | AB3: Femmine
C4: capitale iniziale | E4: =+TCM!F5 -> 0 | G4: =+F8*F9 -> 0 | K4: capitale iniziale | M4: =+M8 -> 0
C5: montante desiderato | E5: =+TCM!F6 -> 0 | I5: =+G8-H8 -> 0 | J5: =+I6-I8 -> 0 | K5: montante desiderato | M5: =+TCM!F11 -> 0 | Z5: 50 | AA5: 0.02274 | AB5: 0.02274
C6: % per int composto annuo | E6: =+TCM!F7 -> 0 | I6: =+I5*12 -> 0 | J6: =+J5*30 -> 0 | K6: interesse composto annuo | M6: =+TCM!F12 -> 0 | Z6: =1+Z5 -> 51 | AA6: 0.02327 | AB6: 0.02327
F7: log | G7: periodo | H7: anni | I7: mesi | J7: giorni | K7: anni da oggi | M7: =+TCM!F13 -> 0 | Z7: =1+Z6 -> 52 | AA7: 0.02383 | AB7: 0.02383
C8: numeratore | E8: =IF(E5=0,0,E5/E4) -> 0 | F8: =IF(E8=0,0,+LOG(E8)) -> 0 | G8: =IF(G4=0,0,+F8/F9) -> 0 | H8: =INT(G8) -> 0 | I8: =INT(I6) -> 0 | J8: =INT(J6) -> 0 | M8: =+M5*(1+M6/100)^-M7 -> 0 | Z8: 53 | AA8: 0.02441 | AB8: 0.02441
C9: denominatore | E9: =1+E6/100 -> 1 | F9: =+LOG(E9) -> 0 | Z9: 54 | AA9: 0.02501 | AB9: 0.02501
Z10: 55 | AA10: 0.02565 | AB10: 0.02565
Z11: 56 | AA11: 0.02632 | AB11: 0.02632
E12: RENDITA VITALIZIA IMMEDIATA A PREMIO UNICO | J12: RENDITA VITALIZIA CERTA 5 ANNI | N12: RENDITA VITALIZIA CERTA 10 ANNI | R12: RENDITA CONTROASSICURATA | V12: RENDITA CON RADDOPPIO TLC | Z12: 57 | AA12: 0.02703 | AB12: 0.02703
Z13: 58 | AA13: 0.02778 | AB13: 0.02778
F14: Età | G14: Maschi | H14: Femmine | J14: Età | K14: Maschi | L14: Femmine | N14: Età | O14: Maschi | P14: Femmine | R14: Età | S14: Maschi | T14: Femmine | V14: Età | W14: Maschi | X14: Femmine | Z14: 59 | AA14: 0.02856 | AB14: 0.02856
Z15: 60 | AA15: 0.02939 | AB15: 0.02939
F16: 50 | G16: 0.02761 | H16: 0.02487 | J16: 50 | K16: 0.02759 | L16: 0.02486 | N16: 50 | O16: 0.02754 | P16: 0.02483 | R16: 50 | S16: 0.0268 | T16: 0.02524 | V16: 50 | W16: 0.02628 | X16: 0.02317 | Z16: 61 | AA16: 0.03027 | AB16: 0.03027
F17: =1+F16 -> 51 | G17: 0.02836 | H17: 0.02549 | J17: =1+J16 -> 51 | K17: 0.02385 | L17: 0.02547 | N17: =1+N16 -> 51 | O17: 0.02829 | P17: 0.02544 | R17: =1+R16 -> 51 | S17: 0.02731 | T17: 0.02571 | V17: =1+V16 -> 51 | W17: 0.02697 | X17: 0.02371 | Z17: 62 | AA17: 0.0312 | AB17: 0.0312
F18: =1+F17 -> 52 | G18: 0.02916 | H18: 0.02613 | J18: =1+J17 -> 52 | K18: 0.02914 | L18: 0.02612 | N18: =1+N17 -> 52 | O18: 0.02907 | P18: 0.02608 | R18: =1+R17 -> 52 | S18: 0.02783 | T18: 0.02618 | V18: =1+V17 -> 52 | W18: 0.02769 | X18: 0.02426 | Z18: 63 | AA18: 0.03218 | AB18: 0.03218
F19: 53 | G19: 0.03 | H19: 0.02681 | J19: 53 | K19: 0.02998 | L19: 0.02679 | N19: 53 | O19: 0.0299 | P19: 0.02675 | R19: 53 | S19: 0.02837 | T19: 0.02667 | V19: 53 | W19: 0.02845 | X19: 0.02485 | Z19: 64 | AA19: 0.03323 | AB19: 0.03323
F20: 54 | G20: 0.03089 | H20: 0.02752 | J20: 54 | K20: 0.03086 | L20: 0.0275 | N20: 54 | O20: 0.03077 | P20: 0.02746 | R20: 54 | S20: 0.02893 | T20: 0.02719 | V20: 54 | W20: 0.02924 | X20: 0.02546 | Z20: 65 | AA20: 0.03434 | AB20: 0.03434
F21: 55 | G21: 0.03183 | H21: 0.02827 | J21: 55 | K21: 0.0318 | L21: 0.02825 | N21: 55 | O21: 0.03168 | P21: 0.0282 | R21: 55 | S21: 0.02953 | T21: 0.02772 | V21: 55 | W21: 0.03008 | X21: 0.0261 | Z21: 66 | AA21: 0.03552 | AB21: 0.03552
F22: 56 | G22: 0.03282 | H22: 0.02906 | J22: 56 | K22: 0.03278 | L22: 0.02904 | N22: 56 | O22: 0.03264 | P22: 0.02898 | R22: 56 | S22: 0.03013 | T22: 0.02827 | V22: 56 | W22: 0.03097 | X22: 0.02677 | Z22: 67 | AA22: 0.03677 | AB22: 0.03677
F23: 57 | G23: 0.03387 | H23: 0.02989 | J23: 57 | K23: 0.03382 | L23: 0.02987 | N23: 57 | O23: 0.03366 | P23: 0.0298 | R23: 57 | S23: 0.03077 | T23: 0.02885 | V23: 57 | W23: 0.0319 | X23: 0.02748 | Z23: 68 | AA23: 0.03812 | AB23: 0.03812 | AD23: =+CALCOLI1!E8 -> 0 | AE23: <=ANZIANITA' DI SERVIZIO
F24: 58 | G24: 0.03498 | H24: 0.03077 | J24: 58 | K24: 0.03493 | L24: 0.03075 | N24: 58 | O24: 0.03473 | P24: 0.03066 | R24: 58 | S24: 0.03143 | T24: 0.02945 | V24: 58 | W24: 0.03289 | X24: 0.02823 | Z24: 69 | AA24: 0.03955 | AB24: 0.03955 | AD24: =+CALCOLI1!J5 -> 58 | AE24: <=60 ANNI DI ETA'
F25: 59 | G25: 0.03617 | H25: 0.03171 | J25: 59 | K25: 0.0361 | L25: 0.03168 | N25: 59 | O25: 0.03587 | P25: 0.03158 | R25: 59 | S25: 0.03212 | T25: 0.03007 | V25: 59 | W25: 0.03394 | X25: 0.02901 | Z25: 70 | AA25: 0.04109 | AB25: 0.04109 | AM25: =+'M&R'!O10 -> 1.6
F26: 60 | G26: 0.03743 | H26: 0.0327 | J26: 60 | K26: 0.03735 | L26: 0.03267 | N26: 60 | O26: 0.03707 | P26: 0.03255 | R26: 60 | S26: 0.03283 | T26: 0.03072 | V26: 60 | W26: 0.03505 | X26: 0.02984 | AI26: GEST LABS | AJ26: SIPRO | AM26: EX S3
F27: 61 | G27: 0.03877 | H27: 0.03375 | J27: 61 | K27: 0.03868 | L27: 0.03371 | N27: 61 | O27: 0.03833 | P27: 0.03357 | R27: 61 | S27: 0.03359 | T27: 0.03141 | V27: 61 | W27: 0.03623 | X27: 0.03072 | AC27: IBM | AD27: toshiba | AE27: LENOVO | AI27: dip | AJ27: az | AM27: DIP | AN27: AZ
F28: 62 | G28: 0.04019 | H28: 0.03487 | J28: 62 | K28: 0.04008 | L28: 0.03482 | N28: 62 | O28: 0.03966 | P28: 0.03465 | R28: 62 | S28: 0.03437 | T28: 0.03212 | V28: 62 | W28: 0.03748 | X28: 0.03165 | AC28: SERV FIN | AD28: ACG | AE28: SEM | AM28: 1.2 | AN28: 2
F29: 63 | G29: 0.04171 | H29: 0.03605 | J29: 63 | K29: 0.04157 | L29: 0.036 | N29: 63 | O29: 0.04107 | P29: 0.0358 | R29: 63 | S29: 0.03519 | T29: 0.03285 | V29: 63 | W29: 0.0388 | X29: 0.03263 | AB29: 0 | AC29: 46031 | AD29: 2 | AE29: =IF(AD24>=60,0,1.5) -> 1.5 | AG29: 0 | AH29: 46031 | AI29: 2 | AJ29: =IF($AD$24>=60,0,1.2) -> 1.2 | AM29: 1.4 | AN29: 2
F30: 64 | G30: 0.04332 | H30: 0.03732 | J30: 64 | K30: 0.04316 | L30: 0.03725 | N30: 64 | O30: 0.04255 | P30: 0.03701 | R30: 64 | S30: 0.03605 | T30: 0.03363 | V30: 64 | W30: 0.0402 | X30: 0.03366 | AA30: =+AC30-AB30 -> 1953968.99 | AB30: 46031.01 | AC30: 2000000 | AD30: 7 | AE30: =IF(AD24>=60,0,4) -> 4 | AF30: =+AH30-AG30 -> 1953968.99 | AG30: 46031.01 | AH30: 2000000 | AI30: 7 | AJ30: =IF($AD$24>=60,0,1.2) -> 1.2 | AM30: 1.6 | AN30: 2
F31: 65 | G31: 0.04505 | H31: 0.03866 | J31: 65 | K31: 0.04485 | L31: 0.03858 | N31: 65 | O31: 0.04412 | P31: 0.0383 | R31: 65 | S31: 0.03695 | T31: 0.03444 | V31: 65 | W31: 0.04168 | X31: 0.03476 | AD31: <10 ANNI ANZ
F32: 66 | G32: 0.0469 | H32: 0.04009 | J32: 66 | K32: 0.04666 | L32: 0.04 | N32: 66 | O32: 0.04577 | P32: 0.03966 | R32: 66 | S32: 0.03788 | T32: 0.03528 | V32: 66 | W32: 0.04327 | X32: 0.03592 | AB32: 0 | AC32: 46031 | AD32: 2 | AE32: =IF(AD24>=60,0,1.6) -> 1.6 | AH32: <10 ANNI ANZ
F33: 67 | G33: 0.04887 | H33: 0.04163 | J33: 67 | K33: 0.04858 | L33: 0.04152 | N33: 67 | O33: 0.04752 | P33: 0.04111 | R33: 67 | S33: 0.03888 | T33: 0.03618 | V33: 67 | W33: 0.04495 | X33: 0.03716 | AA33: =+AC33-AB33 -> 1953968.99 | AB33: 46031.01 | AC33: 2000000 | AD33: 7 | AE33: =IF(AD24>=60,0,1.6) -> 1.6 | AG33: 0 | AH33: 46031 | AI33: 2 | AJ33: =IF($AD$24>=60,0,1.4) -> 1.4
F34: 68 | G34: 0.05099 | H34: 0.04327 | J34: 68 | K34: 0.05063 | L34: 0.04314 | N34: 68 | O34: 0.04936 | P34: 0.04266 | R34: 68 | S34: 0.03991 | T34: 0.03713 | V34: 68 | W34: 0.04674 | X34: 0.03848 | AF34: =+AH34-AG34 -> 1953968.99 | AG34: 46031.01 | AH34: 2000000 | AI34: 7 | AJ34: =IF($AD$24>=60,0,1.4) -> 1.4
B35: =+'M&R'!D10 -> 1 | C35: CODICE AZIENDA | F35: 69 | G35: 0.05326 | H35: 0.04504 | J35: 69 | K35: 0.05282 | L35: 0.04488 | N35: 69 | O35: 0.05129 | P35: 0.0443 | R35: 69 | S35: 0.04099 | T35: 0.03809 | V35: 69 | W35: 0.04865 | X35: 0.03988
F36: 70 | G36: 0.0557 | H36: 0.04694 | J36: 70 | K36: 0.05517 | L36: 0.04674 | N36: 70 | O36: 0.05331 | P36: 0.04604 | R36: 70 | S36: 0.04215 | T36: 0.03912 | V36: 70 | W36: 0.0507 | X36: 0.04138
AL37: IBM/TOSHIBA/ACG/LENOVO/ISF/SEM
B38: =+CALCOLI1!H7 -> 25 | C38: NETTO CARICAMENTO | AP38: GEST LABS | AT38: GEST LABS | AX38: EX S3 | AY38: EX S3 | AZ38: EX S3 | BA38: EX S3 | BB38: EX S3 | BC38: EX S3 | BD38: EX S3
B39: CONTR IN | C39: VERS DIP | D39: VERS AZ | E39: VERS VOL | F39: TFR | G39: TOTALE C | H39: TOT VER+TFR+RIV | J39: RETRIB | K39: =+CALCOLI1!H8 -> % INCR RETR ANNUALE | M39: RIV YTD | N39: =+CALCOLI1!L8 -> % RIV FONDO | O39: RIV FONDO | P39: % DIP | Q39: % AZ | R39: % TFR | S39: TFR | U39: VERS DIP | V39: VERS AZ | W39: TFR | X39: VER VOL | Y39: TOTALE C | Z39: TOT VER+TFR | AL39: contr diP | AM39: contr az | AN39: totale | AT39: contr dip | AU39: contr az | AV39: totale | BB39: contr dip | BC39: contr az | BD39: totale
N40: NETTO 0,5%
A41: 1 | B41: =+CALCOLI1!E20*99.95% -> 0 | C41: =IF($B$35=1,AL41*99.95%,IF($B$35=2,AL41*99.95%,BB41*99.95%)) -> 3296.800775 | D41: =IF($B$35=1,AM41*99.95%,IF($B$35=2,AU41*99.95%,BC41*99.95%)) -> 1279.36 | E41: =+CALCOLI1!$E$18*99.95% -> 0 | F41: =+CALCOLI1!E13*99% -> 5866.666667 | G41: =+B41+C41+D41 -> 4576.160775 | H41: =+G41+F41+O41 -> 10703.89813 | I41: =+G41 -> 4576.160775 | J41: =+CALCOLI1!E9 -> 80000 | K41: =+CALCOLI1!H9+100 -> 102 | M41: =+O41 -> 261.070686 | N41: =+CALCOLI1!L9-0.5 -> 2.5 | O41: =+(G41+F41)*$N$41/100 -> 261.070686 | P41: =+CALCOLI1!E14 -> 3.857392656 | Q41: =+CALCOLI1!E15 -> 3.249193419 | R41: =+CALCOLI1!E12 -> 100 | S41: =+J41/13.5 -> 5925.925926 | AB41: =+J41 -> 80000 | AC41: =IF(AB41>=$AC$29,$AC$29,AB41) -> 46031 | AD41: =+AB41-AC41 -> 33969 | AE41: =IF(AD41>=$AA$30,$AA$30,AD41) -> 33969 | AF41: =+AD41-AE41 -> 0 | AG41: =IF(AF41>=$AA$31,$AA$31,AF41) -> 0 | AH41: =+AF41-AG41 -> 0 | AI41: =IF(AH41>=$AA$32,$AA$32,AH41) -> 0 | AJ41: =IF(AH41>=$AA$33,$AA$33,AH41) -> 0 | AL41: =+((AC41*$AD$29)+(AE41*$AD$30))/100 -> 3298.45 | AM41: =IF($AD$23>=10,((AC41*$AE$29)+(AE41*$AE$30)),(AC41*$AE$32)+(AE41*$AE$33))/100 -> 1280 | AN41: =+AL41+AM41 -> 4578.45 | AP41: =+AB41 -> 80000 | AQ41: =IF(AP41>=$AH$29,$AH$29,AP41) -> 46031 | AR41: =+AP41-AQ41 -> 33969 | AT41: =+AQ41*$AI$29%+AR41*$AI$30% -> 3298.45 | AU41: =IF($AD$23>=10,(AQ41*$AJ$29/100)+(AR41*$AJ$30/100),(AQ41*$AJ33/100+AR41*$AJ$34/100)) -> 1120 | AV41: =+AT41+AU41 -> 4418.45 | AX41: =+J41 -> 80000 | BB41: =+AX41*$AM$25% -> 1280 | BC41: =+AX41*$AM$25% -> 1280 | BD41: =+BB41+BC41 -> 2560
A42: =1+A41 -> 2 | C42: =IF($B$35=1,AL42*99.95%,IF($B$35=2,AT42*99.95%,BB42*99.95%)) -> 3408.744775 | D42: =IF($B$35=1,AM42*99.95%,IF($B$35=2,AU42*99.95%,BC42*99.95%)) -> 1304.9472 | E42: =+CALCOLI1!$E$18*99.95% -> 0 | F42: =+F41+W42 -> 11850.66667 | G42: =+B42+C42+D42 -> 4713.691975 | H42: =+I42+F42+M42 -> 21822.22584 | I42: =+I41+G42 -> 9289.85275 | J42: =+J41*$K$41/100 -> 81600 | M42: =+M41+O42 -> 681.7064192 | O42: =+(G42+F42+O41)*$N$41/100 -> 420.6357332 | S42: =+J42/13.5 -> 6044.444444 | U42: =+J42*$P$41/100*99% -> 3116.156083 | V42: =+J42*$Q$41*99%/100 -> 2624.828411 | W42: =+J42/13.5*$R$41/100*99% -> 5984 | Y42: =+U42+V42+X42 -> 5740.984495 | Z42: =+Y42+W42 -> 11724.98449 | AB42: =+J42 -> 81600 | AC42: =IF(AB42>=$AC$29,$AC$29,AB42) -> 46031 | AD42: =+AB42-AC42 -> 35569 | AE42: =IF(AD42>=$AA$30,$AA$30,AD42) -> 35569 | AF42: =+AD42-AE42 -> 0 | AG42: =IF(AF42>=$AA$31,$AA$31,AF42) -> 0 | AH42: =+AF42-AG42 -> 0 | AI42: =IF(AH42>=$AA$32,$AA$32,AH42) -> 0 | AJ42: =IF(AH42>=$AA$33,$AA$33,AH42) -> 0 | AL42: =+((AC42*$AD$29)+(AE42*$AD$30))/100 -> 3410.45 | AM42: =IF($AD$23>=10,((AC42*$AE$29)+(AE42*$AE$30)),(AC42*$AE$32)+(AE42*$AE$33))/100 -> 1305.6 | AN42: =+AL42+AM42 -> 4716.05 | AP42: =+AB42 -> 81600 | AQ42: =IF(AP42>=$AH$29,$AH$29,AP42) -> 46031 | AR42: =+AP42-AQ42 -> 35569 | AT42: =+AQ42*$AI$29%+AR42*$AI$30% -> 3410.45 | AU42: =IF($AD$23>=10,(AQ42*$AJ$29/100)+(AR42*$AJ$30/100),(AQ42*$AJ34/100+AR42*$AJ$34/100)) -> 1142.4 | AV42: =+AT42+AU42 -> 4552.85 | AX42: =+J42 -> 81600 | BB42: =+AX42*$AM$25% -> 1305.6 | BC42: =+AX42*$AM$25% -> 1305.6 | BD42: =+BB42+BC42 -> 2611.2
A43: =1+A42 -> 3 | C43: 3522.927655 | D43: 1331.046144 | E43: =+CALCOLI1!$E$18*99.95% -> 0 | F43: =+F42+W43 -> 17954.34667 | G43: 4853.973799 | H43: =+I43+F43+M43 -> 33360.60354 | I43: =+I42+G43 -> 14143.82655 | J43: =+J42*$K$41/100 -> 83232 | M43: =+M42+O43 -> 1262.430324 | O43: =+(G43+F43+O42)*$N$41/100 -> 580.723905 | S43: 6165.333333 | U43: =+J43*$P$41/100*99% -> 3178.479205 | V43: =+J43*$Q$41*99%/100 -> 2677.32498 | W43: =+J43/13.5*$R$41/100*99% -> 6103.68 | Y43: =+U43+V43+X43 -> 5855.804185 | Z43: =+Y43+W43 -> 11959.48418 | AB43: 83232 | AC43: 46031 | AD43: 37201 | AE43: 37201 | AF43: 0 | AG43: 0 | AH43: 0 | AI43: 0 | AJ43: 0 | AL43: 3524.69 | AM43: 1331.712 | AN43: 4856.402 | AP43: 83232 | AQ43: 46031 | AR43: 37201 | AT43: 3524.69 | AU43: 520.814 | AV43: 4045.504 | AX43: 83232 | BB43: 1331.712 | BC43: 1331.712 | BD43: 2663.424
A44: 4 | C44: 3639.394193 | D44: 1357.667067 | E44: =+CALCOLI1!$E$18*99.95% -> 0 | F44: 24180.10027 | G44: 4997.061259 | H44: 45327.36554 | I44: 19140.88781 | J44: 84896.64 | M44: 2006.37746 | O44: 743.9471358 | S44: 6288.64 | U44: 3242.048789 | V44: 2730.871479 | W44: 6225.7536 | Y44: 5972.920268 | Z44: 12198.67387 | AB44: 84896.64 | AC44: 46031 | AD44: 38865.64 | AE44: 38865.64 | AF44: 0 | AG44: 0 | AH44: 0 | AI44: 0 | AJ44: 0 | AL44: 3641.2148 | AM44: 1358.34624 | AN44: 4999.56104 | AP44: 84896.64 | AQ44: 46031 | AR44: 38865.64 | AT44: 3641.2148 | AU44: 544.11896 | AV44: 4185.33376 | AX44: 84896.64 | BB44: 1358.34624 | BC44: 1358.34624 | BD44: 2716.69248
A45: 5 | C45: 3758.190061 | D45: 1384.820408 | E45: =+CALCOLI1!$E$18*99.95% -> 0 | F45: 30530.36894 | G45: 5143.010469 | H45: 57731.07784 | I45: 24283.89828 | J45: 86594.5728 | M45: 2916.810624 | O45: 910.4331636 | S45: 6414.4128 | U45: 3306.889765 | V45: 2785.488909 | W45: 6350.268672 | Y45: 6092.378674 | Z45: 12442.64735 | AB45: 86594.5728 | AC45: 46031 | AD45: 40563.5728 | AE45: 40563.5728 | AF45: 0 | AG45: 0 | AH45: 0 | AI45: 0 | AJ45: 0 | AL45: 3760.070096 | AM45: 1385.513165 | AN45: 5145.583261 | AP45: 86594.5728 | AQ45: 46031 | AR45: 40563.5728 | AT45: 3760.070096 | AU45: 567.8900192 | AV45: 4327.960115 | AX45: 86594.5728 | BB45: 1385.513165 | BC45: 1385.513165 | BD45: 2771.02633
A46: 6 | C46: 3879.361847 | D46: 1412.516816 | E46: =+CALCOLI1!$E$18*99.95% -> 0 | F46: 37007.64298 | G46: 5291.878663 | H46: 70580.47942 | I46: 29575.77694 | J46: 88326.46426 | M46: 3997.059494 | O46: 1080.24887 | S46: 6542.701056 | U46: 3373.02756 | V46: 2841.198687 | W46: 6477.274045 | Y46: 6214.226247 | Z46: 12691.50029 | AB46: 88326.46426 | AC46: 46031 | AD46: 42295.46426 | AE46: 42295.46426 | AF46: 0 | AG46: 0 | AH46: 0 | AI46: 0 | AJ46: 0 | AL46: 3881.302498 | AM46: 1413.223428 | AN46: 5294.525926 | AP46: 88326.46426 | AQ46: 46031 | AR46: 42295.46426 | AT46: 3881.302498 | AU46: 592.1364996 | AV46: 4473.438998 | AX46: 88326.46426 | BB46: 1413.223428 | BC46: 1413.223428 | BD46: 2826.446856
A47: 7 | C47: 4002.957068 | D47: 1440.767153 | E47: =+CALCOLI1!$E$18*99.95% -> 0 | F47: 43614.46251 | G47: 5443.724221 | H47: 83884.48406 | I47: 35019.50116 | J47: 90092.99354 | M47: 5250.520384 | O47: 1253.46089 | S47: 6673.555077 | U47: 3440.488111 | V47: 2898.022661 | W47: 6606.819526 | Y47: 6338.510772 | Z47: 12945.3303 | AB47: 90092.99354 | AC47: 46031 | AD47: 44061.99354 | AE47: 44061.99354 | AF47: 0 | AG47: 0 | AH47: 0 | AI47: 0 | AJ47: 0 | AL47: 4004.959548 | AM47: 1441.487897 | AN47: 5446.447445 | AP47: 90092.99354 | AQ47: 46031 | AR47: 44061.99354 | AT47: 4004.959548 | AU47: 616.8679096 | AV47: 4621.827457 | AX47: 90092.99354 | BB47: 1441.487897 | BC47: 1441.487897 | BD47: 2882.975793
A48: 8 | C48: 4129.024194 | D48: 1469.582496 | E48: =+CALCOLI1!$E$18*99.95% -> 0 | F48: 50353.41843 | G48: 5598.60669 | H48: 97652.18381 | I48: 40618.10785 | J48: 91894.85341 | M48: 6680.657534 | O48: 1430.13715 | S48: 6807.026179 | U48: 3509.297874 | V48: 2955.983114 | W48: 6738.955917 | Y48: 6465.280988 | Z48: 13204.2369 | AB48: 91894.85341 | AC48: 46031 | AD48: 45863.85341 | AE48: 45863.85341 | AF48: 0 | AG48: 0 | AH48: 0 | AI48: 0 | AJ48: 0 | AL48: 4131.089739 | AM48: 1470.317655 | AN48: 5601.407393 | AP48: 91894.85341 | AQ48: 46031 | AR48: 45863.85341 | AT48: 4131.089739 | AU48: 642.0939478 | AV48: 4773.183687 | AX48: 91894.85341 | BB48: 1470.317655 | BC48: 1470.317655 | BD48: 2940.635309
A49: 9 | C49: 4257.612662 | D49: 1498.974146 | E49: =+CALCOLI1!$E$18*99.95% -> 0 | F49: 57227.15346 | G49: 5756.586808 | H49: 111892.8526 | I49: 46374.69466 | J49: 93732.75048 | M49: 8291.00447 | O49: 1610.346936 | S49: 6943.166702 | U49: 3579.483831 | V49: 3015.102776 | W49: 6873.735035 | Y49: 6594.586607 | Z49: 13468.32164 | AB49: 93732.75048 | AC49: 46031 | AD49: 47701.75048 | AE49: 47701.75048 | AF49: 0 | AG49: 0 | AH49: 0 | AI49: 0 | AJ49: 0 | AL49: 4259.742534 | AM49: 1499.724008 | AN49: 5759.466541 | AP49: 93732.75048 | AQ49: 46031 | AR49: 47701.75048 | AT49: 4259.742534 | AU49: 667.8245067 | AV49: 4927.56704 | AX49: 93732.75048 | BB49: 1499.724008 | BC49: 1499.724008 | BD49: 2999.448015
A50: 10 | C50: 4388.7729 | D50: 1528.953629 | E50: =+CALCOLI1!$E$18*99.95% -> 0 | F50: 64238.3632 | G50: 5917.726529 | H50: 126615.9498 | I50: 52292.42119 | J50: 95607.40549 | M50: 10085.16539 | O50: 1794.160917 | S50: 7082.030036 | U50: 3651.073508 | V50: 3075.404832 | W50: 7011.209736 | Y50: 6726.47834 | Z50: 13737.68808 | AB50: 95607.40549 | AC50: 46031 | AD50: 49576.40549 | AE50: 49576.40549 | AF50: 0 | AG50: 0 | AH50: 0 | AI50: 0 | AJ50: 0 | AL50: 4390.968384 | AM50: 1529.718488 | AN50: 5920.686872 | AP50: 95607.40549 | AQ50: 46031 | AR50: 49576.40549 | AT50: 4390.968384 | AU50: 694.0696769 | AV50: 5085.038061 | AX50: 95607.40549 | BB50: 1529.718488 | BC50: 1529.718488 | BD50: 3059.436976
A51: 11 | C51: 4522.556343 | D51: 1559.532701 | E51: =+CALCOLI1!$E$18*99.95% -> 0 | F51: 71389.79713 | G51: 6082.089044 | H51: 141831.1239 | I51: 58374.51023 | J51: 97519.5536 | M51: 12066.81656 | O51: 1981.651177 | S51: 7223.670637 | U51: 3724.094978 | V51: 3136.912928 | W51: 7151.433931 | Y51: 6861.007906 | Z51: 14012.44184 | AB51: 97519.5536 | AC51: 46031 | AD51: 51488.5536 | AE51: 51488.5536 | AF51: 0 | AG51: 0 | AH51: 0 | AI51: 0 | AJ51: 0 | AL51: 4524.818752 | AM51: 1560.312858 | AN51: 6085.13161 | AP51: 97519.5536 | AQ51: 46031 | AR51: 51488.5536 | AT51: 4524.818752 | AU51: 720.8397504 | AV51: 5245.658502 | AX51: 97519.5536 | BB51: 1560.312858 | BC51: 1560.312858 | BD51: 3120.625715
A52: 12 | C52: 4659.015454 | D52: 1590.723355 | E52: =+CALCOLI1!$E$18*99.95% -> 0 | F52: 78684.25974 | G52: 6249.738809 | H52: 157548.2166 | I52: 64624.24904 | J52: 99469.94467 | M52: 14239.70781 | O52: 2172.891243 | S52: 7368.14405 | U52: 3798.576878 | V52: 3199.651187 | W52: 7294.462609 | Y52: 6998.228064 | Z52: 14292.69067 | AB52: 99469.94467 | AC52: 46031 | AD52: 53438.94467 | AE52: 53438.94467 | AF52: 0 | AG52: 0 | AH52: 0 | AI52: 0 | AJ52: 0 | AL52: 4661.346127 | AM52: 1591.519115 | AN52: 6252.865242 | AP52: 99469.94467 | AQ52: 46031 | AR52: 53438.94467 | AT52: 4661.346127 | AU52: 748.1452254 | AV52: 5409.491352 | AX52: 99469.94467 | BB52: 1591.519115 | BC52: 1591.519115 | BD52: 3183.038229
A53: 13 | C53: 4798.203748 | D53: 1622.537822 | E53: =+CALCOLI1!$E$18*99.95% -> 0 | F53: 86124.6116 | G53: 6420.74157 | H53: 173777.2661 | I53: 71044.99061 | J53: 101459.3436 | M53: 16607.66392 | O53: 2367.95611 | S53: 7515.506931 | U53: 3874.548415 | V53: 3263.644211 | W53: 7440.351861 | Y53: 7138.192626 | Z53: 14578.54449 | AB53: 101459.3436 | AC53: 46031 | AD53: 55428.34357 | AE53: 55428.34357 | AF53: 0 | AG53: 0 | AH53: 0 | AI53: 0 | AJ53: 0 | AL53: 4800.60405 | AM53: 1623.349497 | AN53: 6423.953547 | AP53: 101459.3436 | AQ53: 46031 | AR53: 55428.34357 | AT53: 4800.60405 | AU53: 775.9968099 | AV53: 5576.600859 | AX53: 101459.3436 | BB53: 1623.349497 | BC53: 1623.349497 | BD53: 3246.698994
A54: 14 | C54: 4940.175807 | D54: 1654.988579 | E54: =+CALCOLI1!$E$18*99.95% -> 0 | F54: 93713.7705 | G54: 6595.164386 | H54: 190528.5117 | I54: 77640.155 | J54: 103488.5304 | M54: 19174.58619 | O54: 2566.922275 | S54: 7665.817069 | U54: 3952.039383 | V54: 3328.917095 | W54: 7589.158899 | Y54: 7280.956478 | Z54: 14870.11538 | AB54: 103488.5304 | AC54: 46031 | AD54: 57457.53044 | AE54: 57457.53044 | AF54: 0 | AG54: 0 | AH54: 0 | AI54: 0 | AJ54: 0 | AL54: 4942.647131 | AM54: 1655.816487 | AN54: 6598.463618 | AP54: 103488.5304 | AQ54: 46031 | AR54: 57457.53044 | AT54: 4942.647131 | AU54: 804.4054261 | AV54: 5747.052557 | AX54: 103488.5304 | BB54: 1655.816487 | BC54: 1655.816487 | BD54: 3311.632974
A55: 15 | C55: 5084.987308 | D55: 1688.08835 | E55: =+CALCOLI1!$E$18*99.95% -> 0 | F55: 101454.7126 | G55: 6773.075658 | H55: 207812.3972 | I55: 84413.23065 | J55: 105558.301 | M55: 21944.45395 | O55: 2769.867763 | S55: 7819.133411 | U55: 4031.080171 | V55: 3395.495437 | W55: 7740.942077 | Y55: 7426.575608 | Z55: 15167.51768 | AB55: 105558.301 | AC55: 46031 | AD55: 59527.30105 | AE55: 59527.30105 | AF55: 0 | AG55: 0 | AH55: 0 | AI55: 0 | AJ55: 0 | AL55: 5087.531073 | AM55: 1688.932817 | AN55: 6776.46389 | AP55: 105558.301 | AQ55: 46031 | AR55: 59527.30105 | AT55: 5087.531073 | AU55: 833.3822146 | AV55: 5920.913288 | AX55: 105558.301 | BB55: 1688.932817 | BC55: 1688.932817 | BD55: 3377.865633
A56: 16 | C56: 5232.695038 | D56: 1721.850117 | E56: =+CALCOLI1!$E$18*99.95% -> 0 | F56: 109350.4735 | G56: 6954.545156 | H56: 225639.5754 | I56: 91367.77581 | J56: 107669.4671 | M56: 24921.32611 | O56: 2976.87216 | S56: 7975.516079 | U56: 4111.701774 | V56: 3463.405346 | W56: 7895.760918 | Y56: 7575.10712 | Z56: 15470.86804 | AB56: 107669.4671 | AC56: 46031 | AD56: 61638.46707 | AE56: 61638.46707 | AF56: 0 | AG56: 0 | AH56: 0 | AI56: 0 | AJ56: 0 | AL56: 5235.312695 | AM56: 1722.711473 | AN56: 6958.024168 | AP56: 107669.4671 | AQ56: 46031 | AR56: 61638.46707 | AT56: 5235.312695 | AU56: 862.9385389 | AV56: 6098.251234 | AX56: 107669.4671 | BB56: 1722.711473 | BC56: 1722.711473 | BD56: 3445.422946
A57: 17 | C57: 5383.356924 | D57: 1756.28712 | E57: =+CALCOLI1!$E$18*99.95% -> 0 | F57: 117404.1496 | G57: 7139.644043 | H57: 244020.9122 | I57: 98507.41985 | J57: 109822.8564 | M57: 28109.34276 | O57: 3188.016646 | S57: 8135.026401 | U57: 4193.93581 | V57: 3532.673452 | W57: 8053.676137 | Y57: 7726.609262 | Z57: 15780.2854 | AB57: 109822.8564 | AC57: 46031 | AD57: 63791.85641 | AE57: 63791.85641 | AF57: 0 | AG57: 0 | AH57: 0 | AI57: 0 | AJ57: 0 | AL57: 5386.049949 | AM57: 1757.165703 | AN57: 7143.215651 | AP57: 109822.8564 | AQ57: 46031 | AR57: 63791.85641 | AT57: 5386.049949 | AU57: 893.0859897 | AV57: 6279.135938 | AX57: 109822.8564 | BB57: 1757.165703 | BC57: 1757.165703 | BD57: 3514.331405
A58: 18 | C58: 5537.032047 | D58: 1791.412862 | E58: =+CALCOLI1!$E$18*99.95% -> 0 | F58: 125618.8993 | G58: 7328.444909 | H58: 262967.4908 | I58: 105835.8648 | J58: 112019.3135 | M58: 31512.72678 | O58: 3403.384021 | S58: 8297.726929 | U58: 4277.814526 | V58: 3603.326921 | W58: 8214.749659 | Y58: 7881.141448 | Z58: 16095.89111 | AB58: 112019.3135 | AC58: 46031 | AD58: 65988.31354 | AE58: 65988.31354 | AF58: 0 | AG58: 0 | AH58: 0 | AI58: 0 | AJ58: 0 | AL58: 5539.801947 | AM58: 1792.309017 | AN58: 7332.110964 | AP58: 112019.3135 | AQ58: 46031 | AR58: 65988.31354 | AT58: 5539.801947 | AU58: 923.8363895 | AV58: 6463.638337 | AX58: 112019.3135 | BB58: 1792.309017 | BC58: 1792.309017 | BD58: 3584.618033
A59: 19 | C59: 5693.780672 | D59: 1827.241119 | E59: =+CALCOLI1!$E$18*99.95% -> 0 | F59: 133997.9439 | G59: 7521.021791 | H59: 282490.616 | I59: 113356.8866 | J59: 114259.6998 | M59: 35135.78553 | O59: 3623.058744 | S59: 8463.681467 | U59: 4363.370817 | V59: 3675.39346 | W59: 8379.044652 | Y59: 8038.764277 | Z59: 16417.80893 | AB59: 114259.6998 | AC59: 46031 | AD59: 68228.69981 | AE59: 68228.69981 | AF59: 0 | AG59: 0 | AH59: 0 | AI59: 0 | AJ59: 0 | AL59: 5696.628986 | AM59: 1828.155197 | AN59: 7524.784183 | AP59: 114259.6998 | AQ59: 46031 | AR59: 68228.69981 | AT59: 5696.628986 | AU59: 955.2017973 | AV59: 6651.830784 | AX59: 114259.6998 | BB59: 1828.155197 | BC59: 1828.155197 | BD59: 3656.310394
A60: 20 | C60: 5853.66427 | D60: 1863.785942 | E60: =+CALCOLI1!$E$18*99.95% -> 0 | F60: 142544.5695 | G60: 7717.450212 | H60: 302601.8187 | I60: 121074.3368 | J60: 116544.8938 | M60: 38982.91249 | O60: 3847.126961 | S60: 8632.955096 | U60: 4450.638233 | V60: 3748.901329 | W60: 8546.625545 | Y60: 8199.539562 | Z60: 16746.16511 | AB60: 116544.8938 | AC60: 46031 | AD60: 70513.8938 | AE60: 70513.8938 | AF60: 0 | AG60: 0 | AH60: 0 | AI60: 0 | AJ60: 0 | AL60: 5856.592566 | AM60: 1864.718301 | AN60: 7721.310867 | AP60: 116544.8938 | AQ60: 46031 | AR60: 70513.8938 | AT60: 5856.592566 | AU60: 987.1945132 | AV60: 6843.787079 | AX60: 116544.8938 | BB60: 1864.718301 | BC60: 1864.718301 | BD60: 3729.436602
A61: 21 | C61: 6016.74554 | D61: 1901.061661 | E61: =+CALCOLI1!$E$18*99.95% -> 0 | F61: 151262.1275 | G61: 7917.8072 | H61: 323312.8605 | I61: 128992.144 | J61: 118875.7917 | M61: 43058.58903 | O61: 4075.676543 | S61: 8805.614198 | U61: 4539.650998 | V61: 3823.879356 | W61: 8717.558056 | Y61: 8363.530353 | Z61: 17081.08841 | AB61: 118875.7917 | AC61: 46031 | AD61: 72844.79168 | AE61: 72844.79168 | AF61: 0 | AG61: 0 | AH61: 0 | AI61: 0 | AJ61: 0 | AL61: 6019.755417 | AM61: 1902.012667 | AN61: 7921.768084 | AP61: 118875.7917 | AQ61: 46031 | AR61: 72844.79168 | AT61: 6019.755417 | AU61: 1019.827083 | AV61: 7039.582501 | AX61: 118875.7917 | BB61: 1902.012667 | BC61: 1902.012667 | BD61: 3804.025334
A62: 22 | C62: 6183.088435 | D62: 1939.082894 | E62: =+CALCOLI1!$E$18*99.95% -> 0 | F62: 160154.0368 | G62: 8122.171329 | H62: 344635.7382 | I62: 137114.3153 | J62: 121253.3075 | M62: 47367.38614 | O62: 4308.797116 | S62: 8981.726482 | U62: 4630.444018 | V62: 3900.356943 | W62: 8891.909218 | Y62: 8530.80096 | Z62: 17422.71018 | AB62: 121253.3075 | AC62: 46031 | AD62: 75222.30751 | AE62: 75222.30751 | AF62: 0 | AG62: 0 | AH62: 0 | AI62: 0 | AJ62: 0 | AL62: 6186.181526 | AM62: 1940.05292 | AN62: 8126.234446 | AP62: 121253.3075 | AQ62: 46031 | AR62: 75222.30751 | AT62: 6186.181526 | AU62: 1053.112305 | AV62: 7239.293831 | AX62: 121253.3075 | BB62: 1940.05292 | BC62: 1940.05292 | BD62: 3880.10584
A63: 23 | C63: 6352.758188 | D63: 1977.864552 | E63: =+CALCOLI1!$E$18*99.95% -> 0 | F63: 169223.7842 | G63: 8330.62274 | H63: 366582.6884 | I63: 145444.938 | J63: 123678.3737 | M63: 51913.96625 | O63: 4546.5801 | S63: 9161.361012 | U63: 4723.052898 | V63: 3978.364082 | W63: 9069.747402 | Y63: 8701.41698 | Z63: 17771.16438 | AB63: 123678.3737 | AC63: 46031 | AD63: 77647.37366 | AE63: 77647.37366 | AF63: 0 | AG63: 0 | AH63: 0 | AI63: 0 | AJ63: 0 | AL63: 6355.936156 | AM63: 1978.853979 | AN63: 8334.790135 | AP63: 123678.3737 | AQ63: 46031 | AR63: 77647.37366 | AT63: 6355.936156 | AU63: 1087.063231 | AV63: 7442.999388 | AX63: 123678.3737 | BB63: 1978.853979 | BC63: 1978.853979 | BD63: 3957.707957
A64: 24 | C64: 6525.821337 | D64: 2017.421843 | E64: =+CALCOLI1!$E$18*99.95% -> 0 | F64: 178474.9265 | G64: 8543.243179 | H64: 389166.1927 | I64: 153988.1812 | J64: 126151.9411 | M64: 56703.08499 | O64: 4789.118745 | S64: 9344.588232 | U64: 4817.513956 | V64: 4057.931363 | W64: 9251.14235 | Y64: 8875.445319 | Z64: 18126.58767 | AB64: 126151.9411 | AC64: 46031 | AD64: 80120.94114 | AE64: 80120.94114 | AF64: 0 | AG64: 0 | AH64: 0 | AI64: 0 | AJ64: 0 | AL64: 6529.085879 | AM64: 2018.431058 | AN64: 8547.516938 | AP64: 126151.9411 | AQ64: 46031 | AR64: 80120.94114 | AT64: 6529.085879 | AU64: 1121.693176 | AV64: 7650.779055 | AX64: 126151.9411 | BB64: 2018.431058 | BC64: 2018.431058 | BD64: 4036.862116
A65: 25 | C65: 6702.345748 | D65: 2057.770279 | E65: =+CALCOLI1!$E$18*99.95% -> 0 | F65: 187911.0917 | G65: 8760.116027 | H65: 412398.9821 | I65: 162748.2972 | J65: 128674.98 | M65: 61739.59315 | O65: 5036.508162 | S65: 9531.479997 | U65: 4913.864235 | V65: 4139.089991 | W65: 9436.165197 | Y65: 9052.954226 | Z65: 18489.11942 | AB65: 128674.98 | AC65: 46031 | AD65: 82643.97996 | AE65: 82643.97996 | AF65: 0 | AG65: 0 | AH65: 0 | AI65: 0 | AJ65: 0 | AL65: 6705.698597 | AM65: 2058.799679 | AN65: 8764.498276 | AP65: 128674.98 | AQ65: 46031 | AR65: 82643.97996 | AT65: 6705.698597 | AU65: 1157.015719 | AV65: 7862.714316 | AX65: 128674.98 | BB65: 2058.799679 | BC65: 2058.799679 | BD65: 4117.599359
A66: 26 | C66: 6882.400647 | D66: 2098.925685 | E66: =+CALCOLI1!$E$18*99.95% -> 0 | F66: 197535.9802 | G66: 8981.326332 | H66: 436294.0423 | I66: 171729.6236 | J66: 131248.4796 | M66: 67028.43852 | O66: 5288.845368 | S66: 9722.109597 | U66: 5012.14152 | V66: 4221.87179 | W66: 9624.888501 | Y66: 9234.01331 | Z66: 18858.90181 | AB66: 131248.4796 | AC66: 46031 | AD66: 85217.47956 | AE66: 85217.47956 | AF66: 0 | AG66: 0 | AH66: 0 | AI66: 0 | AJ66: 0 | AL66: 6885.843569 | AM66: 2099.975673 | AN66: 8985.819242 | AP66: 131248.4796 | AQ66: 46031 | AR66: 85217.47956 | AT66: 6885.843569 | AU66: 1193.044714 | AV66: 8078.888283 | AX66: 131248.4796 | BB66: 2099.975673 | BC66: 2099.975673 | BD66: 4199.951346
A67: 27 | C67: 7066.056645 | D67: 2140.904199 | E67: =+CALCOLI1!$E$18*99.95% -> 0 | F67: 207353.3665 | G67: 9206.960843 | H67: 460864.6187 | I67: 180936.5844 | J67: 133873.4491 | M67: 72574.66784 | O67: 5546.229317 | S67: 9916.551789 | U67: 5112.38435 | V67: 4306.309226 | W67: 9817.386271 | Y67: 9418.693576 | Z67: 19236.07985 | AB67: 133873.4491 | AC67: 46031 | AD67: 87842.44915 | AE67: 87842.44915 | AF67: 0 | AG67: 0 | AH67: 0 | AI67: 0 | AJ67: 0 | AL67: 7069.59144 | AM67: 2141.975186 | AN67: 9211.566627 | AP67: 133873.4491 | AQ67: 46031 | AR67: 87842.44915 | AT67: 7069.59144 | AU67: 1229.794288 | AV67: 8299.385728 | AX67: 133873.4491 | BB67: 2141.975186 | BC67: 2141.975186 | BD67: 4283.950373
A68: 28 | C68: 7253.385762 | D68: 2183.722283 | E68: =+CALCOLI1!$E$18*99.95% -> 0 | F68: 217367.1005 | G68: 9437.108045 | H68: 486124.2217 | I68: 190373.6925 | J68: 136550.9181 | M68: 78383.42878 | O68: 5808.760946 | S68: 10114.88282 | U68: 5214.632037 | V68: 4392.435411 | W68: 10013.734 | Y68: 9607.067448 | Z68: 19620.80144 | AB68: 136550.9181 | AC68: 46031 | AD68: 90519.91813 | AE68: 90519.91813 | AF68: 0 | AG68: 0 | AH68: 0 | AI68: 0 | AJ68: 0 | AL68: 7257.014269 | AM68: 2184.81469 | AN68: 9441.828959 | AP68: 136550.9181 | AQ68: 46031 | AR68: 90519.91813 | AT68: 7257.014269 | AU68: 1267.278854 | AV68: 8524.293123 | AX68: 136550.9181 | BB68: 2184.81469 | BC68: 2184.81469 | BD68: 4369.62938
A69: 29 | C69: 7444.461462 | D69: 2227.396728 | E69: =+CALCOLI1!$E$18*99.95% -> 0 | F69: 227581.1092 | G69: 9671.85819 | H69: 512086.6318 | I69: 200045.5507 | J69: 139281.9365 | M69: 84459.97199 | O69: 6076.543207 | S69: 10317.18048 | U69: 5318.924678 | V69: 4480.284119 | W69: 10214.00868 | Y69: 9799.208797 | Z69: 20013.21747 | AB69: 139281.9365 | AC69: 46031 | AD69: 93250.93649 | AE69: 93250.93649 | AF69: 0 | AG69: 0 | AH69: 0 | AI69: 0 | AJ69: 0 | AL69: 7448.185555 | AM69: 2228.510984 | AN69: 9676.696538 | AP69: 139281.9365 | AQ69: 46031 | AR69: 93250.93649 | AT69: 7448.185555 | AU69: 1305.513111 | AV69: 8753.698665 | AX69: 139281.9365 | BB69: 2228.510984 | BC69: 2228.510984 | BD69: 4457.021968
A70: 30 | C70: 7639.358676 | D70: 2271.944663 | E70: =+CALCOLI1!$E$18*99.95% -> 0 | F70: 237999.398 | G70: 9911.303339 | H70: 538765.9051 | I70: 209956.854 | J70: 142067.5752 | M70: 90809.6531 | O70: 6349.681114 | S70: 10523.52409 | U70: 5425.303171 | V70: 4569.889801 | W70: 10418.28885 | Y70: 9995.192973 | Z70: 20413.48182 | AB70: 142067.5752 | AC70: 46031 | AD70: 96036.57522 | AE70: 96036.57522 | AF70: 0 | AG70: 0 | AH70: 0 | AI70: 0 | AJ70: 0 | AL70: 7643.180266 | AM70: 2273.081204 | AN70: 9916.261469 | AP70: 142067.5752 | AQ70: 46031 | AR70: 96036.57522 | AT70: 7643.180266 | AU70: 1344.512053 | AV70: 8987.692319 | AX70: 142067.5752 | BB70: 2273.081204 | BC70: 2273.081204 | BD70: 4546.162407
A71: 31 | C71: 7838.153834 | D71: 2317.383556 | E71: =+CALCOLI1!$E$18*99.95% -> 0 | F71: 248626.0526 | G71: 10155.53739 | H71: 566176.3789 | I71: 220112.3914 | J71: 144908.9267 | M71: 97437.93488 | O71: 6628.281778 | S71: 10733.99457 | U71: 5533.809235 | V71: 4661.287597 | W71: 10626.65463 | Y71: 10195.09683 | Z71: 20821.75146 | AB71: 144908.9267 | AC71: 46031 | AD71: 98877.92673 | AE71: 98877.92673 | AF71: 0 | AG71: 0 | AH71: 0 | AI71: 0 | AJ71: 0 | AL71: 7842.074871 | AM71: 2318.542828 | AN71: 10160.6177 | AP71: 144908.9267 | AQ71: 46031 | AR71: 98877.92673 | AT71: 7842.074871 | AU71: 1384.290974 | AV71: 9226.365845 | AX71: 144908.9267 | BB71: 2318.542828 | BC71: 2318.542828 | BD71: 4637.085655
A72: 32 | C72: 8040.924895 | D72: 2363.731227 | E72: =+CALCOLI1!$E$18*99.95% -> 0 | F72: 259465.2403 | G72: 10404.65612 | H72: 594332.6772 | I72: 230517.0475 | J72: 147807.1053 | M72: 104350.3893 | O72: 6912.454456 | S72: 10948.67446 | U72: 5644.48542 | V72: 4754.513349 | W72: 10839.18772 | Y72: 10398.99877 | Z72: 21238.18649 | AB72: 147807.1053 | AC72: 46031 | AD72: 101776.1053 | AE72: 101776.1053 | AF72: 0 | AG72: 0 | AH72: 0 | AI72: 0 | AJ72: 0 | AL72: 8044.947368 | AM72: 2364.913684 | AN72: 10409.86105 | AP72: 147807.1053 | AQ72: 46031 | AR72: 101776.1053 | AT72: 8044.947368 | AU72: 1424.865474 | AV72: 9469.812842 | AX72: 147807.1053 | BB72: 2364.913684 | BC72: 2364.913684 | BD72: 4729.827368
A73: 33 | C73: 8247.751377 | D73: 2411.005852 | E73: =+CALCOLI1!$E$18*99.95% -> 0 | F73: 270521.2118 | G73: 10658.75723 | H73: 623249.7165 | I73: 241175.8047 | J73: 150763.2474 | M73: 111552.6999 | O73: 7202.310588 | S73: 11167.64795 | U73: 5757.375128 | V73: 4849.603616 | W73: 11055.97147 | Y73: 10606.97874 | Z73: 21662.95022 | AB73: 150763.2474 | AC73: 46031 | AD73: 104732.2474 | AE73: 104732.2474 | AF73: 0 | AG73: 0 | AH73: 0 | AI73: 0 | AJ73: 0 | AL73: 8251.877316 | AM73: 2412.211958 | AN73: 10664.08927 | AP73: 150763.2474 | AQ73: 46031 | AR73: 104732.2474 | AT73: 8251.877316 | AU73: 1466.251463 | AV73: 9718.128779 | AX73: 150763.2474 | BB73: 2412.211958 | BC73: 2412.211958 | BD73: 4824.423916
A74: 34 | C74: 8458.714389 | D74: 2459.225969 | E74: =+CALCOLI1!$E$18*99.95% -> 0 | F74: 281798.3027 | G74: 10917.94036 | H74: 652942.7116 | I74: 252093.7451 | J74: 153778.5123 | M74: 119050.6638 | O74: 7497.963842 | S74: 11391.00091 | U74: 5872.522631 | V74: 4946.595689 | W74: 11277.0909 | Y74: 10819.11832 | Z74: 22096.20922 | AB74: 153778.5123 | AC74: 46031 | AD74: 107747.5123 | AE74: 107747.5123 | AF74: 0 | AG74: 0 | AH74: 0 | AI74: 0 | AJ74: 0 | AL74: 8462.945862 | AM74: 2460.456197 | AN74: 10923.40206 | AP74: 153778.5123 | AQ74: 46031 | AR74: 107747.5123 | AT74: 8462.945862 | AU74: 1508.465172 | AV74: 9971.411034 | AX74: 153778.5123 | BB74: 2460.456197 | BC74: 2460.456197 | BD74: 4920.912394
A75: 35 | C75: 8673.896661 | D75: 2508.410488 | E75: =+CALCOLI1!$E$18*99.95% -> 0 | F75: 293300.9354 | G75: 11182.30715 | H75: 683427.1816 | I75: 263276.0522 | J75: 156854.0826 | M75: 126850.1939 | O75: 7799.530161 | S75: 11618.82093 | U75: 5989.973083 | V75: 5045.527602 | W75: 11502.63272 | Y75: 11035.50069 | Z75: 22538.13341 | AB75: 156854.0826 | AC75: 46031 | AD75: 110823.0826 | AE75: 110823.0826 | AF75: 0 | AG75: 0 | AH75: 0 | AI75: 0 | AJ75: 0 | AL75: 8678.235779 | AM75: 2509.665321 | AN75: 11187.9011 | AP75: 156854.0826 | AQ75: 46031 | AR75: 110823.0826 | AT75: 8678.235779 | AU75: 1551.523156 | AV75: 10229.75894 | AX75: 156854.0826 | BB75: 2509.665321 | BC75: 2509.665321 | BD75: 5019.330642
A76: 36 | C76: 8893.382579 | D76: 2558.578698 | E76: =+CALCOLI1!$E$18*99.95% -> 0 | F76: 305033.6208 | G76: 11451.96128 | H76: 714718.9561 | I76: 274728.0135 | J76: 159991.1642 | M76: 134957.3217 | O76: 8107.127807 | S76: 11851.19735 | U76: 6109.772545 | V76: 5146.438154 | W76: 11732.68538 | Y76: 11256.2107 | Z76: 22988.89607 | AB76: 159991.1642 | AC76: 46031 | AD76: 113960.1642 | AE76: 113960.1642 | AF76: 0 | AG76: 0 | AH76: 0 | AI76: 0 | AJ76: 0 | AL76: 8897.831495 | AM76: 2559.858627 | AN76: 11457.69012 | AP76: 159991.1642 | AQ76: 46031 | AR76: 113960.1642 | AT76: 8897.831495 | AU76: 1595.442299 | AV76: 10493.27379 | AX76: 159991.1642 | BB76: 2559.858627 | BC76: 2559.858627 | BD76: 5119.717255
A77: 37 | C77: 9117.258215 | D77: 2609.750272 | E77: =+CALCOLI1!$E$18*99.95% -> 0 | F77: 317000.9599 | G77: 11727.00849 | H77: 746834.181 | I77: 286455.022 | J77: 163190.9875 | M77: 143378.1991 | O77: 8420.877405 | S77: 12088.2213 | U77: 6231.967996 | V77: 5249.366917 | W77: 11967.33908 | Y77: 11481.33491 | Z77: 23448.674 | AB77: 163190.9875 | AC77: 46031 | AD77: 117159.9875 | AE77: 117159.9875 | AF77: 0 | AG77: 0 | AH77: 0 | AI77: 0 | AJ77: 0 | AL77: 9121.819125 | AM77: 2611.0558 | AN77: 11732.87492 | AP77: 163190.9875 | AQ77: 46031 | AR77: 117159.9875 | AT77: 9121.819125 | AU77: 1640.239825 | AV77: 10762.05895 | AX77: 163190.9875 | BB77: 2611.0558 | BC77: 2611.0558 | BD77: 5222.1116
A78: 38 | C78: 9345.611364 | D78: 2661.945277 | E78: =+CALCOLI1!$E$18*99.95% -> 0 | F78: 329207.6458 | G78: 12007.55664 | H78: 779789.3256 | I78: 298462.5786 | J78: 166454.8072 | M78: 152119.1011 | O78: 8740.901995 | S78: 12329.98572 | U78: 6356.607356 | V78: 5354.354256 | W78: 12206.68586 | Y78: 11710.96161 | Z78: 23917.64748 | AB78: 166454.8072 | AC78: 46031 | AD78: 120423.8072 | AE78: 120423.8072 | AF78: 0 | AG78: 0 | AH78: 0 | AI78: 0 | AJ78: 0 | AL78: 9350.286507 | AM78: 2663.276916 | AN78: 12013.56342 | AP78: 166454.8072 | AQ78: 46031 | AR78: 120423.8072 | AT78: 9350.286507 | AU78: 1685.933301 | AV78: 11036.21981 | AX78: 166454.8072 | BB78: 2663.276916 | BC78: 2663.276916 | BD78: 5326.553832
A79: 39 | C79: 9578.531576 | D79: 2715.184183 | E79: =+CALCOLI1!$E$18*99.95% -> 0 | F79: 341658.4654 | G79: 12293.71576 | H79: 813601.188 | I79: 310756.2944 | J79: 169783.9034 | M79: 161186.4282 | O79: 9067.327078 | S79: 12576.58544 | U79: 6483.739503 | V79: 5461.441341 | W79: 12450.81958 | Y79: 11945.18084 | Z79: 24396.00043 | AB79: 169783.9034 | AC79: 46031 | AD79: 123752.9034 | AE79: 123752.9034 | AF79: 0 | AG79: 0 | AH79: 0 | AI79: 0 | AJ79: 0 | AL79: 9583.323237 | AM79: 2716.542454 | AN79: 12299.86569 | AP79: 169783.9034 | AQ79: 46031 | AR79: 123752.9034 | AT79: 9583.323237 | AU79: 1732.540647 | AV79: 11315.86388 | AX79: 169783.9034 | BB79: 2716.542454 | BC79: 2716.542454 | BD79: 5433.084909
A80: 40 | C80: 9816.110192 | D80: 2769.487867 | E80: =+CALCOLI1!$E$18*99.95% -> 0 | F80: 354358.3013 | G80: 12585.59806 | H80: 848286.9027 | I80: 323341.8925 | J80: 173179.5815 | M80: 170586.7089 | O80: 9400.280662 | S80: 12828.11715 | U80: 6613.414293 | V80: 5570.670168 | W80: 12699.83597 | Y80: 12184.08446 | Z80: 24883.92043 | AB80: 173179.5815 | AC80: 46031 | AD80: 127148.5815 | AE80: 127148.5815 | AF80: 0 | AG80: 0 | AH80: 0 | AI80: 0 | AJ80: 0 | AL80: 9821.020702 | AM80: 2770.873303 | AN80: 12591.89401 | AP80: 173179.5815 | AQ80: 46031 | AR80: 127148.5815 | AT80: 9821.020702 | AU80: 1780.08014 | AV80: 11601.10084 | AX80: 173179.5815 | BB80: 2770.873303 | BC80: 2770.873303 | BD80: 5541.746607
A81: 41 | C81: 10058.44038 | D81: 2824.877624 | E81: =+CALCOLI1!$E$18*99.95% -> 0 | F81: 367312.134 | G81: 12883.318 | H81: 883863.9467 | I81: 336225.2105 | J81: 176643.1731 | M81: 180326.6022 | O81: 9739.893317 | S81: 13084.67949 | U81: 6745.682579 | V81: 5682.083571 | W81: 12953.83269 | Y81: 12427.76615 | Z81: 25381.59884 | AB81: 176643.1731 | AC81: 46031 | AD81: 130612.1731 | AE81: 130612.1731 | AF81: 0 | AG81: 0 | AH81: 0 | AI81: 0 | AJ81: 0 | AL81: 10063.47212 | AM81: 2826.290769 | AN81: 12889.76289 | AP81: 176643.1731 | AQ81: 46031 | AR81: 130612.1731 | AT81: 10063.47212 | AU81: 1828.570423 | AV81: 11892.04254 | AX81: 176643.1731 | BB81: 2826.290769 | BC81: 2826.290769 | BD81: 5652.581539
A82: 42 | C82: 10305.61717 | D82: 2881.375177 | E82: =+CALCOLI1!$E$18*99.95% -> 0 | F82: 380525.0434 | G82: 13186.99235 | H82: 920350.1466 | I82: 349412.2028 | J82: 180176.0366 | M82: 190412.9004 | O82: 10086.29823 | S82: 13346.37308 | U82: 6880.59623 | V82: 5795.725243 | W82: 13212.90935 | Y82: 12676.32147 | Z82: 25889.23082 | AB82: 180176.0366 | AC82: 46031 | AD82: 134145.0366 | AE82: 134145.0366 | AF82: 0 | AG82: 0 | AH82: 0 | AI82: 0 | AJ82: 0 | AL82: 10310.77256 | AM82: 2882.816585 | AN82: 13193.58914 | AP82: 180176.0366 | AQ82: 46031 | AR82: 134145.0366 | AT82: 10310.77256 | AU82: 1878.030512 | AV82: 12188.80307 | AX82: 180176.0366 | BB82: 2882.816585 | BC82: 2882.816585 | BD82: 5765.63317
A83: 43 | C83: 10557.7375 | D83: 2939.00268 | E83: =+CALCOLI1!$E$18*99.95% -> 0 | F83: 394002.2109 | G83: 13496.74018 | H83: 957763.6855 | I83: 362908.943 | J83: 183779.5573 | M83: 200852.5317 | O83: 10439.63123 | S83: 13613.30054 | U83: 7018.208155 | V83: 5911.639747 | W83: 13477.16753 | Y83: 12929.8479 | Z83: 26407.01544 | AB83: 183779.5573 | AC83: 46031 | AD83: 137748.5573 | AE83: 137748.5573 | AF83: 0 | AG83: 0 | AH83: 0 | AI83: 0 | AJ83: 0 | AL83: 10563.01901 | AM83: 2940.472917 | AN83: 13503.49193 | AP83: 183779.5573 | AQ83: 46031 | AR83: 137748.5573 | AT83: 10563.01901 | AU83: 1928.479802 | AV83: 12491.49881 | AX83: 183779.5573 | BB83: 2940.472917 | BC83: 2940.472917 | BD83: 5880.945833
A84: 44 | C84: 10814.90023 | D84: 2997.782734 | E84: =+CALCOLI1!$E$18*99.95% -> 0 | F84: 407748.9218 | G84: 13812.68297 | H84: 996123.1103 | I84: 376721.626 | J84: 187455.1484 | M84: 211652.5626 | O84: 10800.0309 | S84: 13885.56655 | U84: 7158.572318 | V84: 6029.872542 | W84: 13746.71088 | Y84: 13188.44486 | Z84: 26935.15574 | AB84: 187455.1484 | AC84: 46031 | AD84: 141424.1484 | AE84: 141424.1484 | AF84: 0 | AG84: 0 | AH84: 0 | AI84: 0 | AJ84: 0 | AL84: 10820.31039 | AM84: 2999.282375 | AN84: 13819.59276 | AP84: 187455.1484 | AQ84: 46031 | AR84: 141424.1484 | AT84: 10820.31039 | AU84: 1979.938078 | AV84: 12800.24847 | AX84: 187455.1484 | BB84: 2999.282375 | BC84: 2999.282375 | BD84: 5998.56475
A85: 45 | C85: 11077.20622 | D85: 3057.738388 | E85: =+CALCOLI1!$E$18*99.95% -> 0 | F85: 421770.5669 | G85: 14134.94461 | H85: 1035447.339 | I85: 390856.5706 | J85: 191204.2514 | M85: 222820.2011 | O85: 11167.63856 | S85: 14163.27788 | U85: 7301.743764 | V85: 6150.469993 | W85: 14021.6451 | Y85: 13452.21376 | Z85: 27473.85886 | AB85: 191204.2514 | AC85: 46031 | AD85: 145173.2514 | AE85: 145173.2514 | AF85: 0 | AG85: 0 | AH85: 0 | AI85: 0 | AJ85: 0 | AL85: 11082.7476 | AM85: 3059.268022 | AN85: 14142.01562 | AP85: 191204.2514 | AQ85: 46031 | AR85: 145173.2514 | AT85: 11082.7476 | AU85: 2032.42552 | AV85: 13115.17312 | AX85: 191204.2514 | BB85: 3059.268022 | BC85: 3059.268022 | BD85: 6118.536045
A86: 46 | C86: 11344.75833 | D86: 3118.893156 | E86: =+CALCOLI1!$E$18*99.95% -> 0 | F86: 436072.6449 | G86: 14463.65149 | H86: 1075755.666 | I86: 405320.2221 | J86: 195028.3364 | M86: 234362.7995 | O86: 11542.59837 | S86: 14446.54344 | U86: 7447.77864 | V86: 6273.479393 | W86: 14302.078 | Y86: 13721.25803 | Z86: 28023.33604 | AB86: 195028.3364 | AC86: 46031 | AD86: 148997.3364 | AE86: 148997.3364 | AF86: 0 | AG86: 0 | AH86: 0 | AI86: 0 | AJ86: 0 | AL86: 11350.43355 | AM86: 3120.453383 | AN86: 14470.88693 | AP86: 195028.3364 | AQ86: 46031 | AR86: 148997.3364 | AT86: 11350.43355 | AU86: 2085.96271 | AV86: 13436.39626 | AX86: 195028.3364 | BB86: 3120.453383 | BC86: 3120.453383 | BD86: 6240.906766
A87: 47 | C87: 11617.66148 | D87: 3181.271019 | E87: =+CALCOLI1!$E$18*99.95% -> 0 | F87: 450660.7645 | G87: 14798.9325 | H87: 1117067.776 | I87: 420119.1546 | J87: 198928.9032 | M87: 246287.8569 | O87: 11925.05738 | S87: 14735.47431 | U87: 7596.734212 | V87: 6398.948981 | W87: 14588.11956 | Y87: 13995.68319 | Z87: 28583.80276 | AB87: 198928.9032 | AC87: 46031 | AD87: 152897.9032 | AE87: 152897.9032 | AF87: 0 | AG87: 0 | AH87: 0 | AI87: 0 | AJ87: 0 | AL87: 11623.47322 | AM87: 3182.86245 | AN87: 14806.33567 | AP87: 198928.9032 | AQ87: 46031 | AR87: 152897.9032 | AT87: 11623.47322 | AU87: 2140.570644 | AV87: 13764.04386 | AX87: 198928.9032 | BB87: 3182.86245 | BC87: 3182.86245 | BD87: 6365.724901
A88: 48 | C88: 11896.0227 | D88: 3244.89644 | E88: =+CALCOLI1!$E$18*99.95% -> 0 | F88: 465540.6464 | G88: 15140.91914 | H88: 1159403.743 | I88: 435260.0737 | J88: 202907.4812 | M88: 258603.0224 | O88: 12315.16557 | S88: 15030.18379 | U88: 7748.668897 | V88: 6526.927961 | W88: 14879.88196 | Y88: 14275.59686 | Z88: 29155.47881 | AB88: 202907.4812 | AC88: 46031 | AD88: 156876.4812 | AE88: 156876.4812 | AF88: 0 | AG88: 0 | AH88: 0 | AI88: 0 | AJ88: 0 | AL88: 11901.97369 | AM88: 3246.519699 | AN88: 15148.49338 | AP88: 202907.4812 | AQ88: 46031 | AR88: 156876.4812 | AT88: 11901.97369 | AU88: 2196.270737 | AV88: 14098.24442 | AX88: 202907.4812 | BB88: 3246.519699 | BC88: 3246.519699 | BD88: 6493.039399
A89: 49 | C89: 12179.95114 | D89: 3309.794368 | E89: =+CALCOLI1!$E$18*99.95% -> 0 | F89: 480718.126 | G89: 15489.74551 | H89: 1202784.044 | I89: 450749.8192 | J89: 206965.6308 | M89: 271316.0984 | O89: 12713.07593 | S89: 15330.78747 | U89: 7903.642275 | V89: 6657.46652 | W89: 15177.47959 | Y89: 14561.10879 | Z89: 29738.58839 | AB89: 206965.6308 | AC89: 46031 | AD89: 160934.6308 | AE89: 160934.6308 | AF89: 0 | AG89: 0 | AH89: 0 | AI89: 0 | AJ89: 0 | AL89: 12186.04416 | AM89: 3311.450093 | AN89: 15497.49425 | AP89: 206965.6308 | AQ89: 46031 | AR89: 160934.6308 | AT89: 12186.04416 | AU89: 2253.084832 | AV89: 14439.12899 | AX89: 206965.6308 | BB89: 3311.450093 | BC89: 3311.450093 | BD89: 6622.900187
A90: 50 | C90: 12469.55814 | D90: 3375.990256 | E90: =+CALCOLI1!$E$18*99.95% -> 0 | F90: 496199.1552 | G90: 15845.5484 | H90: 1247229.566 | I90: 466595.3676 | J90: 211104.9435 | M90: 284435.0429 | O90: 13118.94449 | S90: 15637.40322 | U90: 8061.71512 | V90: 6790.61585 | W90: 15481.02919 | Y90: 14852.33097 | Z90: 30333.36016 | AB90: 211104.9435 | AC90: 46031 | AD90: 165073.9435 | AE90: 165073.9435 | AF90: 0 | AG90: 0 | AH90: 0 | AI90: 0 | AJ90: 0 | AL90: 12475.79604 | AM90: 3377.679095 | AN90: 15853.47514 | AP90: 211104.9435 | AQ90: 46031 | AR90: 165073.9435 | AT90: 12475.79604 | AU90: 2311.035208 | AV90: 14786.83125 | AX90: 211104.9435 | BB90: 3377.679095 | BC90: 3377.679095 | BD90: 6755.358191
A91: 51 | C91: 12764.95729 | D91: 3443.510061 | E91: =+CALCOLI1!$E$18*99.95% -> 0 | F91: 511989.805 | G91: 16208.46735 | H91: 1292761.613 | I91: 482803.835 | J91: 215327.0423 | M91: 297967.9733 | O91: 13532.93042 | S91: 15950.15128 | U91: 8222.949422 | V91: 6926.428167 | W91: 15790.64977 | Y91: 15149.37759 | Z91: 30940.02736 | AB91: 215327.0423 | AC91: 46031 | AD91: 169296.0423 | AE91: 169296.0423 | AF91: 0 | AG91: 0 | AH91: 0 | AI91: 0 | AJ91: 0 | AL91: 12771.34296 | AM91: 3445.232677 | AN91: 16216.57564 | AP91: 215327.0423 | AQ91: 46031 | AR91: 169296.0423 | AT91: 12771.34296 | AU91: 2370.144593 | AV91: 15141.48756 | AX91: 215327.0423 | BB91: 3445.232677 | BC91: 3445.232677 | BD91: 6890.465354
A92: 52 | C92: 13066.26442 | D92: 3512.380262 | E92: =+CALCOLI1!$E$18*99.95% -> 0 | F92: 528096.2677 | G92: 16578.64468 | H92: 1339401.917 | I92: 499382.4796 | J92: 219633.5832 | M92: 311923.1693 | O92: 13955.19607 | S92: 16269.15431 | U92: 8387.408411 | V92: 7064.956731 | W92: 16106.46277 | Y92: 15452.36514 | Z92: 31558.82791 | AB92: 219633.5832 | AC92: 46031 | AD92: 173602.5832 | AE92: 173602.5832 | AF92: 0 | AG92: 0 | AH92: 0 | AI92: 0 | AJ92: 0 | AL92: 13072.80082 | AM92: 3514.137331 | AN92: 16586.93815 | AP92: 219633.5832 | AQ92: 46031 | AR92: 173602.5832 | AT92: 13072.80082 | AU92: 2430.436164 | AV92: 15503.23699 | AX92: 219633.5832 | BB92: 3514.137331 | BC92: 3514.137331 | BD92: 7028.274662
A93: 53 | C93: 13373.59769 | D93: 3582.627867 | E93: =+CALCOLI1!$E$18*99.95% -> 0 | F93: 544524.8598 | G93: 16956.22556 | H93: 1387172.641 | I93: 516338.7052 | J93: 224026.2548 | M93: 326309.0764 | O93: 14385.90703 | S93: 16594.5374 | U93: 8555.156579 | V93: 7206.255865 | W93: 16428.59202 | Y93: 15761.41244 | Z93: 32190.00447 | AB93: 224026.2548 | AC93: 46031 | AD93: 177995.2548 | AE93: 177995.2548 | AF93: 0 | AG93: 0 | AH93: 0 | AI93: 0 | AJ93: 0 | AL93: 13380.28784 | AM93: 3584.420077 | AN93: 16964.70792 | AP93: 224026.2548 | AQ93: 46031 | AR93: 177995.2548 | AT93: 13380.28784 | AU93: 2491.933568 | AV93: 15872.22141 | AX93: 224026.2548 | BB93: 3584.420077 | BC93: 3584.420077 | BD93: 7168.840155
A94: 54 | C94: 13687.07763 | D94: 3654.280425 | E94: =+CALCOLI1!$E$18*99.95% -> 0 | F94: 561282.0236 | G94: 17341.35806 | H94: 1436096.395 | I94: 533680.0633 | J94: 228506.7799 | M94: 341134.3086 | O94: 14825.23222 | S94: 16926.42814 | U94: 8726.259711 | V94: 7350.380982 | W94: 16757.16386 | Y94: 16076.64069 | Z94: 32833.80455 | AB94: 228506.7799 | AC94: 46031 | AD94: 182475.7799 | AE94: 182475.7799 | AF94: 0 | AG94: 0 | AH94: 0 | AI94: 0 | AJ94: 0 | AL94: 13693.9246 | AM94: 3656.108479 | AN94: 17350.03307 | AP94: 228506.7799 | AQ94: 46031 | AR94: 182475.7799 | AT94: 13693.9246 | AU94: 2554.660919 | AV94: 16248.58551 | AX94: 228506.7799 | BB94: 3656.108479 | BC94: 3656.108479 | BD94: 7312.216958
A95: 55 | C95: 14006.82717 | D95: 3727.366033 | E95: =+CALCOLI1!$E$18*99.95% -> 0 | F95: 578374.3308 | G95: 17734.1932 | H95: 1486196.24 | I95: 551414.2565 | J95: 233076.9155 | M95: 356407.6525 | O95: 15273.3439 | S95: 17264.95671 | U95: 8900.784905 | V95: 7497.388602 | W95: 17092.30714 | Y95: 16398.17351 | Z95: 33490.48065 | AB95: 233076.9155 | AC95: 46031 | AD95: 187045.9155 | AE95: 187045.9155 | AF95: 0 | AG95: 0 | AH95: 0 | AI95: 0 | AJ95: 0 | AL95: 14013.83409 | AM95: 3729.230648 | AN95: 17743.06474 | AP95: 233076.9155 | AQ95: 46031 | AR95: 187045.9155 | AT95: 14013.83409 | AU95: 2618.642817 | AV95: 16632.4769 | AX95: 233076.9155 | BB95: 3729.230648 | BC95: 3729.230648 | BD95: 7458.461297
A96: 56 | C96: 14332.9717 | D96: 3801.913354 | E96: =+CALCOLI1!$E$18*99.95% -> 0 | F96: 595808.484 | G96: 18134.88505 | H96: 1537495.696 | I96: 569549.1415 | J96: 237738.4538 | M96: 372138.0703 | O96: 15730.41782 | S96: 17610.25584 | U96: 9078.800603 | V96: 7647.336374 | W96: 17434.15328 | Y96: 16726.13698 | Z96: 34160.29026 | AB96: 237738.4538 | AC96: 46031 | AD96: 191707.4538 | AE96: 191707.4538 | AF96: 0 | AG96: 0 | AH96: 0 | AI96: 0 | AJ96: 0 | AL96: 14340.14177 | AM96: 3803.815261 | AN96: 18143.95703 | AP96: 237738.4538 | AQ96: 46031 | AR96: 191707.4538 | AT96: 14340.14177 | AU96: 2683.904354 | AV96: 17024.04612 | AX96: 237738.4538 | BB96: 3803.815261 | BC96: 3803.815261 | BD96: 7607.630523
A97: 57 | C97: 14665.63912 | D97: 3877.951621 | E97: =+CALCOLI1!$E$18*99.95% -> 0 | F97: 613591.3204 | G97: 18543.59074 | H97: 1590018.756 | I97: 588092.7323 | J97: 242493.2229 | M97: 388334.7036 | O97: 16196.63322 | S97: 17962.46096 | U97: 9260.376615 | V97: 7800.283102 | W97: 17782.83635 | Y97: 17060.65972 | Z97: 34843.49606 | AB97: 242493.2229 | AC97: 46031 | AD97: 196462.2229 | AE97: 196462.2229 | AF97: 0 | AG97: 0 | AH97: 0 | AI97: 0 | AJ97: 0 | AL97: 14672.9756 | AM97: 3879.891567 | AN97: 18552.86717 | AP97: 242493.2229 | AQ97: 46031 | AR97: 196462.2229 | AT97: 14672.9756 | AU97: 2750.471121 | AV97: 17423.44673 | AX97: 242493.2229 | BB97: 3879.891567 | BC97: 3879.891567 | BD97: 7759.783133
A98: 58 | C98: 15004.95988 | D98: 3955.510653 | E98: =+CALCOLI1!$E$18*99.95% -> 0 | F98: 631729.8135 | G98: 18960.47054 | H98: 1643789.893 | I98: 607053.2028 | J98: 247343.0874 | M98: 405006.8765 | O98: 16672.17293 | S98: 18321.71018 | U98: 9445.584147 | V98: 7956.288764 | W98: 18138.49307 | Y98: 17401.87291 | Z98: 35540.36599 | AB98: 247343.0874 | AC98: 46031 | AD98: 201312.0874 | AE98: 201312.0874 | AF98: 0 | AG98: 0 | AH98: 0 | AI98: 0 | AJ98: 0 | AL98: 15012.46612 | AM98: 3957.489398 | AN98: 18969.95551 | AP98: 247343.0874 | AQ98: 46031 | AR98: 201312.0874 | AT98: 15012.46612 | AU98: 2818.369223 | AV98: 17830.83534 | AX98: 247343.0874 | BB98: 3957.489398 | BC98: 3957.489398 | BD98: 7914.978796
A99: 59 | C99: 15351.06707 | D99: 4034.620866 | E99: =+CALCOLI1!$E$18*99.95% -> 0 | F99: 650231.0764 | G99: 19385.68793 | H99: 1698834.067 | I99: 626438.8907 | J99: 252289.9491 | M99: 422164.0999 | O99: 17157.22343 | S99: 18688.14438 | U99: 9634.49583 | V99: 8115.414539 | W99: 18501.26294 | Y99: 17749.91037 | Z99: 36251.1733 | AB99: 252289.9491 | AC99: 46031 | AD99: 206258.9491 | AE99: 206258.9491 | AF99: 0 | AG99: 0 | AH99: 0 | AI99: 0 | AJ99: 0 | AL99: 15358.74644 | AM99: 4036.639186 | AN99: 19395.38562 | AP99: 252289.9491 | AQ99: 46031 | AR99: 206258.9491 | AT99: 15358.74644 | AU99: 2887.625288 | AV99: 18246.37173 | AX99: 252289.9491 | BB99: 4036.639186 | BC99: 4036.639186 | BD99: 8073.278372
A100: 60 | C100: 15704.09639 | D100: 4115.313284 | E100: =+CALCOLI1!$E$18*99.95% -> 0 | F100: 669102.3646 | G100: 19819.40968 | H100: 1755176.74 | I100: 646258.3004 | J100: 257335.7481 | M100: 439816.0749 | O100: 17651.97494 | S100: 19061.90727 | U100: 9827.185747 | V100: 8277.72283 | W100: 18871.28819 | Y100: 18104.90858 | Z100: 36976.19677 | AB100: 257335.7481 | AC100: 46031 | AD100: 211304.7481 | AE100: 211304.7481 | AF100: 0 | AG100: 0 | AH100: 0 | AI100: 0 | AJ100: 0 | AL100: 15711.95237 | AM100: 4117.37197 | AN100: 19829.32434 | AP100: 257335.7481 | AQ100: 46031 | AR100: 211304.7481 | AT100: 15711.95237 | AU100: 2958.266473 | AV100: 18670.21884 | AX100: 257335.7481 | BB100: 4117.37197 | BC100: 4117.37197 | BD100: 8234.743939
A101: 61 | C101: 16064.1863 | D101: 4197.619549 | E101: =+CALCOLI1!$E$18*99.95% -> 0 | F101: 688351.0785 | G101: 20261.80585 | H101: 1812843.881 | I101: 666520.1063 | J101: 262482.4631 | M101: 457972.6963 | O101: 18156.62148 | S101: 19443.14541 | U101: 10023.72946 | V101: 8443.277286 | W101: 19248.71396 | Y101: 18467.00675 | Z101: 37715.72071 | AB101: 262482.4631 | AC101: 46031 | AD101: 216451.4631 | AE101: 216451.4631 | AF101: 0 | AG101: 0 | AH101: 0 | AI101: 0 | AJ101: 0 | AL101: 16072.22241 | AM101: 4199.719409 | AN101: 20271.94182 | AP101: 262482.4631 | AQ101: 46031 | AR101: 216451.4631 | AT101: 16072.22241 | AU101: 3030.320483 | AV101: 19102.5429 | AX101: 262482.4631 | BB101: 4199.719409 | BC101: 4199.719409 | BD101: 8399.438818
A102: 62 | C102: 16431.47801 | D102: 4281.57194 | E102: =+CALCOLI1!$E$18*99.95% -> 0 | F102: 707984.7668 | G102: 20713.04995 | H102: 1871861.98 | I102: 687233.1562 | J102: 267732.1123 | M102: 476644.0573 | O102: 18671.36096 | S102: 19832.00832 | U102: 10224.20405 | V102: 8612.142832 | W102: 19633.68824 | Y102: 18836.34688 | Z102: 38470.03512 | AB102: 267732.1123 | AC102: 46031 | AD102: 221701.1123 | AE102: 221701.1123 | AF102: 0 | AG102: 0 | AH102: 0 | AI102: 0 | AJ102: 0 | AL102: 16439.69786 | AM102: 4283.713797 | AN102: 20723.41166 | AP102: 267732.1123 | AQ102: 46031 | AR102: 221701.1123 | AT102: 16439.69786 | AU102: 3103.815573 | AV102: 19543.51344 | AX102: 267732.1123 | BB102: 4283.713797 | BC102: 4283.713797 | BD102: 8567.427595
A103: 63 | C103: 16806.11556 | D103: 4367.203379 | E103: =+CALCOLI1!$E$18*99.95% -> 0 | F103: 728011.1288 | G103: 21173.31894 | H103: 1932258.056 | I103: 708406.4751 | J103: 273086.7546 | M103: 495840.4525 | O103: 19196.39522 | S103: 20228.64849 | U103: 10428.68813 | V103: 8784.385689 | W103: 20026.362 | Y103: 19213.07382 | Z103: 39239.43582 | AB103: 273086.7546 | AC103: 46031 | AD103: 227055.7546 | AE103: 227055.7546 | AF103: 0 | AG103: 0 | AH103: 0 | AI103: 0 | AJ103: 0 | AL103: 16814.52282 | AM103: 4369.388073 | AN103: 21183.91089 | AP103: 273086.7546 | AQ103: 46031 | AR103: 227055.7546 | AT103: 16814.52282 | AU103: 3178.780564 | AV103: 19993.30338 | AX103: 273086.7546 | BB103: 4369.388073 | BC103: 4369.388073 | BD103: 8738.776146
A104: 64 | C104: 17188.24585 | D104: 4454.547447 | E104: =+CALCOLI1!$E$18*99.95% -> 0 | F104: 748438.018 | G104: 21642.7933 | H104: 1994059.669 | I104: 730049.2684 | J104: 278548.4897 | M104: 515572.3827 | O104: 19731.93016 | S104: 20633.22146 | U104: 10637.26189 | V104: 8960.073402 | W104: 20426.88924 | Y104: 19597.3353 | Z104: 40024.22454 | AB104: 278548.4897 | AC104: 46031 | AD104: 232517.4897 | AE104: 232517.4897 | AF104: 0 | AG104: 0 | AH104: 0 | AI104: 0 | AJ104: 0 | AL104: 17196.84428 | AM104: 4456.775835 | AN104: 21653.62011 | AP104: 278548.4897 | AQ104: 46031 | AR104: 232517.4897 | AT104: 17196.84428 | AU104: 3255.244855 | AV104: 20452.08913 | AX104: 278548.4897 | BB104: 4456.775835 | BC104: 4456.775835 | BD104: 8913.551669
A105: 65 | C105: 17578.01876 | D105: 4543.638396 | E105: =+CALCOLI1!$E$18*99.95% -> 0 | F105: 769273.4451 | G105: 22121.65715 | H105: 2057294.929 | I105: 752170.9256 | J105: 284119.4595 | M105: 535850.5585 | O105: 20278.17581 | S105: 21045.88589 | U105: 10850.00713 | V105: 9139.27487 | W105: 20835.42703 | Y105: 19989.282 | Z105: 40824.70903 | AB105: 284119.4595 | AC105: 46031 | AD105: 238088.4595 | AE105: 238088.4595 | AF105: 0 | AG105: 0 | AH105: 0 | AI105: 0 | AJ105: 0 | AL105: 17586.81216 | AM105: 4545.911351 | AN105: 22132.72351 | AP105: 284119.4595 | AQ105: 46031 | AR105: 238088.4595 | AT105: 17586.81216 | AU105: 3333.238432 | AV105: 20920.05059 | AX105: 284119.4595 | BB105: 4545.911351 | BC105: 4545.911351 | BD105: 9091.822703
A106: 66 | C106: =IF($B$35=1,AL106*99.95%,IF($B$35=2,AT106*99.95%,BB106*99.95%)) -> 17975.58712 | D106: =IF($B$35=1,AM106*99.95%,IF($B$35=2,AU106*99.95%,BC106*99.95%)) -> 4634.511164 | E106: =+CALCOLI1!$E$18*99.95% -> 0 | F106: 790525.5806 | G106: =+B106+C106+D106 -> 22610.09828 | H106: 2121992.509 | I106: 774781.0239 | J106: 289801.8487 | M106: 556685.9049 | O106: 20835.34637 | S106: =+J106/13.5 -> 21466.8036 | U106: 11067.00728 | V106: 9322.060368 | W106: 21252.13557 | Y106: 20389.06764 | Z106: 41641.20321 | AB106: =+J106 -> 289801.8487 | AC106: =IF(AB106>=$AC$29,$AC$29,AB106) -> 46031 | AD106: =+AB106-AC106 -> 243770.8487 | AE106: =IF(AD106>=$AA$30,$AA$30,AD106) -> 243770.8487 | AF106: =+AD106-AE106 -> 0 | AG106: =IF(AF106>=$AA$31,$AA$31,AF106) -> 0 | AH106: =+AF106-AG106 -> 0 | AI106: =IF(AH106>=$AA$32,$AA$32,AH106) -> 0 | AJ106: =IF(AH106>=$AA$33,$AA$33,AH106) -> 0 | AL106: =+((AC106*$AD$29)+(AE106*$AD$30))/100 -> 17984.57941 | AM106: =IF($AD$23>=10,((AC106*$AE$29)+(AE106*$AE$30)),(AC106*$AE$32)+(AE106*$AE$33))/100 -> 4636.829578 | AN106: =+AL106+AM106 -> 22621.40898 | AP106: =+AB106 -> 289801.8487 | AQ106: =IF(AP106>=$AH$29,$AH$29,AP106) -> 46031 | AR106: =+AP106-AQ106 -> 243770.8487 | AT106: =+AQ106*$AI$29%+AR106*$AI$30% -> 17984.57941 | AU106: =IF($AD$23>=10,(AQ106*$AJ$29/100)+(AR106*$AJ$30/100),(AQ106*$AJ98/100+AR106*$AJ$34/100)) -> 3412.791881 | AV106: =+AT106+AU106 -> 21397.37129 | AX106: =+J106 -> 289801.8487 | BB106: =+AX106*$AM$25% -> 4636.829578 | BC106: =+AX106*$AM$25% -> 4636.829578 | BD106: =+BB106+BC106 -> 9273.659157
A107: =1+A106 -> 67 | C107: 18381.10684 | D107: 4727.201387 | E107: =+CALCOLI1!$E$18*99.95% -> 0 | F107: =+F106+W107 -> 812202.7589 | G107: 23108.30823 | H107: =+I107+F107+M107 -> 2188181.656 | I107: =+I106+G107 -> 797889.3321 | J107: =+J106*$K$41/100 -> 295597.8856 | M107: =+M106+O107 -> 578089.5652 | O107: =+(G107+F107+O106)*$N$41/100 -> 21403.66034 | S107: 21896.13968 | U107: =+J107*$P$41/100*99% -> 11288.34742 | V107: =+J107*$Q$41*99%/100 -> 9508.501575 | W107: =+J107/13.5*$R$41/100*99% -> 21677.17828 | Y107: =+U107+V107+X107 -> 20796.849 | Z107: =+Y107+W107 -> 42474.02728 | AB107: 295597.8856 | AC107: 46031 | AD107: 249566.8856 | AE107: 249566.8856 | AF107: 0 | AG107: 0 | AH107: 0 | AI107: 0 | AJ107: 0 | AL107: 18390.30199 | AM107: 4729.56617 | AN107: 23119.86816 | AP107: 295597.8856 | AQ107: 46031 | AR107: 249566.8856 | AT107: 18390.30199 | AU107: 3493.936399 | AV107: 21884.23839 | AX107: 295597.8856 | BB107: 4729.56617 | BC107: 4729.56617 | BD107: 9459.13234
A108: 68 | C108: 18794.73696 | D108: 4821.745415 | E108: =+CALCOLI1!$E$18*99.95% -> 0 | F108: 834313.4807 | G108: 23616.48238 | H108: 2255892.201 | I108: 821505.8145 | J108: 301509.8433 | M108: 600072.9058 | O108: 21983.34059 | S108: 22334.06247 | U108: 11514.11437 | V108: 9698.671607 | W108: 22110.72184 | Y108: 21212.78598 | Z108: 43323.50782 | AB108: 301509.8433 | AC108: 46031 | AD108: 255478.8433 | AE108: 255478.8433 | AF108: 0 | AG108: 0 | AH108: 0 | AI108: 0 | AJ108: 0 | AL108: 18804.13903 | AM108: 4824.157493 | AN108: 23628.29653 | AP108: 301509.8433 | AQ108: 46031 | AR108: 255478.8433 | AT108: 18804.13903 | AU108: 3576.703807 | AV108: 22380.84284 | AX108: 301509.8433 | BB108: 4824.157493 | BC108: 4824.157493 | BD108: 9648.314987
A109: 69 | C109: 19216.63969 | D109: 4918.180323 | E109: =+CALCOLI1!$E$18*99.95% -> 0 | F109: 856866.417 | G109: 24134.82001 | H109: 2325154.572 | I109: 845640.6345 | J109: 307540.0402 | M109: 622647.5202 | O109: 22574.61444 | S109: 22780.74372 | U109: 11744.39666 | V109: 9892.645039 | W109: 22552.93628 | Y109: 21637.0417 | Z109: 44189.97798 | AB109: 307540.0402 | AC109: 46031 | AD109: 261509.0402 | AE109: 261509.0402 | AF109: 0 | AG109: 0 | AH109: 0 | AI109: 0 | AJ109: 0 | AL109: 19226.25281 | AM109: 4920.640643 | AN109: 24146.89346 | AP109: 307540.0402 | AQ109: 46031 | AR109: 261509.0402 | AT109: 19226.25281 | AU109: 3661.126563 | AV109: 22887.37938 | AX109: 307540.0402 | BB109: 4920.640643 | BC109: 4920.640643 | BD109: 9841.281287
A110: 70 | C110: 19646.98047 | D110: 5016.543929 | E110: =+CALCOLI1!$E$18*99.95% -> 0 | F110: 879870.412 | G110: 24663.5244 | H110: 2395999.805 | I110: 870304.1589 | J110: 313690.841 | M110: 645825.234 | O110: 23177.71377 | S110: 23236.35859 | U110: 11979.28459 | V110: 10090.49794 | W110: 23003.99501 | Y110: 22069.78253 | Z110: 45073.77754 | AB110: 313690.841 | AC110: 46031 | AD110: 267659.841 | AE110: 267659.841 | AF110: 0 | AG110: 0 | AH110: 0 | AI110: 0 | AJ110: 0 | AL110: 19656.80887 | AM110: 5019.053456 | AN110: 24675.86233 | AP110: 313690.841 | AQ110: 46031 | AR110: 267659.841 | AT110: 19656.80887 | AU110: 3747.237774 | AV110: 23404.04664 | AX110: 313690.841 | BB110: 5019.053456 | BC110: 5019.053456 | BD110: 10038.10691
S112: =SUM(S41:S111) -> 888757.992 | U112: =SUM(U42:U111) -> 455135.7099 | V112: 383373.9744 | W112: =SUM(W42:W111) -> 874003.7454 | Y112: =SUM(Y42:Y111) -> 838509.6843 | Z112: =SUM(Z42:Z111) -> 1712513.43
V113: =+V112+U112 -> 838509.6843 | Z113: =+V113+W112 -> 1712513.43

Sheet CALCOLO PENSIONE (hidden)
D4: SESSO | E4: =+'RENDITE VITALIZIE'!H10 -> M | F4: =IF($E$4="M",VLOOKUP($E$5,$D$10:$E$99,2),VLOOKUP($E$5,$G$10:$H$97,2)) -> 0
D5: ETA' | E5: =+'RENDITE VITALIZIE'!H6 -> 67 | I5: =+E7*L5 -> 14661 | K5: =+E7*L5 -> 14661 | L5: =IF($E$4="M",VLOOKUP($E$6,CALCOLI!$F$16:$H$36,2),VLOOKUP($E$6,CALCOLI!$F$16:$H$36,3)) -> 0.04887 | M5: IMMEDIATA | P5: =+K5 -> 14661
D6: ETA' CORRETTA | E6: =+E5+F4 -> 67
D7: MONTANTE | E7: =+'RENDITE VITALIZIE'!H8 -> 300000 | K7: =+E7*L7 -> 14574 | L7: =IF($E$4="M",VLOOKUP($E$6,CALCOLI!$J$16:$L$36,2),VLOOKUP($E$6,CALCOLI!$J$16:$L$36,3)) -> 0.04858 | M7: CERTA 5 ANNI | P7: =+K7 -> 14574
D9: maschi | G9: femmine | K9: =+E7*L9 -> 14256 | L9: =IF($E$4="M",VLOOKUP($E$6,CALCOLI!$N$16:$P$36,2),VLOOKUP($E$6,CALCOLI!$N$16:$P$36,3)) -> 0.04752 | M9: CERTA 10 ANNI | P9: =+K9 -> 14256
D10: 0 | E10: -2 | G10: 0 | H10: -2
D11: =1+D10 -> 1 | E11: -2 | G11: =1+G10 -> 1 | H11: -2 | K11: =+E7*L11 -> 11664 | L11: =IF($E$4="M",VLOOKUP($E$6,CALCOLI!$R$16:$T$36,2),VLOOKUP($E$6,CALCOLI!$R$16:$T$36,3)) -> 0.03888 | M11: CONTRASS TT0,5% | P11: =+K11 -> 11664
D12: =1+D11 -> 2 | E12: -2 | G12: =1+G11 -> 2 | H12: -2
D13: 3 | E13: -2 | G13: 3 | H13: -2 | K13: =+E7*L13 -> 11031 | L13: =IF($E$4="M",VLOOKUP($E$6,CALCOLI!$Z$5:$AB$25,2),VLOOKUP($E$6,CALCOLI!$Z$5:AB$25,3)) -> 0.03677 | M13: REVERSIBILE | P13: =+K13 -> 11031
D14: 4 | E14: -2 | G14: 4 | H14: -2
D15: 5 | E15: -2 | G15: 5 | H15: -2
D16: 6 | E16: -2 | G16: 6 | H16: -2
D17: 7 | E17: -2 | G17: 7 | H17: -2 | N17: % su
D18: 8 | E18: -2 | G18: 8 | H18: -2 | N18: trimestrale
D19: 9 | E19: -2 | G19: 9 | H19: -2 | K19: 100000 | L19: 0.04775 | M19: =+K19*L19 -> 4775 | N19: =+M19/K5% -> 32.56940181 | O19: annuale
D20: 10 | E20: -2 | G20: 10 | H20: -2 | L20: 0.04718 | M20: =+K19*L20 -> 4718 | N20: =+M20/K5% -> 32.18061524 | O20: semestrale
D21: 11 | E21: -2 | G21: 11 | H21: -2 | L21: 0.04671 | M21: =+K19*L21 -> 4671 | N21: =+M21/K5% -> 31.86003683 | O21: mensile
D22: 12 | E22: -2 | G22: 12 | H22: -2
D23: 13 | E23: -2 | G23: 13 | H23: -2
D24: 14 | E24: -2 | G24: 14 | H24: -2
D25: 15 | E25: -2 | G25: 15 | H25: -2 | L25: età | M25: montante | N25: annuale | O25: semestrale | P25: trimestrale | Q25: mensile
D26: 16 | E26: -2 | G26: 16 | H26: -2 | K26: rend ord | L26: 67 | M26: 100000 | N26: 0.04979 | O26: 0.04917 | P26: 0.04887 | Q26: 0.04867
D27: 17 | E27: -2 | G27: 17 | H27: -2 | N27: =+M26*N26 -> 4979 | O27: =+O26*M26 -> 4917 | P27: =+P26*M26 -> 4887 | Q27: =+Q26*M26 -> 4867 | R27: m
D28: 18 | E28: -2 | G28: 18 | H28: -2 | N28: 0.0423 | O28: 0.04185 | P28: 0.04163 | Q28: 0.04148
D29: 19 | E29: -2 | G29: 19 | H29: -2 | N29: =+N28*M26 -> 4230 | O29: =+O28*M26 -> 4185 | P29: =+P28*M26 -> 4163 | Q29: =+Q28*M26 -> 4148 | R29: f | U29: =+U32-T32 -> -62 | V29: =+V32-T32 -> -92 | W29: =+W32-T32 -> -112
D30: 20 | E30: -2 | G30: 20 | H30: -2 | U30: =+U32/T32% -> 98.75477003 | V30: =+V32/T32% -> 98.15223941 | W30: =+W32/T32% -> 97.75055232
D31: 21 | E31: -2 | G31: 21 | H31: -2 | T31: annuale | U31: semestrale | V31: trimestrale | W31: mensile
D32: 22 | E32: -2 | G32: 22 | H32: -2 | S32: M | T32: =+N27 -> 4979 | U32: =+O27 -> 4917 | V32: =+P27 -> 4887 | W32: =+Q27 -> 4867
D33: 23 | E33: -2 | G33: 23 | H33: -2 | S33: F | T33: =+N29 -> 4230 | U33: =+O29 -> 4185 | V33: =+P29 -> 4163 | W33: =+Q29 -> 4148
D34: 24 | E34: -2 | G34: 24 | H34: -2 | U34: =+U33-T33 -> -45 | V34: =+V33-T33 -> -67 | W34: =+W33-T33 -> -82
D35: 25 | E35: -2 | G35: 25 | H35: -2 | U35: =+U33/T33% -> 98.93617021 | V35: =+V33/T33% -> 98.41607565 | W35: =+W33/T33% -> 98.06146572
D36: 26 | E36: -2 | G36: 26 | H36: -2
D37: 27 | E37: -2 | G37: 27 | H37: -2
D38: 28 | E38: -2 | G38: 28 | H38: -2
D39: 29 | E39: -2 | G39: 29 | H39: -2
D40: 30 | E40: -2 | G40: 30 | H40: -2
D41: 31 | E41: -2 | G41: 31 | H41: -2
D42: 32 | E42: -2 | G42: 32 | H42: -2
D43: 33 | E43: -2 | G43: 33 | H43: -2
D44: 34 | E44: -2 | G44: 34 | H44: -2
D45: 35 | E45: -2 | G45: 35 | H45: -2
D46: 36 | E46: -2 | G46: 36 | H46: -2
D47: 37 | E47: -2 | G47: 37 | H47: -2
D48: 38 | E48: -2 | G48: 38 | H48: -2
D49: 39 | E49: -2 | G49: 39 | H49: -2
D50: 40 | E50: -2 | G50: 40 | H50: -2
D51: 41 | E51: -2 | G51: 41 | H51: -2
D52: 42 | E52: -2 | G52: 42 | H52: -2
D53: 43 | E53: -2 | G53: 43 | H53: -2
D54: 44 | E54: -2 | G54: 44 | H54: -2
D55: 45 | E55: -2 | G55: 45 | H55: -2
D56: 46 | E56: -2 | G56: 46 | H56: -1
D57: 47 | E57: -2 | G57: 47 | H57: -1
D58: 48 | E58: -1 | G58: 48 | H58: -1
D59: 49 | E59: -1 | G59: 49 | H59: -1
D60: 50 | E60: -1 | G60: 50 | H60: -1
D61: 51 | E61: -1 | G61: 51 | H61: -1
D62: 52 | E62: -1 | G62: 52 | H62: -1
D63: 53 | E63: -1 | G63: 53 | H63: -1
D64: 54 | E64: -1 | G64: 54 | H64: -1
D65: 55 | E65: -1 | G65: 55 | H65: -1
D66: 56 | E66: -1 | G66: 56 | H66: 0
D67: 57 | E67: -1 | G67: 57 | H67: 0
D68: 58 | E68: 0 | G68: 58 | H68: 0
D69: 59 | E69: 0 | G69: 59 | H69: 0
D70: 60 | E70: 0 | G70: 60 | H70: 0
D71: 61 | E71: 0 | G71: 61 | H71: 0
D72: 62 | E72: 0 | G72: 62 | H72: 0
D73: 63 | E73: 0 | G73: 63 | H73: 0
D74: 64 | E74: 0 | G74: 64 | H74: 0
D75: 65 | E75: 0 | G75: 65 | H75: 0
D76: =1+D75 -> 66 | E76: 0 | G76: =1+G75 -> 66 | H76: 0
D77: 67 | E77: 0 | G77: 67 | H77: 0
D78: 68 | E78: 0 | G78: 68 | H78: 0
D79: 69 | E79: 0 | G79: 69 | H79: 1
D80: 70 | E80: 0 | G80: 70 | H80: 1
D81: 71 | E81: 1 | G81: 71 | H81: 1
D82: 72 | E82: 1 | G82: 72 | H82: 1
D83: 73 | E83: 1 | G83: 73 | H83: 1
D84: 74 | E84: 1 | G84: 74 | H84: 1
D85: 75 | E85: 1 | G85: 75 | H85: 1
D86: 76 | E86: 1 | G86: 76 | H86: 1
D87: 77 | E87: 1 | G87: 77 | H87: 1
D88: 78 | E88: 1 | G88: 78 | H88: 2
D89: 79 | E89: 1 | G89: 79 | H89: 2
D90: 80 | E90: 2 | G90: 80 | H90: 2
D91: 81 | E91: 2 | G91: 81 | H91: 2
D92: 82 | E92: 2 | G92: 82 | H92: 2
D93: 83 | E93: 2 | G93: 83 | H93: 2
D94: 84 | E94: 2 | G94: 84 | H94: 2
D95: 85 | E95: 2 | G95: 85 | H95: 2
D96: 86 | E96: 2 | G96: 86 | H96: 2
D97: 87 | E97: 2 | G97: 87 | H97: 2
D98: 88 | E98: 2
D99: 89 | E99: 2

Sheet RENDITE VITALIZIE
J3: CALCOLO RENDITA VITALIZIA
C6: ETA' AL MOMENTO DELLA RISCOSSIONE MINIMO 50 | H6: 67
C8: VALORE MONTANTE DA DESTINARE ALLA RENDITA | H8: 300000
C10: SESSO | H10: M
E23: PROPRIETA' INTELLETTUALE E REALIZZAZIONE DI GIUSEPPE NICOLETTI - E' VIETATA LA RIPRODUZIONE E/O COMMERCIALIZZAZIONE ANCHE PARZIALE
